Workbook

Sheet Instructions (hidden)
B2: Bienvenue sur le Challenge 35 | E2: Cuvée : | F2: 2018
C3: Les joueurs participant à ce Challenge sont listés dans l'onglet Joueurs.
C4: Ils sont listés par ordre d'index, et alphabétique en cas d'index égal.
C5: Cet ordre détermine la répartion initiale dans les 4 poules automatiquement.
B7: 1ère manche : poules
C8: La liste des rencontres est dans l'onglet Poules.
C9: Pour chaque rencontre est indiqué le nombre de coups reçus par le jour d'index le plus faible, pour 9 et 18 trous.
C10: Pour un 18 trous, il est égal à 75% de la différence d'index, arrondi à la valeur entière la plus proche, avec un maximum de 27.
C11: La rencontre peut être partagée.
B13: 2ème manche : élimination
C14: A la fin des matchs de poule, les 2 premiers de chaque poule intègrent un tournoi à élimination directe.
C15: Ce tableau est rempli automatiquement avec les résultats des poules.
C16: En cas d'égalité à la fin de 18 trous, la rencontre revient avec 1 UP à celui qui a fait le meilleur score sur les 9 derniers trous, à défaut les 6 derniers, à défaut les 3 derniers.
B18: Pour préparer votre feuille de match :
C19: Vérifiez que votre parcours est décrit dans l'onglet Parcours. S'il n'y est pas, ajoutez sa description à la fin (ou demandez à l'organisateur).
C20: Vérifiez que votre index est à jour dans l'onglet Joueurs. C'est l'index au jour de la rencontre qui doit être pris en compte.
C21: Dans l'onglet Poules ou Tournoi, sur la ligne de votre rencontre, sélectionnez votre parcours dans la liste déroulante.
C22: Entrez aussi la date prévue de votre rencontre (optionnel).
C23: Dans l'onglet "Feuille de match", choisissez votre rencontre dans la liste déroulante.
D24: Les coups reçus sont automatiquement distribués sur les trous dans l'ordre de difficulté des trous.
C26: Vous pouvez maintenant imprimer votre feuille de match et la remplir pendant votre rencontre.
C27: Vous pouvez également la remplir sur Excel après la rencontre pour calculer vos positions si vous ne l'avez pas fait pendant la rencontre.
C28: Une fois remplie (papier ou électronique), transmettez votre feuille à l'organisateur pour mise à jour de la compétition.
B30: Bonus : | C30: Vous pouvez aussi avoir vos feuilles de score individuel en stableford dans les onglets Joueur.
B32: Comment remplir votre position en match play durant le parcours :
C34: Trou | D34: 1 | E34: 2 | F34: 3 | G34: 4
C35: SPIETH
C36: Coups | D36: 4 | E36: 5 | F36: 4 | G36: x
C37: Position | D37: 1 UP | E37: AS | F37: AS
C38: DUBUISSON
C39: Coups | D39: 6 | E39: 6 | F39: 5 | G39: 5
C40: Coups reçus | D40: 1 | E40: 2 | F40: 1 | G40: 1
C41: Position | E41: AS | F41: AS | G41: 1 UP
C43: Trou 1 : Dubuisson a 1 coup rendu, il a donc droit à 1 coup de plus que son adversaire pour gagner le trou.
D44: Mais il fait 2 coups de plus : son adversaire gagne le trou et passe à 1 UP.
C45: Trou 2 : Cette fois Dubuisson a 2 coups rendus, et ne fait que 1 coup de plus que son adversaire.
D46: Dubuisson gagne le trou, et la position passe à égalité (AS = All Square).
C47: Trou 3 : Un coup rendu, Dubuisson fait un coup de plus de son adversaire.
D48: Partage du trou, status quo, la position reste à AS.
C49: Trou 4 : Un coup rendu, mais Spieth abandonne ou concède le trou.
D50: Dubuisson gagne le trou et passe à 1 UP.

Sheet Parcours (hidden)
A1: Parcours | B1: Trous | C1: PAR | D1: 1 | E1: =D1+1 -> 2 | F1: 3 | G1: 4 | H1: 5 | I1: 6 | J1: 7 | K1: 8 | L1: 9 | M1: =L1+1 -> 10 | N1: =M1+1 -> 11 | O1: 12 | P1: 13 | Q1: 14 | R1: 15 | S1: 16 | T1: 17 | U1: 18 | V1: Handicap | W1: 1 | X1: =W1+1 -> 2 | Y1: =X1+1 -> 3 | Z1: =Y1+1 -> 4 | AA1: =Z1+1 -> 5 | AB1: =AA1+1 -> 6 | AC1: =AB1+1 -> 7 | AD1: =AC1+1 -> 8 | AE1: =AD1+1 -> 9 | AF1: =AE1+1 -> 10 | AG1: =AF1+1 -> 11 | AH1: =AG1+1 -> 12 | AI1: =AH1+1 -> 13 | AJ1: =AI1+1 -> 14 | AK1: =AJ1+1 -> 15 | AL1: =AK1+1 -> 16 | AM1: =AL1+1 -> 17 | AN1: =AM1+1 -> 18 | AO1: Slope blanc | AP1: SSS blanc | AQ1: Slope jaune | AR1: SSS jaune | AS1: Slope bleu | AT1: SSS bleu | AU1: Slope rouge | AV1: SSS rouge
A2: Ableiges - Les étangs | B2: 18 | C2: PAR | D2: 4 | E2: 4 | F2: 5 | G2: 3 | H2: 4 | I2: 5 | J2: 4 | K2: 3 | L2: 4 | M2: 5 | N2: 4 | O2: 3 | P2: 4 | Q2: 4 | R2: 5 | S2: 4 | T2: 3 | U2: 4 | V2: Handicap | W2: 4 | X2: 6 | Y2: 12 | Z2: 8 | AA2: 2 | AB2: 10 | AC2: 16 | AD2: 18 | AE2: 14 | AF2: 13 | AG2: 3 | AH2: 11 | AI2: 5 | AJ2: 7 | AK2: 15 | AL2: 1 | AM2: 17 | AN2: 9 | AO2: 139 | AP2: 73.6 | AQ2: 132 | AR2: 71.3 | AS2: 134 | AT2: 74.1 | AU2: 129 | AV2: 71.4
A3: Apremont | B3: 18 | C3: PAR | D3: 4 | E3: 5 | F3: 3 | G3: 5 | H3: 4 | I3: 4 | J3: 4 | K3: 3 | L3: 4 | M3: 5 | N3: 4 | O3: 3 | P3: 4 | Q3: 5 | R3: 4 | S3: 3 | T3: 4 | U3: 4 | V3: Handicap | W3: 5 | X3: 9 | Y3: 15 | Z3: 1 | AA3: 7 | AB3: 17 | AC3: 3 | AD3: 13 | AE3: 11 | AF3: 10 | AG3: 2 | AH3: 16 | AI3: 6 | AJ3: 12 | AK3: 4 | AL3: 14 | AM3: 18 | AN3: 8 | AO3: 134 | AP3: 73.1 | AQ3: 124 | AR3: 70 | AS3: 122 | AT3: 73.4 | AU3: 120 | AV3: 71.3
A4: Bellefontaine - Rouge | B4: 9 | C4: PAR | D4: 4 | E4: 4 | F4: 5 | G4: 3 | H4: 4 | I4: 3 | J4: 4 | K4: 4 | L4: 5 | V4: Handicap | W4: 8 | X4: 5 | Y4: 6 | Z4: 9 | AA4: 4 | AB4: 3 | AC4: 2 | AD4: 1 | AE4: 7 | AO4: 64 | AP4: 35.4 | AQ4: 63 | AR4: 34.4 | AS4: 64 | AT4: 36.3 | AU4: 58 | AV4: 34.9
A5: Bellefontaine - Jaune Blanc | B5: 18 | C5: PAR | D5: 4 | E5: 4 | F5: 5 | G5: 4 | H5: 3 | I5: 4 | J5: 3 | K5: 5 | L5: 4 | M5: 4 | N5: 4 | O5: 4 | P5: 3 | Q5: 4 | R5: 5 | S5: 3 | T5: 4 | U5: 5 | V5: Handicap | W5: 17 | X5: 1 | Y5: 7 | Z5: 3 | AA5: 9 | AB5: 11 | AC5: 15 | AD5: 13 | AE5: 5 | AF5: 18 | AG5: 14 | AH5: 8 | AI5: 6 | AJ5: 2 | AK5: 16 | AL5: 10 | AM5: 4 | AN5: 12 | AO5: 128 | AP5: 72.9 | AQ5: 125 | AR5: 70.2 | AS5: 125 | AT5: 72.9 | AU5: 123 | AV5: 69.8
A6: Bellefontaine - Jaune Rouge | B6: 18 | C6: PAR | D6: 4 | E6: 4 | F6: 5 | G6: 4 | H6: 3 | I6: 4 | J6: 3 | K6: 5 | L6: 4 | M6: 4 | N6: 4 | O6: 5 | P6: 3 | Q6: 4 | R6: 3 | S6: 4 | T6: 4 | U6: 5 | V6: Handicap | W6: 17 | X6: 1 | Y6: 7 | Z6: 3 | AA6: 9 | AB6: 11 | AC6: 15 | AD6: 13 | AE6: 5 | AF6: 16 | AG6: 10 | AH6: 12 | AI6: 18 | AJ6: 8 | AK6: 6 | AL6: 4 | AM6: 2 | AN6: 14 | AO6: 127 | AP6: 72.2 | AQ6: 125 | AR6: 70 | AS6: 126 | AT6: 73 | AU6: 120 | AV6: 70
A7: Bellême | B7: 18 | C7: PAR | D7: 5 | E7: 4 | F7: 3 | G7: 4 | H7: 5 | I7: 3 | J7: 4 | K7: 4 | L7: 5 | M7: 4 | N7: 4 | O7: 5 | P7: 4 | Q7: 3 | R7: 4 | S7: 3 | T7: 4 | U7: 4 | V7: Handicap | W7: 14 | X7: 18 | Y7: 4 | Z7: 2 | AA7: 16 | AB7: 6 | AC7: 8 | AD7: 12 | AE7: 10 | AF7: 1 | AG7: 3 | AH7: 17 | AI7: 9 | AJ7: 7 | AK7: 15 | AL7: 5 | AM7: 11 | AN7: 13 | AO7: 135 | AP7: 72.5 | AQ7: 127 | AR7: 70.5 | AS7: 125 | AT7: 72.4 | AU7: 121 | AV7: 70.1
A8: Béthemont | B8: 18 | C8: PAR | D8: 4 | E8: 3 | F8: 4 | G8: 4 | H8: 3 | I8: 5 | J8: 3 | K8: 5 | L8: 5 | M8: 4 | N8: 5 | O8: 4 | P8: 3 | Q8: 5 | R8: 4 | S8: 4 | T8: 3 | U8: 4 | V8: Handicap | W8: 7 | X8: 13 | Y8: 1 | Z8: 3 | AA8: 15 | AB8: 9 | AC8: 17 | AD8: 11 | AE8: 5 | AF8: 14 | AG8: 8 | AH8: 6 | AI8: 12 | AJ8: 16 | AK8: 2 | AL8: 10 | AM8: 18 | AN8: 4 | AO8: 134 | AP8: 73.1 | AQ8: 122 | AR8: 71.2 | AS8: 131 | AT8: 74.8 | AU8: 126 | AV8: 72.5
A9: Boucles de Seine | B9: 18 | C9: PAR | D9: 4 | E9: 4 | F9: 4 | G9: 3 | H9: 5 | I9: 4 | J9: 3 | K9: 4 | L9: 4 | M9: 4 | N9: 4 | O9: 4 | P9: 4 | Q9: 4 | R9: 3 | S9: 4 | T9: 3 | U9: 5 | V9: Handicap | W9: 6 | X9: 7 | Y9: 3 | Z9: 15 | AA9: 1 | AB9: 5 | AC9: 18 | AD9: 9 | AE9: 4 | AF9: 8 | AG9: 13 | AH9: 11 | AI9: 12 | AJ9: 10 | AK9: 16 | AL9: 14 | AM9: 17 | AN9: 2 | AO9: 129 | AP9: 69.1 | AQ9: 124 | AR9: 67.1 | AS9: 124 | AT9: 68 | AU9: 120 | AV9: 67.1
A10: Buc | B10: 9 | C10: PAR | D10: 3 | E10: 3 | F10: 3 | G10: 4 | H10: 3 | I10: 3 | J10: 3 | K10: 3 | L10: 3 | V10: Handicap | W10: 4 | X10: 6 | Y10: 3 | Z10: 1 | AA10: 7 | AB10: 5 | AC10: 9 | AD10: 8 | AE10: 2 | AO10: 45 | AP10: 26.1 | AQ10: 45 | AR10: 26.1 | AS10: 45 | AT10: 26.2 | AU10: 45 | AV10: 26.2
A11: Caen - Plaine Vallon | B11: 18 | C11: PAR | D11: 4 | E11: 4 | F11: 3 | G11: 4 | H11: 5 | I11: 3 | J11: 4 | K11: 4 | L11: 5 | M11: 4 | N11: 5 | O11: 3 | P11: 4 | Q11: 3 | R11: 4 | S11: 5 | T11: 4 | U11: 4 | V11: Handicap | W11: 6 | X11: 8 | Y11: 17 | Z11: 7 | AA11: 12 | AB11: 15 | AC11: 1 | AD11: 3 | AE11: 13 | AF11: 5 | AG11: 14 | AH11: 9 | AI11: 2 | AJ11: 10 | AK11: 11 | AL11: 16 | AM11: 18 | AN11: 4 | AO11: 130 | AP11: 72.8 | AQ11: 123 | AR11: 70.8 | AS11: 129 | AT11: 73.8 | AU11: 125 | AV11: 71.7
A12: Cély | B12: 18 | C12: PAR | D12: 5 | E12: 4 | F12: 4 | G12: 4 | H12: 3 | I12: 5 | J12: 3 | K12: 4 | L12: 4 | M12: 5 | N12: 4 | O12: 3 | P12: 4 | Q12: 4 | R12: 5 | S12: 4 | T12: 3 | U12: 4 | V12: Handicap | W12: 8 | X12: 16 | Y12: 8 | Z12: 9 | AA12: 3 | AB12: 1 | AC12: 18 | AD12: 7 | AE12: 4 | AF12: 5 | AG12: 15 | AH12: 14 | AI12: 12 | AJ12: 11 | AK12: 2 | AL12: 13 | AM12: 17 | AN12: 10 | AO12: 133 | AP12: 72.5 | AQ12: 131 | AR12: 70 | AS12: 132 | AT12: 73.3 | AU12: 131 | AV12: 71.1
A13: Cergy-Vauréal | B13: 18 | C13: PAR | D13: 4 | E13: 3 | F13: 4 | G13: 3 | H13: 4 | I13: 3 | J13: 4 | K13: 4 | L13: 5 | M13: 4 | N13: 5 | O13: 3 | P13: 4 | Q13: 4 | R13: 4 | S13: 5 | T13: 3 | U13: 5 | V13: Handicap | W13: 17 | X13: 18 | Y13: 10 | Z13: 13 | AA13: 1 | AB13: 14 | AC13: 2 | AD13: 15 | AE13: 5 | AF13: 4 | AG13: 8 | AH13: 16 | AI13: 7 | AJ13: 3 | AK13: 12 | AL13: 6 | AM13: 11 | AN13: 9 | AO13: 134 | AP13: 69.4 | AQ13: 120 | AR13: 68.3 | AS13: 123 | AT13: 70.7 | AU13: 118 | AV13: 68.5
A14: Champ de Bataille | B14: 18 | C14: PAR | D14: 4 | E14: 3 | F14: 4 | G14: 5 | H14: 3 | I14: 4 | J14: 4 | K14: 5 | L14: 4 | M14: 5 | N14: 4 | O14: 3 | P14: 4 | Q14: 4 | R14: 4 | S14: 5 | T14: 3 | U14: 4 | V14: Handicap | W14: 9 | X14: 16 | Y14: 3 | Z14: 1 | AA14: 18 | AB14: 17 | AC14: 11 | AD14: 4 | AE14: 6 | AF14: 12 | AG14: 8 | AH14: 14 | AI14: 2 | AJ14: 13 | AK14: 5 | AL14: 10 | AM14: 15 | AN14: 7 | AO14: 139 | AP14: 72.6 | AQ14: 135 | AR14: 71 | AS14: 141 | AT14: 71.4 | AU14: 128 | AV14: 70.2
A15: Chaumont - Bertichères | B15: 18 | C15: PAR | D15: 4 | E15: 3 | F15: 4 | G15: 4 | H15: 3 | I15: 5 | J15: 4 | K15: 4 | L15: 4 | M15: 4 | N15: 5 | O15: 3 | P15: 4 | Q15: 3 | R15: 5 | S15: 4 | T15: 4 | U15: 5 | V15: Handicap | W15: 7 | X15: 17 | Y15: 3 | Z15: 11 | AA15: 5 | AB15: 9 | AC15: 1 | AD15: 13 | AE15: 15 | AF15: 8 | AG15: 2 | AH15: 18 | AI15: 12 | AJ15: 16 | AK15: 4 | AL15: 6 | AM15: 14 | AN15: 10 | AO15: 144 | AP15: 73.7 | AQ15: 138 | AR15: 70.7 | AS15: 135 | AT15: 73.3 | AU15: 135 | AV15: 73.3
A16: Courson - Lilas Orange | B16: 18 | C16: PAR | D16: 4 | E16: 4 | F16: 4 | G16: 3 | H16: 4 | I16: 5 | J16: 4 | K16: 3 | L16: 5 | M16: 5 | N16: 4 | O16: 4 | P16: 4 | Q16: 3 | R16: 4 | S16: 4 | T16: 3 | U16: 5 | V16: Handicap | W16: 8 | X16: 16 | Y16: 2 | Z16: 14 | AA16: 10 | AB16: 6 | AC16: 4 | AD16: 12 | AE16: 18 | AF16: 17 | AG16: 9 | AH16: 11 | AI16: 15 | AJ16: 5 | AK16: 3 | AL16: 1 | AM16: 13 | AN16: 7 | AO16: 135 | AP16: 73.6 | AQ16: 126 | AR16: 71.5 | AS16: 126 | AT16: 72.8 | AU16: 120 | AV16: 70
A17: Courson - Vert Lilas | B17: 18 | C17: PAR | D17: 4 | E17: 3 | F17: 4 | G17: 4 | H17: 5 | I17: 4 | J17: 4 | K17: 3 | L17: 5 | M17: 4 | N17: 4 | O17: 4 | P17: 3 | Q17: 4 | R17: 5 | S17: 4 | T17: 3 | U17: 5 | V17: Handicap | W17: 6 | X17: 17 | Y17: 15 | Z17: 8 | AA17: 1 | AB17: 3 | AC17: 5 | AD17: 13 | AE17: 10 | AF17: 9 | AG17: 16 | AH17: 2 | AI17: 14 | AJ17: 7 | AK17: 11 | AL17: 4 | AM17: 12 | AN17: 18 | AO17: 131 | AP17: 75.6 | AQ17: 126 | AR17: 72.8 | AS17: 127 | AT17: 75 | AU17: 123 | AV17: 71.8
A18: Courson - Vert Noir | B18: 18 | C18: PAR | D18: 4 | E18: 3 | F18: 4 | G18: 4 | H18: 5 | I18: 4 | J18: 4 | K18: 3 | L18: 5 | M18: 4 | N18: 3 | O18: 4 | P18: 4 | Q18: 5 | R18: 3 | S18: 4 | T18: 4 | U18: 5 | V18: Handicap | W18: 7 | X18: 17 | Y18: 15 | Z18: 9 | AA18: 1 | AB18: 3 | AC18: 5 | AD18: 13 | AE18: 11 | AF18: 2 | AG18: 18 | AH18: 10 | AI18: 12 | AJ18: 4 | AK18: 14 | AL18: 8 | AM18: 6 | AN18: 16 | AO18: 131 | AP18: 75.7 | AQ18: 126 | AR18: 72.9 | AS18: 131 | AT18: 74.8 | AU18: 122 | AV18: 71.5
A19: Courson - Vert Orange | B19: 18 | C19: PAR | D19: 4 | E19: 3 | F19: 4 | G19: 4 | H19: 5 | I19: 4 | J19: 4 | K19: 3 | L19: 5 | M19: 5 | N19: 4 | O19: 4 | P19: 4 | Q19: 3 | R19: 4 | S19: 4 | T19: 3 | U19: 5 | V19: Handicap | W19: 7 | X19: 17 | Y19: 15 | Z19: 9 | AA19: 1 | AB19: 3 | AC19: 5 | AD19: 13 | AE19: 11 | AF19: 18 | AG19: 10 | AH19: 12 | AI19: 16 | AJ19: 6 | AK19: 4 | AL19: 2 | AM19: 14 | AN19: 8 | AO19: 142 | AP19: 72.6 | AQ19: 135 | AR19: 71.1 | AS19: 135 | AT19: 74.1 | AU19: 126 | AV19: 71.4
A20: Crécy - Vignoly | B20: 18 | C20: PAR | D20: 4 | E20: 5 | F20: 3 | G20: 4 | H20: 4 | I20: 5 | J20: 4 | K20: 3 | L20: 4 | M20: 5 | N20: 3 | O20: 4 | P20: 5 | Q20: 4 | R20: 4 | S20: 3 | T20: 4 | U20: 4 | V20: Handicap | W20: 11 | X20: 7 | Y20: 3 | Z20: 15 | AA20: 1 | AB20: 9 | AC20: 5 | AD20: 13 | AE20: 17 | AF20: 16 | AG20: 6 | AH20: 8 | AI20: 10 | AJ20: 18 | AK20: 4 | AL20: 14 | AM20: 12 | AN20: 2 | AO20: 142 | AP20: 73.1 | AQ20: 136 | AR20: 70.6 | AS20: 135 | AT20: 74.4 | AU20: 127 | AV20: 72.3
A21: Dieppe | B21: 18 | C21: PAR | D21: 4 | E21: 3 | F21: 5 | G21: 4 | H21: 4 | I21: 3 | J21: 4 | K21: 4 | L21: 4 | M21: 3 | N21: 4 | O21: 4 | P21: 4 | Q21: 5 | R21: 3 | S21: 5 | T21: 3 | U21: 4 | V21: Handicap | W21: 17 | X21: 13 | Y21: 15 | Z21: 1 | AA21: 3 | AB21: 9 | AC21: 7 | AD21: 5 | AE21: 11 | AF21: 18 | AG21: 8 | AH21: 6 | AI21: 2 | AJ21: 10 | AK21: 16 | AL21: 4 | AM21: 12 | AN21: 14 | AO21: 131 | AP21: 71.2 | AQ21: 127 | AR21: 70 | AS21: 130 | AT21: 72.5 | AU21: 126 | AV21: 71.1
A22: Disneyland - Rouge Bleu | B22: 18 | C22: PAR | D22: 5 | E22: 3 | F22: 5 | G22: 4 | H22: 3 | I22: 5 | J22: 4 | K22: 3 | L22: 4 | M22: 4 | N22: 4 | O22: 4 | P22: 3 | Q22: 5 | R22: 3 | S22: 4 | T22: 4 | U22: 5 | V22: Handicap | W22: 8 | X22: 16 | Y22: 4 | Z22: 12 | AA22: 18 | AB22: 2 | AC22: 6 | AD22: 14 | AE22: 10 | AF22: 13 | AG22: 17 | AH22: 5 | AI22: 9 | AJ22: 1 | AK22: 15 | AL22: 11 | AM22: 3 | AN22: 7 | AO22: 131 | AP22: 72 | AQ22: 123 | AR22: 69.9 | AS22: 132 | AT22: 72.8 | AU22: 127 | AV22: 70.4
A23: Etiolles - Les Cerfs | B23: 18 | C23: PAR | D23: 5 | E23: 4 | F23: 4 | G23: 4 | H23: 3 | I23: 5 | J23: 4 | K23: 5 | L23: 3 | M23: 4 | N23: 4 | O23: 4 | P23: 5 | Q23: 4 | R23: 3 | S23: 5 | T23: 3 | U23: 4 | V23: Handicap | W23: 8 | X23: 12 | Y23: 2 | Z23: 18 | AA23: 10 | AB23: 4 | AC23: 14 | AD23: 6 | AE23: 16 | AF23: 13 | AG23: 7 | AH23: 1 | AI23: 3 | AJ23: 17 | AK23: 15 | AL23: 9 | AM23: 11 | AN23: 5 | AO23: 130 | AP23: 71.9 | AQ23: 121 | AR23: 69.5 | AS23: 128 | AT23: 73.5 | AU23: 119 | AV23: 71.5
A24: Etiolles - Les Chênes | B24: 9 | C24: PAR | D24: 4 | E24: 3 | F24: 4 | G24: 4 | H24: 4 | I24: 4 | J24: 4 | K24: 3 | L24: 5 | V24: Handicap | W24: 4 | X24: 5 | Y24: 7 | Z24: 6 | AA24: 8 | AB24: 1 | AC24: 9 | AD24: 3 | AE24: 2 | AO24: 57 | AP24: 34.3 | AQ24: 53 | AR24: 32.9 | AS24: 61 | AT24: 34.4 | AU24: 57 | AV24: 33.5
A25: Evreux | B25: 18 | C25: PAR | D25: 4 | E25: 5 | F25: 4 | G25: 4 | H25: 3 | I25: 5 | J25: 3 | K25: 4 | L25: 4 | M25: 4 | N25: 4 | O25: 5 | P25: 3 | Q25: 4 | R25: 5 | S25: 3 | T25: 4 | U25: 4 | V25: Handicap | W25: 9 | X25: 7 | Y25: 11 | Z25: 1 | AA25: 15 | AB25: 13 | AC25: 17 | AD25: 3 | AE25: 5 | AF25: 14 | AG25: 18 | AH25: 6 | AI25: 10 | AJ25: 2 | AK25: 16 | AL25: 8 | AM25: 12 | AN25: 4 | AO25: 135 | AP25: 72.7 | AQ25: 123 | AR25: 69.7 | AS25: 128 | AT25: 72.9 | AU25: 121 | AV25: 70.4
A26: Feucherolles | B26: 18 | C26: PAR | D26: 4 | E26: 4 | F26: 4 | G26: 3 | H26: 4 | I26: 5 | J26: 3 | K26: 4 | L26: 5 | M26: 4 | N26: 5 | O26: 4 | P26: 3 | Q26: 4 | R26: 3 | S26: 4 | T26: 4 | U26: 5 | V26: Handicap | W26: 18 | X26: 12 | Y26: 16 | Z26: 10 | AA26: 14 | AB26: 8 | AC26: 6 | AD26: 4 | AE26: 2 | AF26: 11 | AG26: 7 | AH26: 9 | AI26: 3 | AJ26: 1 | AK26: 5 | AL26: 17 | AM26: 15 | AN26: 13 | AO26: 141 | AP26: 74.6 | AQ26: 138 | AR26: 72.1 | AS26: 139 | AT26: 75.8 | AU26: 137 | AV26: 72.2
A27: Forges les Bains | B27: 18 | C27: PAR | D27: 4 | E27: 3 | F27: 4 | G27: 4 | H27: 5 | I27: 4 | J27: 4 | K27: 3 | L27: 5 | M27: 4 | N27: 4 | O27: 3 | P27: 5 | Q27: 4 | R27: 3 | S27: 4 | T27: 4 | U27: 5 | V27: Handicap | W27: 1 | X27: 17 | Y27: 5 | Z27: 7 | AA27: 9 | AB27: 3 | AC27: 11 | AD27: 15 | AE27: 13 | AF27: 4 | AG27: 2 | AH27: 18 | AI27: 12 | AJ27: 6 | AK27: 16 | AL27: 14 | AM27: 8 | AN27: 10 | AO27: 134 | AP27: 72.1 | AQ27: 130 | AR27: 70.1 | AS27: 124 | AT27: 73.1 | AU27: 124 | AV27: 70.4
A28: Fourqueux - Blanc Rouge | B28: 18 | C28: PAR | D28: 4 | E28: 5 | F28: 4 | G28: 4 | H28: 4 | I28: 3 | J28: 5 | K28: 4 | L28: 3 | M28: 4 | N28: 4 | O28: 4 | P28: 3 | Q28: 4 | R28: 4 | S28: 4 | T28: 5 | U28: 3 | V28: Handicap | W28: 15 | X28: 7 | Y28: 13 | Z28: 1 | AA28: 11 | AB28: 3 | AC28: 17 | AD28: 9 | AE28: 5 | AF28: 4 | AG28: 8 | AH28: 10 | AI28: 6 | AJ28: 14 | AK28: 18 | AL28: 2 | AM28: 12 | AN28: 16 | AO28: 138 | AP28: 71.4 | AQ28: 131 | AR28: 69.9 | AS28: 135 | AT28: 73.1 | AU28: 124 | AV28: 71.7
A29: Fourqueux - Bleu Blanc | B29: 18 | C29: PAR | D29: 4 | E29: 4 | F29: 3 | G29: 4 | H29: 5 | I29: 4 | J29: 5 | K29: 3 | L29: 5 | M29: 4 | N29: 5 | O29: 4 | P29: 4 | Q29: 4 | R29: 3 | S29: 5 | T29: 4 | U29: 3 | V29: Handicap | W29: 5 | X29: 7 | Y29: 13 | Z29: 15 | AA29: 11 | AB29: 1 | AC29: 9 | AD29: 17 | AE29: 3 | AF29: 16 | AG29: 8 | AH29: 14 | AI29: 2 | AJ29: 12 | AK29: 4 | AL29: 18 | AM29: 10 | AN29: 6 | AO29: 138 | AP29: 71.8 | AQ29: 129 | AR29: 70.4 | AS29: 130 | AT29: 73.6 | AU29: 123 | AV29: 72.7
A30: Fourqueux - Rouge Bleu | B30: 18 | C30: PAR | D30: 4 | E30: 4 | F30: 4 | G30: 3 | H30: 4 | I30: 4 | J30: 4 | K30: 5 | L30: 3 | M30: 4 | N30: 4 | O30: 3 | P30: 4 | Q30: 5 | R30: 4 | S30: 5 | T30: 3 | U30: 5 | V30: Handicap | W30: 15 | X30: 7 | Y30: 13 | Z30: 1 | AA30: 11 | AB30: 3 | AC30: 17 | AD30: 9 | AE30: 5 | AF30: 4 | AG30: 8 | AH30: 10 | AI30: 6 | AJ30: 14 | AK30: 18 | AL30: 2 | AM30: 12 | AN30: 16 | AO30: 138 | AP30: 69.5 | AQ30: 125 | AR30: 68.6 | AS30: 136 | AT30: 71.4 | AU30: 123 | AV30: 69.7
A31: Gadancourt | B31: 18 | C31: PAR | D31: 4 | E31: 4 | F31: 4 | G31: 3 | H31: 4 | I31: 5 | J31: 4 | K31: 4 | L31: 3 | M31: 5 | N31: 3 | O31: 4 | P31: 5 | Q31: 4 | R31: 3 | S31: 4 | T31: 5 | U31: 4 | V31: Handicap | W31: 3 | X31: 11 | Y31: 13 | Z31: 9 | AA31: 8 | AB31: 1 | AC31: 5 | AD31: 18 | AE31: 10 | AF31: 14 | AG31: 16 | AH31: 6 | AI31: 7 | AJ31: 2 | AK31: 12 | AL31: 15 | AM31: 17 | AN31: 4 | AO31: 127 | AP31: 72.8 | AQ31: 125 | AR31: 71.7 | AS31: 125 | AT31: 72.5 | AU31: 124 | AV31: 69.6
A32: Gif Chevry | B32: 9 | C32: PAR | D32: 4 | E32: 4 | F32: 3 | G32: 4 | H32: 3 | I32: 4 | J32: 4 | K32: 3 | L32: 4 | V32: Handicap | W32: 8 | X32: 6 | Y32: 4 | Z32: 1 | AA32: 7 | AB32: 2 | AC32: 3 | AD32: 9 | AE32: 5 | AO32: 59 | AP32: 33.7 | AQ32: 58 | AR32: 33.4 | AS32: 28 | AT32: 33.9 | AU32: 58 | AV32: 33.1
A33: Grenouillère | B33: 9 | C33: PAR | D33: 3 | E33: 3 | F33: 3 | G33: 3 | H33: 3 | I33: 3 | J33: 4 | K33: 3 | L33: 3 | V33: Handicap | W33: 3 | X33: 9 | Y33: 1 | Z33: 2 | AA33: 8 | AB33: 6 | AC33: 5 | AD33: 4 | AE33: 7 | AO33: 44 | AP33: 28.1 | AQ33: 44 | AR33: 28.1 | AS33: 43 | AT33: 28.3 | AU33: 43 | AV33: 28.3
A34: Guerville | B34: 18 | C34: PAR | D34: 4 | E34: 4 | F34: 3 | G34: 5 | H34: 4 | I34: 5 | J34: 4 | K34: 3 | L34: 5 | M34: 5 | N34: 4 | O34: 3 | P34: 4 | Q34: 3 | R34: 4 | S34: 5 | T34: 3 | U34: 4 | V34: Handicap | W34: 11 | X34: 1 | Y34: 17 | Z34: 7 | AA34: 13 | AB34: 3 | AC34: 5 | AD34: 15 | AE34: 9 | AF34: 10 | AG34: 18 | AH34: 16 | AI34: 8 | AJ34: 14 | AK34: 2 | AL34: 6 | AM34: 12 | AN34: 4 | AO34: 126 | AP34: 71.1 | AQ34: 120 | AR34: 69.1 | AS34: 125 | AT34: 71.1 | AU34: 119 | AV34: 69.2
A35: Haras de Jardy | B35: 9 | C35: PAR | D35: 3 | E35: 3 | F35: 4 | G35: 3 | H35: 3 | I35: 3 | J35: 4 | K35: 3 | L35: 4 | V35: Handicap | W35: 6 | X35: 5 | Y35: 1 | Z35: 3 | AA35: 7 | AB35: 9 | AC35: 2 | AD35: 8 | AE35: 4 | AO35: 47 | AP35: 28.8 | AQ35: 47 | AR35: 28.8 | AS35: 49 | AT35: 28.9 | AU35: 57 | AV35: 28.9
A36: Houlgate | B36: 18 | C36: PAR | D36: 4 | E36: 3 | F36: 5 | G36: 3 | H36: 4 | I36: 4 | J36: 5 | K36: 3 | L36: 5 | M36: 4 | N36: 3 | O36: 4 | P36: 5 | Q36: 4 | R36: 3 | S36: 5 | T36: 4 | U36: 3 | V36: Handicap | W36: 10 | X36: 6 | Y36: 4 | Z36: 8 | AA36: 2 | AB36: 12 | AC36: 16 | AD36: 14 | AE36: 18 | AF36: 15 | AG36: 17 | AH36: 1 | AI36: 13 | AJ36: 9 | AK36: 11 | AL36: 3 | AM36: 5 | AN36: 7 | AO36: 133 | AP36: 71 | AQ36: 124 | AR36: 68.5 | AS36: 125 | AT36: 71.9 | AU36: 122 | AV36: 70.1
A37: Ile Fleurie | B37: 9 | C37: PAR | D37: 3 | E37: 3 | F37: 3 | G37: 3 | H37: 4 | I37: 3 | J37: 3 | K37: 3 | L37: 3 | V37: Handicap | W37: 3 | X37: 7 | Y37: 8 | Z37: 5 | AA37: 1 | AB37: 6 | AC37: 9 | AD37: 2 | AE37: 4 | AO37: 48 | AP37: 29 | AQ37: 48 | AR37: 29 | AS37: 44 | AT37: 28.1 | AU37: 44 | AV37: 28.1
A38: Isabella | B38: 18 | C38: PAR | D38: 4 | E38: 4 | F38: 5 | G38: 3 | H38: 4 | I38: 4 | J38: 5 | K38: 3 | L38: 4 | M38: 5 | N38: 4 | O38: 4 | P38: 4 | Q38: 3 | R38: 4 | S38: 4 | T38: 3 | U38: 4 | V38: Handicap | W38: 6 | X38: 12 | Y38: 2 | Z38: 18 | AA38: 10 | AB38: 14 | AC38: 4 | AD38: 16 | AE38: 8 | AF38: 11 | AG38: 1 | AH38: 5 | AI38: 3 | AJ38: 9 | AK38: 15 | AL38: 17 | AM38: 13 | AN38: 7 | AO38: 130 | AP38: 70.7 | AQ38: 128 | AR38: 68.7 | AS38: 128 | AT38: 72.2 | AU38: 127 | AV38: 69.8
A39: Joyenval - Marly | B39: 18 | C39: PAR | D39: 4 | E39: 5 | F39: 3 | G39: 5 | H39: 4 | I39: 4 | J39: 4 | K39: 3 | L39: 4 | M39: 4 | N39: 3 | O39: 4 | P39: 4 | Q39: 4 | R39: 4 | S39: 5 | T39: 3 | U39: 5 | V39: Handicap | W39: 17 | X39: 9 | Y39: 15 | Z39: 5 | AA39: 13 | AB39: 1 | AC39: 11 | AD39: 7 | AE39: 3 | AF39: 2 | AG39: 14 | AH39: 8 | AI39: 4 | AJ39: 18 | AK39: 12 | AL39: 10 | AM39: 6 | AN39: 16 | AO39: 144 | AP39: 72.3 | AQ39: 135 | AR39: 70.1 | AS39: 134 | AT39: 73.4 | AU39: 128 | AV39: 70
A40: Joyenval - Retz | B40: 18 | C40: PAR | D40: 4 | E40: 3 | F40: 4 | G40: 5 | H40: 4 | I40: 5 | J40: 3 | K40: 4 | L40: 4 | M40: 4 | N40: 3 | O40: 4 | P40: 5 | Q40: 4 | R40: 3 | S40: 5 | T40: 4 | U40: 4 | V40: Handicap | W40: 15 | X40: 9 | Y40: 17 | Z40: 1 | AA40: 3 | AB40: 11 | AC40: 13 | AD40: 5 | AE40: 7 | AF40: 8 | AG40: 2 | AH40: 18 | AI40: 14 | AJ40: 4 | AK40: 12 | AL40: 10 | AM40: 6 | AN40: 16 | AO40: 141 | AP40: 72.1 | AQ40: 132 | AR40: 70.1 | AS40: 132 | AT40: 73.3 | AU40: 125 | AV40: 70.1
A41: La Boulie - La Forêt | B41: 18 | C41: PAR | D41: 4 | E41: 3 | F41: 5 | G41: 4 | H41: 5 | I41: 4 | J41: 4 | K41: 4 | L41: 3 | M41: 5 | N41: 3 | O41: 4 | P41: 3 | Q41: 5 | R41: 4 | S41: 4 | T41: 4 | U41: 4 | V41: Handicap | W41: 10 | X41: 18 | Y41: 11 | Z41: 1 | AA41: 13 | AB41: 8 | AC41: 3 | AD41: 6 | AE41: 15 | AF41: 2 | AG41: 12 | AH41: 4 | AI41: 17 | AJ41: 7 | AK41: 9 | AL41: 5 | AM41: 16 | AN41: 14 | AO41: 141 | AP41: 73.9 | AQ41: 126 | AR41: 72.4 | AS41: 130 | AT41: 74.8 | AU41: 120 | AV41: 73.4
A42: La Boulie - La Vallée | B42: 18 | C42: PAR | D42: 4 | E42: 4 | F42: 3 | G42: 5 | H42: 4 | I42: 4 | J42: 3 | K42: 5 | L42: 4 | M42: 3 | N42: 5 | O42: 4 | P42: 3 | Q42: 4 | R42: 3 | S42: 4 | T42: 5 | U42: 5 | V42: Handicap | W42: 5 | X42: 1 | Y42: 9 | Z42: 17 | AA42: 3 | AB42: 11 | AC42: 7 | AD42: 13 | AE42: 15 | AF42: 6 | AG42: 14 | AH42: 12 | AI42: 4 | AJ42: 8 | AK42: 10 | AL42: 2 | AM42: 16 | AN42: 18 | AO42: 138 | AP42: 72.8 | AQ42: 135 | AR42: 71.2 | AS42: 137 | AT42: 74.7 | AU42: 138 | AV42: 73.4
A43: La Chouette | B43: 18 | C43: PAR | D43: 4 | E43: 4 | F43: 3 | G43: 5 | H43: 4 | I43: 4 | J43: 3 | K43: 5 | L43: 4 | M43: 4 | N43: 5 | O43: 4 | P43: 4 | Q43: 3 | R43: 4 | S43: 4 | T43: 3 | U43: 5 | V43: Handicap | W43: 5 | X43: 11 | Y43: 9 | Z43: 13 | AA43: 17 | AB43: 1 | AC43: 7 | AD43: 15 | AE43: 3 | AF43: 4 | AG43: 10 | AH43: 18 | AI43: 12 | AJ43: 16 | AK43: 14 | AL43: 2 | AM43: 6 | AN43: 8 | AO43: 143 | AP43: 74.3 | AQ43: 135 | AR43: 71.8 | AS43: 143 | AT43: 75.4 | AU43: 134 | AV43: 72.6
A44: Les Aisses | B44: 18 | C44: PAR | D44: 5 | E44: 4 | F44: 3 | G44: 4 | H44: 4 | I44: 5 | J44: 3 | K44: 4 | L44: 4 | M44: 3 | N44: 4 | O44: 5 | P44: 4 | Q44: 4 | R44: 5 | S44: 4 | T44: 3 | U44: 4 | V44: Handicap | W44: 17 | X44: 5 | Y44: 9 | Z44: 7 | AA44: 1 | AB44: 15 | AC44: 11 | AD44: 13 | AE44: 3 | AF44: 16 | AG44: 2 | AH44: 10 | AI44: 8 | AJ44: 6 | AK44: 18 | AL44: 14 | AM44: 12 | AN44: 4 | AO44: 137 | AP44: 72.4 | AQ44: 136 | AR44: 71.5 | AS44: 135 | AT44: 73.3 | AU44: 130 | AV44: 71.7
A45: L'Isle Adam | B45: 18 | C45: PAR | D45: 4 | E45: 4 | F45: 4 | G45: 3 | H45: 5 | I45: 3 | J45: 4 | K45: 5 | L45: 4 | M45: 4 | N45: 4 | O45: 5 | P45: 3 | Q45: 4 | R45: 4 | S45: 3 | T45: 4 | U45: 5 | V45: Handicap | W45: 5 | X45: 3 | Y45: 1 | Z45: 11 | AA45: 9 | AB45: 17 | AC45: 15 | AD45: 13 | AE45: 7 | AF45: 10 | AG45: 6 | AH45: 14 | AI45: 12 | AJ45: 2 | AK45: 16 | AL45: 18 | AM45: 4 | AN45: 8 | AO45: 131 | AP45: 72.4 | AQ45: 128 | AR45: 69.9 | AS45: 126 | AT45: 72.3 | AU45: 121 | AV45: 68.9
A46: Mâcon - La Commanderie | B46: 18 | C46: PAR | D46: 4 | E46: 5 | F46: 5 | G46: 4 | H46: 4 | I46: 3 | J46: 4 | K46: 3 | L46: 4 | M46: 4 | N46: 5 | O46: 5 | P46: 4 | Q46: 4 | R46: 3 | S46: 4 | T46: 3 | U46: 4 | V46: Handicap | W46: 1 | X46: 5 | Y46: 9 | Z46: 7 | AA46: 11 | AB46: 3 | AC46: 17 | AD46: 15 | AE46: 13 | AF46: 2 | AG46: 6 | AH46: 10 | AI46: 8 | AJ46: 12 | AK46: 4 | AL46: 18 | AM46: 16 | AN46: 14 | AO46: 128 | AP46: 71.3 | AQ46: 130 | AR46: 69.2 | AS46: 114 | AT46: 72.4 | AU46: 117 | AV46: 70.8
A47: Mâcon - La Salle | B47: 18 | C47: PAR | D47: 4 | E47: 4 | F47: 3 | G47: 4 | H47: 5 | I47: 5 | J47: 4 | K47: 4 | L47: 3 | M47: 4 | N47: 4 | O47: 3 | P47: 4 | Q47: 4 | R47: 3 | S47: 4 | T47: 4 | U47: 5 | V47: Handicap | W47: 4 | X47: 17 | Y47: 11 | Z47: 6 | AA47: 13 | AB47: 15 | AC47: 18 | AD47: 2 | AE47: 9 | AF47: 1 | AG47: 7 | AH47: 16 | AI47: 12 | AJ47: 8 | AK47: 10 | AL47: 5 | AM47: 3 | AN47: 14 | AO47: 124 | AP47: 72.3 | AQ47: 120 | AR47: 70.6 | AS47: 119 | AT47: 71.9 | AU47: 118 | AV47: 70.5
A48: Maintenon | B48: 18 | C48: PAR | D48: 4 | E48: 4 | F48: 4 | G48: 4 | H48: 4 | I48: 4 | J48: 3 | K48: 4 | L48: 4 | M48: 3 | N48: 4 | O48: 4 | P48: 5 | Q48: 3 | R48: 4 | S48: 3 | T48: 4 | U48: 5 | V48: Handicap | W48: 7 | X48: 3 | Y48: 1 | Z48: 15 | AA48: 13 | AB48: 9 | AC48: 5 | AD48: 17 | AE48: 11 | AF48: 8 | AG48: 16 | AH48: 4 | AI48: 12 | AJ48: 2 | AK48: 6 | AL48: 10 | AM48: 18 | AN48: 14 | AO48: 131 | AP48: 69.5 | AQ48: 126 | AR48: 68.4 | AS48: 121 | AT48: 70.2 | AU48: 116 | AV48: 68.5
A49: Maisons Laffite | B49: 9 | C49: PAR | D49: 3 | E49: 4 | F49: 4 | G49: 3 | H49: 4 | I49: 3 | J49: 3 | K49: 3 | L49: 3 | V49: Handicap | W49: 9 | X49: 2 | Y49: 5 | Z49: 7 | AA49: 3 | AB49: 6 | AC49: 8 | AD49: 1 | AE49: 4 | AO49: 50 | AP49: 29.4 | AQ49: 49 | AR49: 29.1 | AS49: 52 | AT49: 29.6 | AU49: 49 | AV49: 29.2
A50: Marivaux | B50: 18 | C50: PAR | D50: 4 | E50: 4 | F50: 3 | G50: 5 | H50: 4 | I50: 4 | J50: 5 | K50: 3 | L50: 4 | M50: 4 | N50: 3 | O50: 4 | P50: 5 | Q50: 4 | R50: 4 | S50: 5 | T50: 3 | U50: 4 | V50: Handicap | W50: 3 | X50: 7 | Y50: 13 | Z50: 5 | AA50: 1 | AB50: 11 | AC50: 17 | AD50: 15 | AE50: 9 | AF50: 2 | AG50: 16 | AH50: 8 | AI50: 6 | AJ50: 12 | AK50: 10 | AL50: 18 | AM50: 14 | AN50: 4 | AO50: 138 | AP50: 72.8 | AQ50: 128 | AR50: 71 | AS50: 130 | AT50: 73.4 | AU50: 124 | AV50: 71
A51: Marolles en Brie | B51: 9 | C51: PAR | D51: 4 | E51: 4 | F51: 3 | G51: 4 | H51: 3 | I51: 5 | J51: 3 | K51: 3 | L51: 4 | M51: 4 | N51: 3 | O51: 4 | P51: 4 | Q51: 4 | R51: 3 | S51: 5 | T51: 4 | U51: 3 | V51: Handicap | W51: 7 | X51: 3 | Y51: 15 | Z51: 5 | AA51: 11 | AB51: 1 | AC51: 17 | AD51: 13 | AE51: 9 | AF51: 12 | AG51: 10 | AH51: 16 | AI51: 6 | AJ51: 2 | AK51: 4 | AL51: 8 | AM51: 18 | AN51: 14 | AO51: 56 | AP51: 31.9 | AQ51: 55 | AR51: 31.3 | AS51: 53 | AT51: 32.3 | AU51: 54 | AV51: 31.9
A52: Montgriffon - Les Lacs | B52: 18 | C52: PAR | D52: 4 | E52: 4 | F52: 4 | G52: 4 | H52: 5 | I52: 3 | J52: 3 | K52: 5 | L52: 4 | M52: 4 | N52: 3 | O52: 5 | P52: 5 | Q52: 4 | R52: 4 | S52: 3 | T52: 4 | U52: 4 | V52: Handicap | W52: 17 | X52: 8 | Y52: 4 | Z52: 6 | AA52: 13 | AB52: 15 | AC52: 10 | AD52: 7 | AE52: 2 | AF52: 14 | AG52: 18 | AH52: 9 | AI52: 16 | AJ52: 12 | AK52: 3 | AL52: 5 | AM52: 1 | AN52: 11 | AO52: 137 | AP52: 71.9 | AQ52: 130 | AR52: 70.5 | AS52: 133 | AT52: 73.7 | AU52: 127 | AV52: 71.3
A53: National - Aigle | B53: 18 | C53: PAR | D53: 4 | E53: 4 | F53: 4 | G53: 3 | H53: 4 | I53: 3 | J53: 5 | K53: 4 | L53: 4 | M53: 3 | N53: 4 | O53: 4 | P53: 3 | Q53: 4 | R53: 5 | S53: 4 | T53: 5 | U53: 4 | V53: Handicap | W53: 12 | X53: 2 | Y53: 18 | Z53: 16 | AA53: 6 | AB53: 14 | AC53: 10 | AD53: 8 | AE53: 4 | AF53: 9 | AG53: 11 | AH53: 1 | AI53: 17 | AJ53: 5 | AK53: 15 | AL53: 3 | AM53: 13 | AN53: 7 | AO53: 122 | AP53: 70.6 | AQ53: 120 | AR53: 69.4 | AS53: 125 | AT53: 71.9 | AU53: 119 | AV53: 70.5
A54: National - Albatros | B54: 18 | C54: PAR | D54: 4 | E54: 3 | F54: 5 | G54: 4 | H54: 4 | I54: 4 | J54: 4 | K54: 3 | L54: 5 | M54: 4 | N54: 3 | O54: 4 | P54: 4 | Q54: 5 | R54: 4 | S54: 3 | T54: 4 | U54: 5 | V54: Handicap | W54: 4 | X54: 6 | Y54: 12 | Z54: 8 | AA54: 16 | AB54: 18 | AC54: 2 | AD54: 14 | AE54: 10 | AF54: 9 | AG54: 17 | AH54: 7 | AI54: 3 | AJ54: 11 | AK54: 1 | AL54: 13 | AM54: 5 | AN54: 15 | AO54: 155 | AP54: 73.8 | AQ54: 141 | AR54: 71.6 | AS54: 148 | AT54: 75.1 | AU54: 141 | AV54: 74.2
A55: National - Oiselet | B55: 9 | C55: PAR | D55: 3 | E55: 4 | F55: 4 | G55: 4 | H55: 3 | I55: 3 | J55: 5 | K55: 3 | L55: 3 | V55: Handicap | W55: 7 | X55: 3 | Y55: 6 | Z55: 1 | AA55: 5 | AB55: 9 | AC55: 8 | AD55: 4 | AE55: 2 | AO55: 51 | AP55: 30.4 | AQ55: 51 | AR55: 30.4 | AS55: 51 | AT55: 31.2 | AU55: 51 | AV55: 31.2
A56: Noisy le Roy | B56: 9 | C56: PAR | D56: 3 | E56: 3 | F56: 3 | G56: 3 | H56: 3 | I56: 3 | J56: 3 | K56: 3 | L56: 3 | V56: Handicap | W56: 3 | X56: 8 | Y56: 4 | Z56: 7 | AA56: 5 | AB56: 9 | AC56: 6 | AD56: 2 | AE56: 1 | AO56: 42 | AP56: 27.5 | AQ56: 42 | AR56: 27.1 | AS56: 42 | AT56: 27.5 | AU56: 41 | AV56: 26.9
A57: Omaha Beach - Manoir | B57: 18 | C57: PAR | D57: 4 | E57: 3 | F57: 4 | G57: 4 | H57: 3 | I57: 5 | J57: 5 | K57: 4 | L57: 4 | M57: 4 | N57: 3 | O57: 4 | P57: 4 | Q57: 4 | R57: 4 | S57: 3 | T57: 4 | U57: 5 | V57: Handicap | W57: 13 | X57: 17 | Y57: 5 | Z57: 6 | AA57: 18 | AB57: 1 | AC57: 2 | AD57: 7 | AE57: 3 | AF57: 10 | AG57: 15 | AH57: 12 | AI57: 8 | AJ57: 9 | AK57: 11 | AL57: 16 | AM57: 14 | AN57: 4 | AO57: 144 | AP57: 73 | AQ57: 136 | AR57: 71.7 | AS57: 139 | AT57: 74.4 | AU57: 133 | AV57: 73.6
A58: Omaha Beach - Mer | B58: 18 | C58: PAR | D58: 5 | E58: 3 | F58: 4 | G58: 4 | H58: 5 | I58: 4 | J58: 4 | K58: 3 | L58: 4 | M58: 3 | N58: 5 | O58: 4 | P58: 5 | Q58: 4 | R58: 3 | S58: 4 | T58: 4 | U58: 4 | V58: Handicap | W58: 9 | X58: 18 | Y58: 8 | Z58: 7 | AA58: 5 | AB58: 3 | AC58: 6 | AD58: 15 | AE58: 13 | AF58: 14 | AG58: 2 | AH58: 11 | AI58: 10 | AJ58: 12 | AK58: 17 | AL58: 1 | AM58: 4 | AN58: 16 | AO58: 135 | AP58: 72.1 | AQ58: 127 | AR58: 70 | AS58: 128 | AT58: 72.8 | AU58: 122 | AV58: 71
A59: Ormesson | B59: 18 | C59: PAR | D59: 5 | E59: 4 | F59: 4 | G59: 4 | H59: 3 | I59: 4 | J59: 4 | K59: 5 | L59: 3 | M59: 4 | N59: 3 | O59: 5 | P59: 4 | Q59: 3 | R59: 4 | S59: 5 | T59: 4 | U59: 4 | V59: Handicap | W59: 9 | X59: 3 | Y59: 13 | Z59: 1 | AA59: 15 | AB59: 7 | AC59: 17 | AD59: 5 | AE59: 11 | AF59: 2 | AG59: 12 | AH59: 10 | AI59: 6 | AJ59: 16 | AK59: 4 | AL59: 8 | AM59: 18 | AN59: 14 | AO59: 131 | AP59: 72.4 | AQ59: 128 | AR59: 71.1 | AS59: 136 | AT59: 72.5 | AU59: 134 | AV59: 71.3
A60: Perche | B60: 18 | C60: PAR | D60: 5 | E60: 4 | F60: 4 | G60: 4 | H60: 3 | I60: 5 | J60: 4 | K60: 4 | L60: 3 | M60: 4 | N60: 5 | O60: 5 | P60: 3 | Q60: 4 | R60: 4 | S60: 4 | T60: 3 | U60: 4 | V60: Handicap | W60: 10 | X60: 8 | Y60: 2 | Z60: 12 | AA60: 6 | AB60: 16 | AC60: 4 | AD60: 18 | AE60: 14 | AF60: 1 | AG60: 3 | AH60: 7 | AI60: 11 | AJ60: 9 | AK60: 17 | AL60: 15 | AM60: 5 | AN60: 13 | AO60: 133 | AP60: 72.5 | AQ60: 131 | AR60: 70.5 | AS60: 124 | AT60: 72.8 | AU60: 121 | AV60: 70.9
A61: Prieuré - Est | B61: 18 | C61: PAR | D61: 4 | E61: 4 | F61: 3 | G61: 5 | H61: 4 | I61: 3 | J61: 4 | K61: 4 | L61: 4 | M61: 5 | N61: 4 | O61: 3 | P61: 5 | Q61: 4 | R61: 4 | S61: 4 | T61: 5 | U61: 3 | V61: Handicap | W61: 16 | X61: 2 | Y61: 12 | Z61: 10 | AA61: 6 | AB61: 18 | AC61: 14 | AD61: 8 | AE61: 4 | AF61: 1 | AG61: 11 | AH61: 9 | AI61: 5 | AJ61: 15 | AK61: 3 | AL61: 13 | AM61: 7 | AN61: 17 | AO61: 132 | AP61: 71.9 | AQ61: 129 | AR61: 69.8 | AS61: 133 | AT61: 73 | AU61: 129 | AV61: 70.4
A62: Prieuré - Ouest | B62: 18 | C62: PAR | D62: 3 | E62: 4 | F62: 4 | G62: 4 | H62: 5 | I62: 3 | J62: 4 | K62: 5 | L62: 3 | M62: 5 | N62: 3 | O62: 4 | P62: 3 | Q62: 4 | R62: 5 | S62: 4 | T62: 4 | U62: 5 | V62: Handicap | W62: 17 | X62: 3 | Y62: 11 | Z62: 5 | AA62: 1 | AB62: 9 | AC62: 7 | AD62: 13 | AE62: 15 | AF62: 8 | AG62: 16 | AH62: 2 | AI62: 18 | AJ62: 14 | AK62: 10 | AL62: 4 | AM62: 6 | AN62: 12 | AO62: 132 | AP62: 73.3 | AQ62: 126 | AR62: 71.4 | AS62: 130 | AT62: 74.6 | AU62: 124 | AV62: 72.3
A63: Raray | B63: 18 | C63: PAR | D63: 5 | E63: 4 | F63: 3 | G63: 4 | H63: 5 | I63: 3 | J63: 4 | K63: 4 | L63: 4 | M63: 4 | N63: 4 | O63: 3 | P63: 4 | Q63: 4 | R63: 5 | S63: 3 | T63: 5 | U63: 4 | V63: Handicap | W63: 8 | X63: 4 | Y63: 18 | Z63: 6 | AA63: 14 | AB63: 12 | AC63: 2 | AD63: 10 | AE63: 7 | AF63: 1 | AG63: 3 | AH63: 17 | AI63: 5 | AJ63: 9 | AK63: 13 | AL63: 16 | AM63: 11 | AN63: 15 | AO63: 133 | AP63: 72.1 | AQ63: 129 | AR63: 70.2 | AS63: 125 | AT63: 73.1 | AU63: 124 | AV63: 70.9
A64: Rebetz | B64: 18 | C64: PAR | D64: 5 | E64: 4 | F64: 4 | G64: 3 | H64: 4 | I64: 5 | J64: 4 | K64: 4 | L64: 3 | M64: 4 | N64: 5 | O64: 5 | P64: 3 | Q64: 4 | R64: 4 | S64: 3 | T64: 4 | U64: 5 | V64: Handicap | W64: 9 | X64: 13 | Y64: 1 | Z64: 15 | AA64: 3 | AB64: 17 | AC64: 5 | AD64: 7 | AE64: 11 | AF64: 2 | AG64: 18 | AH64: 16 | AI64: 12 | AJ64: 14 | AK64: 8 | AL64: 10 | AM64: 4 | AN64: 6 | AO64: 132 | AP64: 71.5 | AQ64: 127 | AR64: 70.6 | AS64: 128 | AT64: 73 | AU64: 128 | AV64: 71.2
A65: Robert Hersant | B65: 18 | C65: PAR | D65: 4 | E65: 4 | F65: 3 | G65: 4 | H65: 4 | I65: 5 | J65: 4 | K65: 3 | L65: 5 | M65: 4 | N65: 4 | O65: 5 | P65: 3 | Q65: 4 | R65: 5 | S65: 3 | T65: 4 | U65: 4 | V65: Handicap | W65: 11 | X65: 13 | Y65: 15 | Z65: 1 | AA65: 17 | AB65: 9 | AC65: 3 | AD65: 5 | AE65: 7 | AF65: 16 | AG65: 18 | AH65: 10 | AI65: 12 | AJ65: 6 | AK65: 2 | AL65: 8 | AM65: 14 | AN65: 4 | AO65: 133 | AP65: 72.6 | AQ65: 131 | AR65: 70 | AS65: 125 | AT65: 73.4 | AU65: 120 | AV65: 69.5
A66: Rochefort Château | B66: 18 | C66: PAR | D66: 4 | E66: 5 | F66: 3 | G66: 4 | H66: 5 | I66: 4 | J66: 4 | K66: 3 | L66: 4 | M66: 3 | N66: 5 | O66: 3 | P66: 4 | Q66: 5 | R66: 4 | S66: 4 | T66: 3 | U66: 4 | V66: Handicap | W66: 9 | X66: 11 | Y66: 17 | Z66: 3 | AA66: 15 | AB66: 13 | AC66: 5 | AD66: 7 | AE66: 1 | AF66: 8 | AG66: 18 | AH66: 14 | AI66: 2 | AJ66: 10 | AK66: 16 | AL66: 4 | AM66: 12 | AN66: 6 | AO66: 129 | AP66: 71.3 | AQ66: 125 | AR66: 70.2 | AS66: 129 | AT66: 73.6 | AU66: 126 | AV66: 72.3
A67: Rosny sous Bois | B67: 9 | C67: PAR | D67: 5 | E67: 3 | F67: 4 | G67: 4 | H67: 4 | I67: 3 | J67: 3 | K67: 3 | L67: 4 | V67: Handicap | W67: 4 | X67: 9 | Y67: 6 | Z67: 3 | AA67: 5 | AB67: 1 | AC67: 7 | AD67: 2 | AE67: 8 | AO67: 62 | AP67: 32.2 | AQ67: 62 | AR67: 32.2 | AS67: 59 | AT67: 32.7 | AU67: 59 | AV67: 32.7
A68: Rueil-Malmaison | B68: 9 | C68: PAR | D68: 3 | E68: 4 | F68: 5 | G68: 4 | H68: 4 | I68: 3 | J68: 3 | K68: 3 | L68: 3 | V68: Handicap | W68: 8 | X68: 3 | Y68: 1 | Z68: 2 | AA68: 6 | AB68: 9 | AC68: 4 | AD68: 7 | AE68: 5 | AO68: 57 | AP68: 30.8 | AQ68: 52 | AR68: 30.4 | AS68: 55 | AT68: 30.3 | AU68: 51 | AV68: 29.7
A69: Rueil-Malmaison - 18T | B69: 18 | C69: PAR | D69: 3 | E69: 4 | F69: 5 | G69: 4 | H69: 4 | I69: 3 | J69: 3 | K69: 3 | L69: 3 | M69: 3 | N69: 4 | O69: 5 | P69: 4 | Q69: 4 | R69: 3 | S69: 3 | T69: 3 | U69: 3 | V69: Handicap | W69: 15 | X69: 5 | Y69: 1 | Z69: 3 | AA69: 11 | AB69: 17 | AC69: 7 | AD69: 13 | AE69: 9 | AF69: 16 | AG69: 6 | AH69: 2 | AI69: 4 | AJ69: 12 | AK69: 18 | AL69: 8 | AM69: 14 | AN69: 10 | AO69: 114 | AP69: 61.6 | AQ69: 104 | AR69: 60.7 | AS69: 109 | AT69: 60.6 | AU69: 102 | AV69: 59.4
A70: Saint Aubin - Le Mesnil | B70: 18 | C70: PAR | D70: 5 | E70: 4 | F70: 4 | G70: 4 | H70: 3 | I70: 4 | J70: 4 | K70: 4 | L70: 4 | M70: 3 | N70: 4 | O70: 4 | P70: 4 | Q70: 5 | R70: 3 | S70: 4 | T70: 3 | U70: 4 | V70: Handicap | W70: 5 | X70: 17 | Y70: 1 | Z70: 9 | AA70: 7 | AB70: 15 | AC70: 11 | AD70: 3 | AE70: 13 | AF70: 4 | AG70: 16 | AH70: 10 | AI70: 8 | AJ70: 12 | AK70: 6 | AL70: 18 | AM70: 2 | AN70: 14 | AO70: 131 | AP70: 69.3 | AQ70: 127 | AR70: 67.7 | AS70: 130 | AT70: 72.2 | AU70: 130 | AV70: 70.5
A71: St Germain - Grand Parcours | B71: 18 | C71: PAR | D71: 4 | E71: 5 | F71: 4 | G71: 4 | H71: 3 | I71: 5 | J71: 3 | K71: 4 | L71: 5 | M71: 4 | N71: 3 | O71: 4 | P71: 4 | Q71: 4 | R71: 5 | S71: 4 | T71: 3 | U71: 4 | V71: Handicap | W71: 3 | X71: 15 | Y71: 11 | Z71: 1 | AA71: 7 | AB71: 9 | AC71: 5 | AD71: 13 | AE71: 17 | AF71: 10 | AG71: 12 | AH71: 4 | AI71: 14 | AJ71: 2 | AK71: 16 | AL71: 18 | AM71: 8 | AN71: 6 | AO71: 138 | AP71: 72.5 | AQ71: 132 | AR71: 70.7 | AS71: 136 | AT71: 75.2 | AU71: 135 | AV71: 73.1
A72: St Germain - Les Genêts | B72: 9 | C72: PAR | D72: 3 | E72: 4 | F72: 3 | G72: 4 | H72: 3 | I72: 4 | J72: 4 | K72: 4 | L72: 4 | V72: Handicap | W72: 8 | X72: 3 | Y72: 7 | Z72: 5 | AA72: 9 | AB72: 1 | AC72: 6 | AD72: 2 | AE72: 4 | AO72: 114 | AP72: 62.2 | AQ72: 114 | AR72: 62.2 | AS72: 114 | AT72: 65.4 | AU72: 114 | AV72: 65.4
A73: Saint Marc | B73: 18 | C73: PAR | D73: 4 | E73: 4 | F73: 5 | G73: 4 | H73: 4 | I73: 3 | J73: 4 | K73: 5 | L73: 3 | M73: 4 | N73: 4 | O73: 3 | P73: 5 | Q73: 4 | R73: 3 | S73: 5 | T73: 3 | U73: 4 | V73: Handicap | W73: 16 | X73: 10 | Y73: 6 | Z73: 2 | AA73: 12 | AB73: 14 | AC73: 8 | AD73: 18 | AE73: 4 | AF73: 5 | AG73: 7 | AH73: 17 | AI73: 3 | AJ73: 1 | AK73: 13 | AL73: 15 | AM73: 9 | AN73: 11 | AO73: 134 | AP73: 71.8 | AQ73: 130 | AR73: 70 | AS73: 131 | AT73: 73.2 | AU73: 127 | AV73: 70.6
A74: Saint-Nom-La-Bretèche - Bleu | B74: 18 | C74: PAR | D74: 4 | E74: 3 | F74: 4 | G74: 4 | H74: 3 | I74: 4 | J74: 5 | K74: 5 | L74: 4 | M74: 3 | N74: 4 | O74: 5 | P74: 5 | Q74: 3 | R74: 4 | S74: 4 | T74: 4 | U74: 4 | V74: Handicap | W74: 3 | X74: 11 | Y74: 7 | Z74: 1 | AA74: 13 | AB74: 15 | AC74: 9 | AD74: 5 | AE74: 17 | AF74: 18 | AG74: 10 | AH74: 4 | AI74: 14 | AJ74: 16 | AK74: 2 | AL74: 8 | AM74: 12 | AN74: 6 | AO74: 139 | AP74: 73.2 | AQ74: 132 | AR74: 71.7 | AS74: 135 | AT74: 74.1 | AU74: 131 | AV74: 72.6
A75: Saint-Nom-La-Bretèche - Rouge | B75: 18 | C75: PAR | D75: 4 | E75: 4 | F75: 3 | G75: 4 | H75: 5 | I75: 4 | J75: 5 | K75: 4 | L75: 3 | M75: 4 | N75: 4 | O75: 5 | P75: 3 | Q75: 4 | R75: 4 | S75: 3 | T75: 5 | U75: 4 | V75: Handicap | W75: 15 | X75: 11 | Y75: 9 | Z75: 3 | AA75: 17 | AB75: 1 | AC75: 13 | AD75: 5 | AE75: 7 | AF75: 4 | AG75: 18 | AH75: 14 | AI75: 6 | AJ75: 10 | AK75: 2 | AL75: 8 | AM75: 16 | AN75: 12 | AO75: 142 | AP75: 74.7 | AQ75: 133 | AR75: 72.8 | AS75: 132 | AT75: 75.5 | AU75: 125 | AV75: 73.3
A76: Saint-Quentin - Bleu | B76: 18 | C76: PAR | D76: 4 | E76: 4 | F76: 3 | G76: 4 | H76: 4 | I76: 5 | J76: 3 | K76: 4 | L76: 4 | M76: 5 | N76: 3 | O76: 4 | P76: 5 | Q76: 4 | R76: 4 | S76: 5 | T76: 3 | U76: 4 | V76: Handicap | W76: 4 | X76: 14 | Y76: 10 | Z76: 2 | AA76: 16 | AB76: 18 | AC76: 12 | AD76: 8 | AE76: 6 | AF76: 15 | AG76: 13 | AH76: 1 | AI76: 5 | AJ76: 11 | AK76: 3 | AL76: 7 | AM76: 17 | AN76: 9 | AO76: 125 | AP76: 71.4 | AQ76: 122 | AR76: 69.3 | AS76: 129 | AT76: 72.9 | AU76: 123 | AV76: 70.4
A77: Saint-Quentin - Rouge | B77: 18 | C77: PAR | D77: 5 | E77: 4 | F77: 3 | G77: 5 | H77: 4 | I77: 4 | J77: 3 | K77: 4 | L77: 4 | M77: 3 | N77: 4 | O77: 4 | P77: 4 | Q77: 5 | R77: 4 | S77: 3 | T77: 4 | U77: 5 | V77: Handicap | W77: 12 | X77: 4 | Y77: 18 | Z77: 14 | AA77: 2 | AB77: 10 | AC77: 8 | AD77: 6 | AE77: 16 | AF77: 15 | AG77: 13 | AH77: 3 | AI77: 1 | AJ77: 7 | AK77: 5 | AL77: 17 | AM77: 9 | AN77: 11 | AO77: 125 | AP77: 70.2 | AQ77: 122 | AR77: 68.4 | AS77: 119 | AT77: 71.8 | AU77: 121 | AV77: 69.6
A78: Seraincourt | B78: 18 | C78: PAR | D78: 4 | E78: 3 | F78: 4 | G78: 3 | H78: 4 | I78: 4 | J78: 5 | K78: 3 | L78: 5 | M78: 4 | N78: 4 | O78: 3 | P78: 4 | Q78: 4 | R78: 5 | S78: 4 | T78: 3 | U78: 5 | V78: Handicap | W78: 3 | X78: 15 | Y78: 7 | Z78: 1 | AA78: 9 | AB78: 5 | AC78: 17 | AD78: 11 | AE78: 13 | AF78: 12 | AG78: 4 | AH78: 18 | AI78: 16 | AJ78: 6 | AK78: 14 | AL78: 8 | AM78: 2 | AN78: 10 | AO78: 132 | AP78: 71.3 | AQ78: 132 | AR78: 69.2 | AS78: 130 | AT78: 71.6 | AU78: 129 | AV78: 71.3
A79: Sologne | B79: 18 | C79: PAR | D79: 4 | E79: 3 | F79: 4 | G79: 4 | H79: 4 | I79: 3 | J79: 5 | K79: 3 | L79: 5 | M79: 3 | N79: 4 | O79: 4 | P79: 4 | Q79: 5 | R79: 3 | S79: 4 | T79: 4 | U79: 5 | V79: Handicap | W79: 3 | X79: 15 | Y79: 9 | Z79: 5 | AA79: 7 | AB79: 17 | AC79: 11 | AD79: 13 | AE79: 1 | AF79: 16 | AG79: 6 | AH79: 8 | AI79: 18 | AJ79: 10 | AK79: 14 | AL79: 2 | AM79: 4 | AN79: 12 | AO79: 139 | AP79: 71.7 | AQ79: 134 | AR79: 71 | AS79: 133 | AT79: 72.5 | AU79: 124 | AV79: 70.1
A80: Templiers | B80: 18 | C80: PAR | D80: 4 | E80: 4 | F80: 3 | G80: 4 | H80: 4 | I80: 3 | J80: 4 | K80: 5 | L80: 4 | M80: 4 | N80: 4 | O80: 3 | P80: 4 | Q80: 5 | R80: 4 | S80: 3 | T80: 5 | U80: 4 | V80: Handicap | W80: 16 | X80: 14 | Y80: 10 | Z80: 4 | AA80: 6 | AB80: 8 | AC80: 18 | AD80: 2 | AE80: 12 | AF80: 3 | AG80: 1 | AH80: 7 | AI80: 11 | AJ80: 15 | AK80: 5 | AL80: 9 | AM80: 17 | AN80: 13 | AO80: 134 | AP80: 73.1 | AQ80: 128 | AR80: 70.8 | AS80: 132 | AT80: 73.7 | AU80: 128 | AV80: 72.4
A81: Tremblay Parc | B81: 9 | C81: PAR | D81: 3 | E81: 3 | F81: 3 | G81: 3 | H81: 3 | I81: 3 | J81: 3 | K81: 3 | L81: 3 | V81: Handicap | W81: 2 | X81: 5 | Y81: 8 | Z81: 7 | AA81: 9 | AB81: 4 | AC81: 3 | AD81: 6 | AE81: 1 | AO81: 40 | AP81: 24.8 | AQ81: 40 | AR81: 24.8 | AS81: 40 | AT81: 25.7 | AU81: 40 | AV81: 25.7
A82: Tremblay sur Mauldre | B82: 9 | C82: PAR | D82: 4 | E82: 5 | F82: 3 | G82: 4 | H82: 4 | I82: 4 | J82: 3 | K82: 4 | L82: 5 | V82: Handicap | W82: 9 | X82: 5 | Y82: 8 | Z82: 6 | AA82: 7 | AB82: 1 | AC82: 2 | AD82: 4 | AE82: 3 | AO82: 69 | AP82: 35.8 | AQ82: 64 | AR82: 35.2 | AS82: 69 | AT82: 37.4 | AU82: 65 | AV82: 36.4
A83: Tremblay sur Mauldre - 18T | B83: 18 | C83: PAR | D83: 4 | E83: 5 | F83: 3 | G83: 4 | H83: 4 | I83: 4 | J83: 3 | K83: 4 | L83: 5 | M83: 4 | N83: 5 | O83: 3 | P83: 4 | Q83: 4 | R83: 4 | S83: 3 | T83: 4 | U83: 5 | V83: Handicap | W83: 17 | X83: 9 | Y83: 15 | Z83: 11 | AA83: 13 | AB83: 1 | AC83: 3 | AD83: 7 | AE83: 5 | AF83: 18 | AG83: 10 | AH83: 16 | AI83: 12 | AJ83: 14 | AK83: 2 | AL83: 4 | AM83: 8 | AN83: 6 | AO83: 143 | AP83: 72.8 | AQ83: 127 | AR83: 70.3 | AS83: 137 | AT83: 74.7 | AU83: 129 | AV83: 72.7
A84: Val Grand | B84: 18 | C84: PAR | D84: 5 | E84: 4 | F84: 4 | G84: 4 | H84: 3 | I84: 4 | J84: 5 | K84: 3 | L84: 4 | M84: 3 | N84: 5 | O84: 4 | P84: 3 | Q84: 5 | R84: 4 | S84: 4 | T84: 3 | U84: 4 | V84: Handicap | W84: 8 | X84: 10 | Y84: 14 | Z84: 6 | AA84: 12 | AB84: 18 | AC84: 4 | AD84: 16 | AE84: 2 | AF84: 9 | AG84: 1 | AH84: 13 | AI84: 7 | AJ84: 5 | AK84: 17 | AL84: 15 | AM84: 11 | AN84: 3 | AO84: 132 | AP84: 70.8 | AQ84: 117 | AR84: 68 | AS84: 123 | AT84: 71 | AU84: 114 | AV84: 67.6
A85: Vaucouleurs - Rivière | B85: 18 | C85: PAR | D85: 4 | E85: 5 | F85: 3 | G85: 4 | H85: 5 | I85: 4 | J85: 3 | K85: 5 | L85: 4 | M85: 5 | N85: 3 | O85: 4 | P85: 3 | Q85: 3 | R85: 4 | S85: 5 | T85: 5 | U85: 4 | V85: Handicap | W85: 15 | X85: 7 | Y85: 11 | Z85: 5 | AA85: 9 | AB85: 3 | AC85: 17 | AD85: 13 | AE85: 1 | AF85: 16 | AG85: 18 | AH85: 4 | AI85: 8 | AJ85: 12 | AK85: 2 | AL85: 6 | AM85: 14 | AN85: 10 | AO85: 144 | AP85: 72.9 | AQ85: 132 | AR85: 70.4 | AS85: 137 | AT85: 74.3 | AU85: 128 | AV85: 71.4
A86: Vaucouleurs - Vallons | B86: 18 | C86: PAR | D86: 4 | E86: 3 | F86: 5 | G86: 3 | H86: 4 | I86: 4 | J86: 3 | K86: 4 | L86: 5 | M86: 5 | N86: 4 | O86: 3 | P86: 4 | Q86: 4 | R86: 3 | S86: 5 | T86: 4 | U86: 3 | V86: Handicap | W86: 15 | X86: 13 | Y86: 5 | Z86: 11 | AA86: 1 | AB86: 9 | AC86: 17 | AD86: 7 | AE86: 3 | AF86: 12 | AG86: 18 | AH86: 14 | AI86: 10 | AJ86: 6 | AK86: 16 | AL86: 4 | AM86: 2 | AN86: 8 | AO86: 136 | AP86: 70.5 | AQ86: 126 | AR86: 67.8 | AS86: 134 | AT86: 71.6 | AU86: 120 | AV86: 67.9
A87: Vaudreuil | B87: 18 | C87: PAR | D87: 4 | E87: 4 | F87: 3 | G87: 4 | H87: 3 | I87: 4 | J87: 4 | K87: 5 | L87: 4 | M87: 3 | N87: 4 | O87: 5 | P87: 4 | Q87: 4 | R87: 5 | S87: 3 | T87: 4 | U87: 5 | V87: Handicap | W87: 9 | X87: 1 | Y87: 13 | Z87: 7 | AA87: 17 | AB87: 3 | AC87: 15 | AD87: 11 | AE87: 5 | AF87: 10 | AG87: 4 | AH87: 12 | AI87: 2 | AJ87: 8 | AK87: 18 | AL87: 14 | AM87: 6 | AN87: 16 | AO87: 136 | AP87: 72.9 | AQ87: 134 | AR87: 71.8 | AS87: 136 | AT87: 75.6 | AU87: 128 | AV87: 71.2
A88: Villacoublay | B88: 18 | C88: PAR | D88: 4 | E88: 5 | F88: 4 | G88: 5 | H88: 3 | I88: 4 | J88: 3 | K88: 5 | L88: 3 | M88: 4 | N88: 4 | O88: 4 | P88: 4 | Q88: 5 | R88: 3 | S88: 5 | T88: 3 | U88: 4 | V88: Handicap | W88: 6 | X88: 18 | Y88: 2 | Z88: 8 | AA88: 12 | AB88: 10 | AC88: 16 | AD88: 14 | AE88: 4 | AF88: 7 | AG88: 3 | AH88: 9 | AI88: 1 | AJ88: 13 | AK88: 11 | AL88: 5 | AM88: 17 | AN88: 15 | AO88: 137 | AP88: 72.1 | AQ88: 136 | AR88: 70.4 | AS88: 135 | AT88: 72.5 | AU88: 132 | AV88: 70.7
A89: Villennes | B89: 18 | C89: PAR | D89: 4 | E89: 4 | F89: 3 | G89: 5 | H89: 4 | I89: 3 | J89: 4 | K89: 4 | L89: 4 | M89: 3 | N89: 4 | O89: 4 | P89: 4 | Q89: 4 | R89: 3 | S89: 4 | T89: 5 | U89: 4 | V89: Handicap | W89: 17 | X89: 9 | Y89: 15 | Z89: 11 | AA89: 1 | AB89: 13 | AC89: 3 | AD89: 7 | AE89: 5 | AF89: 14 | AG89: 18 | AH89: 12 | AI89: 10 | AJ89: 6 | AK89: 4 | AL89: 16 | AM89: 2 | AN89: 8 | AO89: 124 | AP89: 68.7 | AQ89: 122 | AR89: 66.9 | AS89: 121 | AT89: 70.8 | AU89: 116 | AV89: 68.6
A90: Villeray | B90: 18 | C90: PAR | D90: 3 | E90: 4 | F90: 4 | G90: 5 | H90: 4 | I90: 4 | J90: 3 | K90: 4 | L90: 5 | M90: 4 | N90: 4 | O90: 4 | P90: 4 | Q90: 3 | R90: 5 | S90: 3 | T90: 4 | U90: 5 | V90: Handicap | W90: 16 | X90: 12 | Y90: 4 | Z90: 10 | AA90: 2 | AB90: 6 | AC90: 14 | AD90: 8 | AE90: 18 | AF90: 7 | AG90: 1 | AH90: 5 | AI90: 11 | AJ90: 9 | AK90: 15 | AL90: 13 | AM90: 3 | AN90: 17 | AO90: 130 | AP90: 71.5 | AQ90: 126 | AR90: 70.2 | AS90: 122 | AT90: 73.7 | AU90: 118 | AV90: 70.8
A91: Yvelines - Les Chênes | B91: 18 | C91: PAR | D91: 4 | E91: 4 | F91: 4 | G91: 3 | H91: 4 | I91: 5 | J91: 4 | K91: 5 | L91: 3 | M91: 4 | N91: 3 | O91: 4 | P91: 5 | Q91: 3 | R91: 4 | S91: 4 | T91: 4 | U91: 5 | V91: Handicap | W91: 17 | X91: 9 | Y91: 5 | Z91: 11 | AA91: 1 | AB91: 15 | AC91: 13 | AD91: 3 | AE91: 7 | AF91: 14 | AG91: 10 | AH91: 2 | AI91: 16 | AJ91: 8 | AK91: 6 | AL91: 18 | AM91: 4 | AN91: 12 | AO91: 136 | AP91: 73.4 | AQ91: 128 | AR91: 71.5 | AS91: 134 | AT91: 75.3 | AU91: 124 | AV91: 71.8
A92: Yvelines - Les Tilleuls | B92: 9 | C92: PAR | D92: 3 | E92: 4 | F92: 3 | G92: 3 | H92: 3 | I92: 4 | J92: 4 | K92: 4 | L92: 3 | V92: Handicap | W92: 5 | X92: 7 | Y92: 9 | Z92: 3 | AA92: 6 | AB92: 8 | AC92: 1 | AD92: 2 | AE92: 4 | AO92: 55 | AP92: 31 | AQ92: 53 | AR92: 30.8 | AS92: 51 | AT92: 31 | AU92: 50 | AV92: 30.7
A93: Forfait | B93: 18 | C93: PAR | D93: 0 | E93: 0 | F93: 0 | G93: 0 | H93: 0 | I93: 0 | J93: 0 | K93: 0 | L93: 0 | M93: 0 | N93: 0 | O93: 0 | P93: 0 | Q93: 0 | R93: 0 | S93: 0 | T93: 0 | U93: 0 | V93: Handicap | W93: 0 | X93: 0 | Y93: 0 | Z93: 0 | AA93: 0 | AB93: 0 | AC93: 0 | AD93: 0 | AE93: 0 | AF93: 0 | AG93: 0 | AH93: 0 | AI93: 0 | AJ93: 0 | AK93: 0 | AL93: 0 | AM93: 0 | AN93: 0
A94: Tirage au sort | B94: 18 | C94: PAR | D94: 0 | E94: 0 | F94: 0 | G94: 0 | H94: 0 | I94: 0 | J94: 0 | K94: 0 | L94: 0 | M94: 0 | N94: 0 | O94: 0 | P94: 0 | Q94: 0 | R94: 0 | S94: 0 | T94: 0 | U94: 0 | V94: Handicap | W94: 0 | X94: 0 | Y94: 0 | Z94: 0 | AA94: 0 | AB94: 0 | AC94: 0 | AD94: 0 | AE94: 0 | AF94: 0 | AG94: 0 | AH94: 0 | AI94: 0 | AJ94: 0 | AK94: 0 | AL94: 0 | AM94: 0 | AN94: 0

Sheet Joueurs (hidden)
A1: ASIP Golf | C1: Challenge 35 : les joueurs
A3: Numéro | B3: Poule | C3: Nom | D3: Prénom | E3: S | F3: Index | G3: Licence | H3: Index Orig | I3: Repère
A4: 1 | B4: A | C4: MABILE | D4: Claude | E4: H | F4: 17.4 | G4: 546853076 | H4: 16.9 | I4: =IF(E4="H",IF(F4<=15,"Blanc","Jaune"),IF(F4<18.4,"Bleu","Rouge")) -> Jaune
A5: 2 | B5: D | C5: SZAFIR | D5: Patrick | E5: H | F5: =H5 -> 20.1 | G5: 528029072 | H5: 20.1 | I5: Jaune
A6: 3 | B6: C | C6: COULOMB | D6: Thierry | E6: H | F6: 20.2 | G6: 542760227 | H6: 20.2 | I6: Jaune
A7: 4 | B7: B | C7: VINAY | D7: Guillaume | E7: H | F7: 20.5 | G7: 523598243 | H7: 20.5 | I7: Jaune
A8: 5 | B8: B | C8: NGUYEN | D8: Jean-Paul | E8: H | F8: 20.3 | G8: 536502142 | H8: 23.1 | I8: Jaune
A9: 6 | B9: C | C9: DOGUIN | D9: Pierre | E9: H | F9: 24.7 | G9: 521724243 | H9: 24.7 | I9: Jaune
A10: 7 | B10: D | C10: ROBERT | D10: Valérie | E10: F | F10: 25 | G10: 521904110 | H10: 25 | I10: Rouge
A11: 8 | B11: A | C11: M'HAMDI | D11: Jalel | E11: H | F11: 27.5 | G11: 43132307 | H11: 27.5 | I11: Jaune
A12: 9 | B12: A | C12: BORDET | D12: Bruno | E12: H | F12: 28.4 | G12: 545127264 | H12: 29.4 | I12: Jaune
A13: 10 | B13: D | C13: GERSON | D13: David | E13: H | F13: 21.6 | G13: 48823290 | H13: 31 | I13: Jaune
A14: 11 | B14: C | C14: LEFRANC | D14: Virginie | E14: F | F14: 32.2 | G14: 512192228 | H14: 32.7 | I14: Rouge
A15: 12 | B15: B | C15: GATIGNOL | D15: Christian | E15: H | F15: 29.5 | G15: 538242287 | H15: 34 | I15: Jaune
A16: 13 | B16: B | C16: BOISSERPE | D16: Patrick | E16: H | F16: 34.5 | G16: 532120179 | H16: 34.5 | I16: Jaune
A17: 14 | B17: C | C17: TRAVERS | D17: Philippe | E17: H | F17: 34 | G17: 47953296 | H17: 34.5 | I17: Jaune
A18: 15 | B18: D | C18: ROME | D18: Virginie | E18: F | F18: 36 | G18: 44303311 | H18: 45 | I18: Rouge
A19: 16 | B19: A | C19: PICARD | D19: Luc | E19: H | F19: 46 | G19: 3590314 | H19: 51 | I19: Jaune
A22: Les joueurs sont classés de 1 à 16 en fonction de leur index croissant, et par ordre alphabétique en cas d'index identique.
A23: Ils sont ensuite dispatchés en poules suivant une répartition classique de tournoi.
A24: L'index doit être mis à jour en cours de tournoi si le joueur en a changé depuis son inscription.

Sheet Poules
A1: ASIP
P2: =CONCATENATE("Challenge 35 cuvée ",Cuvée," : poules") -> Challenge 35 cuvée 2018 : poules
A5: Poule | B5: N° | C5: Nom | D5: Index | G5: 9 | H5: 18 | J5: Numéro de rencontre | K5: Rencontre | L5: Poule | M5: Liste_nonvide | N5: Hcp18 | O5: Hcp9 | P5: Date | Q5: Parcours | R5: Trous | S5: Vainqueur | T5: J1 | U5: J2 | V5: Résultat | W5: Bonus J1 | X5: Bonus J2 | Y5: Bonus J1 | Z5: Bonus J2 | AD5: Classement Poule
Y6: ValNum | Z6: ValNum | AA6: Score | AB6: Bonus | AF6: Match | AG6: Bonus | AH6: Composé | AI6: Rang | AJ6: Joueur | AK6: Matchs | AL6: Points
F7: =CONCATENATE(A8,B8," / ",A8,B9) -> A1 / A8 | G7: =C8 -> MABILE | H7: =C9 -> M'HAMDI | I7: Partagé | J7: =IF(COUNTBLANK(K7),0,1) -> 1 | K7: =IF(OR(G7="",H7=""),"",CONCATENATE(G7," / ",H7)) -> MABILE / M'HAMDI | L7: A | M7: =IF(ROW()-6<28-COUNTBLANK($K$7:$K$33),VLOOKUP(ROW()-6,$J$7:$K$33,2,FALSE),"") -> MABILE / M'HAMDI | N7: =IF(OR(G7="",H7=""),"",MIN(27,ROUND(0.75*(VLOOKUP(H7,Joueurs!$C$4:$F$19,4,FALSE)-VLOOKUP(G7,Joueurs!$C$4:$F$19,4,FALSE)),0))) -> 8 | O7: =IF(OR(G7="",H7=""),"",ROUND(MIN(27,0.75*(VLOOKUP(H7,Joueurs!$C$4:$F$19,4,FALSE)-VLOOKUP(G7,Joueurs!$C$4:$F$19,4,FALSE)))/2,0)) -> 4 | P7: 2018-06-24 | Q7: Omaha Beach - Mer | R7: =IF(Q7="","",VLOOKUP(Q7,Parcours!$A$2:$B$130,2,FALSE)) -> 18 | S7: MABILE | T7: =IF(K7="",0,IF(S7=G7,1,IF(S7="Partagé",0.5,0))) -> 1 | U7: =IF(K7="",0,IF(S7=H7,1,IF(S7="Partagé",0.5,0))) -> 0 | V7: 6&5 | W7: =IF(V7="",0,IF(T7=0,-VLOOKUP(V7,$AA$7:$AB$25,2,FALSE),IF(T7=1,VLOOKUP(V7,$AA$7:$AB$25,2,FALSE),0))) -> 11 | X7: =-W7 -> -11 | Y7: =W7+0.001 -> 11.001 | Z7: =X7+0.001 -> -10.999 | AA7: AS | AB7: 0
A8: A | B8: 1 | C8: =IF((VLOOKUP(B8,Joueurs!A$4:F$19,3,FALSE))=0,"",VLOOKUP(B8,Joueurs!A$4:F$19,3,FALSE)) -> MABILE | D8: =IF((VLOOKUP(B8,Joueurs!A$4:F$19,3,FALSE))=0,"",VLOOKUP(B8,Joueurs!A$4:F$19,6,FALSE)) -> 17.4 | F8: =CONCATENATE(A8,B8," / ",A8,B10) -> A1 / A9 | G8: =C8 -> MABILE | H8: =C10 -> BORDET | I8: Partagé | J8: =J7+IF(COUNTBLANK(K8),0,1) -> 2 | K8: MABILE / BORDET | L8: A | M8: =IF(ROW()-6<28-COUNTBLANK($K$7:$K$33),VLOOKUP(ROW()-6,$J$7:$K$33,2,FALSE),"") -> MABILE / BORDET | N8: =IF(OR(G8="",H8=""),"",MIN(27,ROUND(0.75*(VLOOKUP(H8,Joueurs!$C$4:$F$19,4,FALSE)-VLOOKUP(G8,Joueurs!$C$4:$F$19,4,FALSE)),0))) -> 8 | O8: =IF(OR(G8="",H8=""),"",ROUND(MIN(27,0.75*(VLOOKUP(H8,Joueurs!$C$4:$F$19,4,FALSE)-VLOOKUP(G8,Joueurs!$C$4:$F$19,4,FALSE)))/2,0)) -> 4 | P8: 2018-05-03 | Q8: Saint Aubin - Le Mesnil | R8: =IF(Q8="","",VLOOKUP(Q8,Parcours!$A$2:$B$130,2,FALSE)) -> 18 | S8: MABILE | T8: =IF(K8="",0,IF(S8=G8,1,IF(S8="Partagé",0.5,0))) -> 1 | U8: =IF(K8="",0,IF(S8=H8,1,IF(S8="Partagé",0.5,0))) -> 0 | V8: 4&2 | W8: =IF(V8="",0,IF(T8=0,-VLOOKUP(V8,$AA$7:$AB$25,2,FALSE),IF(T8=1,VLOOKUP(V8,$AA$7:$AB$25,2,FALSE),0))) -> 6 | X8: =-W8 -> -6 | Y8: =W8+0.002 -> 6.002 | Z8: =X8+0.002 -> -5.998 | AA8: 1UP | AB8: 1 | AD8: 1A | AE8: =C8 -> MABILE | AF8: =IF(AE8="",-1,SUMIF(G7:G12,AE8,T7:T12)+SUMIF(H7:H12,AE8,U7:U12)) -> 3 | AG8: =SUMIF(G7:G12,AE8,Y7:Y12)+SUMIF(H7:H12,AE8,Z7:Z12) -> 20.007 | AH8: =100*AF8+AG8 -> 320.007 | AI8: =RANK(AH8,AH8:AH11) -> 1 | AJ8: =IF(AE8="","",INDEX(AE8:AE11,MATCH(1,AI8:AI11,0))) -> MABILE | AK8: =IF(AE8="","",VLOOKUP(AJ8,AE8:AF11,2,FALSE)) -> 3 | AL8: =IF(AE8="","",VLOOKUP(AJ8,AE8:AG11,3,FALSE)) -> 20.007
B9: 8 | C9: =IF((VLOOKUP(B9,Joueurs!A$4:C$19,3,FALSE))=0,"",VLOOKUP(B9,Joueurs!A$4:C$19,3,FALSE)) -> M'HAMDI | D9: =IF((VLOOKUP(B9,Joueurs!A$4:F$19,3,FALSE))=0,"",VLOOKUP(B9,Joueurs!A$4:F$19,6,FALSE)) -> 27.5 | F9: =CONCATENATE(A8,B9," / ",A8,B10) -> A8 / A9 | G9: =C9 -> M'HAMDI | H9: =C10 -> BORDET | I9: Partagé | J9: 3 | K9: M'HAMDI / BORDET | L9: A | M9: =IF(ROW()-6<28-COUNTBLANK($K$7:$K$33),VLOOKUP(ROW()-6,$J$7:$K$33,2,FALSE),"") -> M'HAMDI / BORDET | N9: =IF(OR(G9="",H9=""),"",MIN(27,ROUND(0.75*(VLOOKUP(H9,Joueurs!$C$4:$F$19,4,FALSE)-VLOOKUP(G9,Joueurs!$C$4:$F$19,4,FALSE)),0))) -> 1 | O9: =IF(OR(G9="",H9=""),"",ROUND(MIN(27,0.75*(VLOOKUP(H9,Joueurs!$C$4:$F$19,4,FALSE)-VLOOKUP(G9,Joueurs!$C$4:$F$19,4,FALSE)))/2,0)) -> 0 | P9: 2018-05-26 | Q9: Forges les Bains | R9: =IF(Q9="","",VLOOKUP(Q9,Parcours!$A$2:$B$130,2,FALSE)) -> 18 | S9: BORDET | T9: 0 | U9: 1 | V9: 6&5 | W9: -11 | X9: 11 | Y9: =W9+0.003 -> -10.997 | Z9: =X9+0.003 -> 11.003 | AA9: 2UP | AB9: 2 | AD9: 2A | AE9: =C9 -> M'HAMDI | AF9: =IF(AE9="",-1,SUMIF(G7:G12,AE9,T7:T12)+SUMIF(H7:H12,AE9,U7:U12)) -> 0 | AG9: =SUMIF(G7:G12,AE9,Y7:Y12)+SUMIF(H7:H12,AE9,Z7:Z12) -> -24.991 | AH9: =100*AF9+AG9 -> -24.991 | AI9: =RANK(AH9,AH8:AH11) -> 4 | AJ9: =IF(AE9="","",INDEX(AE8:AE11,MATCH(2,AI8:AI11,0))) -> BORDET | AK9: =IF(AE9="","",VLOOKUP(AJ9,AE8:AF11,2,FALSE)) -> 2 | AL9: =IF(AE9="","",VLOOKUP(AJ9,AE8:AG11,3,FALSE)) -> 8.011
B10: 9 | C10: =IF((VLOOKUP(B10,Joueurs!A$4:C$19,3,FALSE))=0,"",VLOOKUP(B10,Joueurs!A$4:C$19,3,FALSE)) -> BORDET | D10: =IF((VLOOKUP(B10,Joueurs!A$4:F$19,3,FALSE))=0,"",VLOOKUP(B10,Joueurs!A$4:F$19,6,FALSE)) -> 28.4 | F10: =CONCATENATE(A8,B8," / ",A8,B11) -> A1 / A16 | G10: =C8 -> MABILE | H10: =C11 -> PICARD | I10: Partagé | J10: 4 | K10: MABILE / PICARD | L10: A | M10: MABILE / PICARD | N10: =IF(OR(G10="",H10=""),"",MIN(27,ROUND(0.75*(VLOOKUP(H10,Joueurs!$C$4:$F$19,4,FALSE)-VLOOKUP(G10,Joueurs!$C$4:$F$19,4,FALSE)),0))) -> 21 | O10: =IF(OR(G10="",H10=""),"",ROUND(MIN(27,0.75*(VLOOKUP(H10,Joueurs!$C$4:$F$19,4,FALSE)-VLOOKUP(G10,Joueurs!$C$4:$F$19,4,FALSE)))/2,0)) -> 11 | P10: 2018-06-23 | Q10: Caen - Plaine Vallon | R10: =IF(Q10="","",VLOOKUP(Q10,Parcours!$A$2:$B$130,2,FALSE)) -> 18 | S10: MABILE | T10: =IF(K10="",0,IF(S10=G10,1,IF(S10="Partagé",0.5,0))) -> 1 | U10: =IF(K10="",0,IF(S10=H10,1,IF(S10="Partagé",0.5,0))) -> 0 | V10: 2&1 | W10: 3 | X10: -3 | Y10: =W10+0.004 -> 3.004 | Z10: =X10+0.004 -> -2.996 | AA10: 2&1 | AB10: 3 | AD10: 3A | AE10: =C10 -> BORDET | AF10: =IF(AE10="",-1,SUMIF(G7:G12,AE10,T7:T12)+SUMIF(H7:H12,AE10,U7:U12)) -> 2 | AG10: =SUMIF(G7:G12,AE10,Y7:Y12)+SUMIF(H7:H12,AE10,Z7:Z12) -> 8.011 | AH10: 208.011 | AI10: =RANK(AH10,AH8:AH11) -> 2 | AJ10: =IF(AE10="","",INDEX(AE8:AE11,MATCH(3,AI8:AI11,0))) -> PICARD | AK10: =IF(AE10="","",VLOOKUP(AJ10,AE8:AF11,2,FALSE)) -> 1 | AL10: =IF(AE10="","",VLOOKUP(AJ10,AE8:AG11,3,FALSE)) -> -2.985
B11: 16 | C11: =IF((VLOOKUP(B11,Joueurs!A$4:C$19,3,FALSE))=0,"",VLOOKUP(B11,Joueurs!A$4:C$19,3,FALSE)) -> PICARD | D11: =IF((VLOOKUP(B11,Joueurs!A$4:F$19,3,FALSE))=0,"",VLOOKUP(B11,Joueurs!A$4:F$19,6,FALSE)) -> 46 | F11: =CONCATENATE(A8,B9," / ",A8,B11) -> A8 / A16 | G11: =C9 -> M'HAMDI | H11: =C11 -> PICARD | I11: Partagé | J11: 5 | K11: M'HAMDI / PICARD | L11: A | M11: M'HAMDI / PICARD | N11: =IF(OR(G11="",H11=""),"",MIN(27,ROUND(0.75*(VLOOKUP(H11,Joueurs!$C$4:$F$19,4,FALSE)-VLOOKUP(G11,Joueurs!$C$4:$F$19,4,FALSE)),0))) -> 14 | O11: =IF(OR(G11="",H11=""),"",ROUND(MIN(27,0.75*(VLOOKUP(H11,Joueurs!$C$4:$F$19,4,FALSE)-VLOOKUP(G11,Joueurs!$C$4:$F$19,4,FALSE)))/2,0)) -> 7 | P11: 2018-05-18 | Q11: Gadancourt | R11: =IF(Q11="","",VLOOKUP(Q11,Parcours!$A$2:$B$130,2,FALSE)) -> 18 | S11: PICARD | T11: =IF(K11="",0,IF(S11=G11,1,IF(S11="Partagé",0.5,0))) -> 0 | U11: =IF(K11="",0,IF(S11=H11,1,IF(S11="Partagé",0.5,0))) -> 1 | V11: 2&1 | W11: -3 | X11: 3 | Y11: =W11+0.005 -> -2.995 | Z11: =X11+0.005 -> 3.005 | AA11: 3&1 | AB11: 4 | AD11: 4A | AE11: =C11 -> PICARD | AF11: =IF(AE11="",-1,SUMIF(G7:G12,AE11,T7:T12)+SUMIF(H7:H12,AE11,U7:U12)) -> 1 | AG11: =SUMIF(G7:G12,AE11,Y7:Y12)+SUMIF(H7:H12,AE11,Z7:Z12) -> -2.985 | AH11: 97.015 | AI11: =RANK(AH11,AH8:AH11) -> 3 | AJ11: =IF(AE11="","",INDEX(AE8:AE11,MATCH(4,AI8:AI11,0))) -> M'HAMDI | AK11: =IF(AE11="","",VLOOKUP(AJ11,AE8:AF11,2,FALSE)) -> 0 | AL11: =IF(AE11="","",VLOOKUP(AJ11,AE8:AG11,3,FALSE)) -> -24.991
F12: =CONCATENATE(A8,B10," / ",A8,B11) -> A9 / A16 | G12: =C10 -> BORDET | H12: =C11 -> PICARD | I12: Partagé | J12: 6 | K12: BORDET / PICARD | L12: A | M12: BORDET / PICARD | N12: =IF(OR(G12="",H12=""),"",MIN(27,ROUND(0.75*(VLOOKUP(H12,Joueurs!$C$4:$F$19,4,FALSE)-VLOOKUP(G12,Joueurs!$C$4:$F$19,4,FALSE)),0))) -> 13 | O12: =IF(OR(G12="",H12=""),"",ROUND(MIN(27,0.75*(VLOOKUP(H12,Joueurs!$C$4:$F$19,4,FALSE)-VLOOKUP(G12,Joueurs!$C$4:$F$19,4,FALSE)))/2,0)) -> 7 | P12: 2018-06-13 | Q12: Rueil-Malmaison - 18T | R12: =IF(Q12="","",VLOOKUP(Q12,Parcours!$A$2:$B$130,2,FALSE)) -> 18 | S12: BORDET | T12: 1 | U12: 0 | V12: 2&1 | W12: 3 | X12: -3 | Y12: =W12+0.006 -> 3.006 | Z12: =X12+0.006 -> -2.994 | AA12: 3&2 | AB12: 5 | AJ12: =4-COUNTBLANK(AJ8:AJ11) -> 4 | AK12: =IF(AJ12=2,1,IF(AJ12=3,3,6)) -> 6 | AL12: =SUM(AK8:AK11) -> 6
J13: 6 | M13: VINAY / NGUYEN | AA13: 4&2 | AB13: 6
F14: =CONCATENATE(A15,B15," / ",A15,B16) -> B4 / B5 | G14: =C15 -> VINAY | H14: =C16 -> NGUYEN | I14: Partagé | J14: 7 | K14: =IF(OR(G14="",H14=""),"",CONCATENATE(G14," / ",H14)) -> VINAY / NGUYEN | L14: B | M14: VINAY / GATIGNOL | N14: =IF(OR(G14="",H14=""),"",MIN(27,ROUND(0.75*(VLOOKUP(H14,Joueurs!$C$4:$F$19,4,FALSE)-VLOOKUP(G14,Joueurs!$C$4:$F$19,4,FALSE)),0))) -> 0 | O14: =IF(OR(G14="",H14=""),"",ROUND(MIN(27,0.75*(VLOOKUP(H14,Joueurs!$C$4:$F$19,4,FALSE)-VLOOKUP(G14,Joueurs!$C$4:$F$19,4,FALSE)))/2,0)) -> 0 | P14: 2018-07-26 | Q14: National - Aigle | R14: =IF(Q14="","",VLOOKUP(Q14,Parcours!$A$2:$B$130,2,FALSE)) -> 18 | S14: VINAY | T14: =IF(K14="",0,IF(S14=G14,1,IF(S14="Partagé",0.5,0))) -> 1 | U14: =IF(K14="",0,IF(S14=H14,1,IF(S14="Partagé",0.5,0))) -> 0 | V14: 7&6 | W14: =IF(V14="",0,IF(T14=0,-VLOOKUP(V14,$AA$7:$AB$25,2,FALSE),IF(T14=1,VLOOKUP(V14,$AA$7:$AB$25,2,FALSE),0))) -> 13 | X14: =-W14 -> -13 | Y14: =W14+0.001 -> 13.001 | Z14: =X14+0.001 -> -12.999 | AA14: 4&3 | AB14: 7
A15: B | B15: 4 | C15: =IF((VLOOKUP(B15,Joueurs!A$4:C$19,3,FALSE))=0,"",VLOOKUP(B15,Joueurs!A$4:C$19,3,FALSE)) -> VINAY | D15: =IF((VLOOKUP(B15,Joueurs!A$4:F$19,3,FALSE))=0,"",VLOOKUP(B15,Joueurs!A$4:F$19,6,FALSE)) -> 20.5 | F15: =CONCATENATE(A15,B15," / ",A15,B17) -> B4 / B12 | G15: =C15 -> VINAY | H15: =C17 -> GATIGNOL | I15: Partagé | J15: 8 | K15: VINAY / GATIGNOL | L15: B | M15: NGUYEN / GATIGNOL | N15: =IF(OR(G15="",H15=""),"",MIN(27,ROUND(0.75*(VLOOKUP(H15,Joueurs!$C$4:$F$19,4,FALSE)-VLOOKUP(G15,Joueurs!$C$4:$F$19,4,FALSE)),0))) -> 7 | O15: =IF(OR(G15="",H15=""),"",ROUND(MIN(27,0.75*(VLOOKUP(H15,Joueurs!$C$4:$F$19,4,FALSE)-VLOOKUP(G15,Joueurs!$C$4:$F$19,4,FALSE)))/2,0)) -> 3 | P15: 2018-06-29 | Q15: Vaucouleurs - Vallons | R15: =IF(Q15="","",VLOOKUP(Q15,Parcours!$A$2:$B$130,2,FALSE)) -> 18 | S15: GATIGNOL | T15: 0 | U15: 1 | V15: 1UP | W15: =IF(V15="",0,IF(T15=0,-VLOOKUP(V15,$AA$7:$AB$25,2,FALSE),IF(T15=1,VLOOKUP(V15,$AA$7:$AB$25,2,FALSE),0))) -> -1 | X15: =-W15 -> 1 | Y15: =W15+0.002 -> -0.998 | Z15: =X15+0.002 -> 1.002 | AA15: 5&3 | AB15: 8 | AD15: 1B | AE15: =C15 -> VINAY | AF15: =IF(AE15="",-1,SUMIF(G14:G19,AE15,T14:T19)+SUMIF(H14:H19,AE15,U14:U19)) -> 2 | AG15: =SUMIF(G14:G19,AE15,Y14:Y19)+SUMIF(H14:H19,AE15,Z14:Z19) -> 19.007 | AH15: =100*AF15+AG15 -> 219.007 | AI15: =RANK(AH15,AH15:AH18) -> 1 | AJ15: =IF(AE15="","",INDEX(AE15:AE18,MATCH(1,AI15:AI18,0))) -> VINAY | AK15: =IF(AE15="","",VLOOKUP(AJ15,AE15:AF18,2,FALSE)) -> 2 | AL15: =IF(AE15="","",VLOOKUP(AJ15,AE15:AG18,3,FALSE)) -> 19.007
A16: B | B16: 5 | C16: =IF((VLOOKUP(B16,Joueurs!A$4:C$19,3,FALSE))=0,"",VLOOKUP(B16,Joueurs!A$4:C$19,3,FALSE)) -> NGUYEN | D16: =IF((VLOOKUP(B16,Joueurs!A$4:F$19,3,FALSE))=0,"",VLOOKUP(B16,Joueurs!A$4:F$19,6,FALSE)) -> 20.3 | F16: =CONCATENATE(A15,B16," / ",A15,B17) -> B5 / B12 | G16: =C16 -> NGUYEN | H16: =C17 -> GATIGNOL | I16: Partagé | J16: 9 | K16: NGUYEN / GATIGNOL | L16: B | M16: VINAY / BOISSERPE | N16: =IF(OR(G16="",H16=""),"",MIN(27,ROUND(0.75*(VLOOKUP(H16,Joueurs!$C$4:$F$19,4,FALSE)-VLOOKUP(G16,Joueurs!$C$4:$F$19,4,FALSE)),0))) -> 7 | O16: =IF(OR(G16="",H16=""),"",ROUND(MIN(27,0.75*(VLOOKUP(H16,Joueurs!$C$4:$F$19,4,FALSE)-VLOOKUP(G16,Joueurs!$C$4:$F$19,4,FALSE)))/2,0)) -> 3 | P16: 2018-06-06 | Q16: Villennes | R16: =IF(Q16="","",VLOOKUP(Q16,Parcours!$A$2:$B$130,2,FALSE)) -> 18 | S16: NGUYEN | T16: 1 | U16: 0 | V16: 5&3 | W16: 8 | X16: -8 | Y16: =W16+0.003 -> 8.003 | Z16: =X16+0.003 -> -7.997 | AA16: 5&4 | AB16: 9 | AD16: 2B | AE16: =C16 -> NGUYEN | AF16: =IF(AE16="",-1,SUMIF(G14:G19,AE16,T14:T19)+SUMIF(H14:H19,AE16,U14:U19)) -> 2 | AG16: =SUMIF(G14:G19,AE16,Y14:Y19)+SUMIF(H14:H19,AE16,Z14:Z19) -> 5.009 | AH16: =100*AF16+AG16 -> 205.009 | AI16: =RANK(AH16,AH15:AH18) -> 2 | AJ16: =IF(AE16="","",INDEX(AE15:AE18,MATCH(2,AI15:AI18,0))) -> NGUYEN | AK16: =IF(AE16="","",VLOOKUP(AJ16,AE15:AF18,2,FALSE)) -> 2 | AL16: =IF(AE16="","",VLOOKUP(AJ16,AE15:AG18,3,FALSE)) -> 5.009
B17: 12 | C17: =IF((VLOOKUP(B17,Joueurs!A$4:C$19,3,FALSE))=0,"",VLOOKUP(B17,Joueurs!A$4:C$19,3,FALSE)) -> GATIGNOL | D17: =IF((VLOOKUP(B17,Joueurs!A$4:F$19,3,FALSE))=0,"",VLOOKUP(B17,Joueurs!A$4:F$19,6,FALSE)) -> 29.5 | F17: =CONCATENATE(A15,B15," / ",A15,B18) -> B4 / B13 | G17: =C15 -> VINAY | H17: =C18 -> BOISSERPE | I17: Partagé | J17: 10 | K17: VINAY / BOISSERPE | L17: B | M17: NGUYEN / BOISSERPE | N17: =IF(OR(G17="",H17=""),"",MIN(27,ROUND(0.75*(VLOOKUP(H17,Joueurs!$C$4:$F$19,4,FALSE)-VLOOKUP(G17,Joueurs!$C$4:$F$19,4,FALSE)),0))) -> 11 | O17: =IF(OR(G17="",H17=""),"",ROUND(MIN(27,0.75*(VLOOKUP(H17,Joueurs!$C$4:$F$19,4,FALSE)-VLOOKUP(G17,Joueurs!$C$4:$F$19,4,FALSE)))/2,0)) -> 5 | P17: 2018-05-18 | Q17: Gadancourt | R17: =IF(Q17="","",VLOOKUP(Q17,Parcours!$A$2:$B$130,2,FALSE)) -> 18 | S17: VINAY | T17: =IF(K17="",0,IF(S17=G17,1,IF(S17="Partagé",0.5,0))) -> 1 | U17: =IF(K17="",0,IF(S17=H17,1,IF(S17="Partagé",0.5,0))) -> 0 | V17: 4&3 | W17: 7 | X17: -7 | Y17: =W17+0.004 -> 7.004 | Z17: =X17+0.004 -> -6.996 | AA17: 6&4 | AB17: 10 | AD17: 3B | AE17: =C17 -> GATIGNOL | AF17: =IF(AE17="",-1,SUMIF(G14:G19,AE17,T14:T19)+SUMIF(H14:H19,AE17,U14:U19)) -> 1 | AG17: =SUMIF(G14:G19,AE17,Y14:Y19)+SUMIF(H14:H19,AE17,Z14:Z19) -> -11.989 | AH17: 88.011 | AI17: =RANK(AH17,AH15:AH18) -> 4 | AJ17: =IF(AE17="","",INDEX(AE15:AE18,MATCH(3,AI15:AI18,0))) -> BOISSERPE | AK17: =IF(AE17="","",VLOOKUP(AJ17,AE15:AF18,2,FALSE)) -> 1 | AL17: =IF(AE17="","",VLOOKUP(AJ17,AE15:AG18,3,FALSE)) -> -11.985
B18: 13 | C18: =IF((VLOOKUP(B18,Joueurs!A$4:C$19,3,FALSE))=0,"",VLOOKUP(B18,Joueurs!A$4:C$19,3,FALSE)) -> BOISSERPE | D18: =IF((VLOOKUP(B18,Joueurs!A$4:F$19,3,FALSE))=0,"",VLOOKUP(B18,Joueurs!A$4:F$19,6,FALSE)) -> 34.5 | F18: =CONCATENATE(A15,B16," / ",A15,B18) -> B5 / B13 | G18: =C16 -> NGUYEN | H18: =C18 -> BOISSERPE | I18: Partagé | J18: 11 | K18: NGUYEN / BOISSERPE | L18: B | M18: GATIGNOL / BOISSERPE | N18: =IF(OR(G18="",H18=""),"",MIN(27,ROUND(0.75*(VLOOKUP(H18,Joueurs!$C$4:$F$19,4,FALSE)-VLOOKUP(G18,Joueurs!$C$4:$F$19,4,FALSE)),0))) -> 11 | O18: =IF(OR(G18="",H18=""),"",ROUND(MIN(27,0.75*(VLOOKUP(H18,Joueurs!$C$4:$F$19,4,FALSE)-VLOOKUP(G18,Joueurs!$C$4:$F$19,4,FALSE)))/2,0)) -> 5 | P18: 2018-05-10 | Q18: Cergy-Vauréal | R18: =IF(Q18="","",VLOOKUP(Q18,Parcours!$A$2:$B$130,2,FALSE)) -> 18 | S18: NGUYEN | T18: =IF(K18="",0,IF(S18=G18,1,IF(S18="Partagé",0.5,0))) -> 1 | U18: =IF(K18="",0,IF(S18=H18,1,IF(S18="Partagé",0.5,0))) -> 0 | V18: 6&4 | W18: 10 | X18: -10 | Y18: =W18+0.005 -> 10.005 | Z18: =X18+0.005 -> -9.995 | AA18: 6&5 | AB18: 11 | AD18: 4B | AE18: =C18 -> BOISSERPE | AF18: =IF(AE18="",-1,SUMIF(G14:G19,AE18,T14:T19)+SUMIF(H14:H19,AE18,U14:U19)) -> 1 | AG18: =SUMIF(G14:G19,AE18,Y14:Y19)+SUMIF(H14:H19,AE18,Z14:Z19) -> -11.985 | AH18: 88.015 | AI18: =RANK(AH18,AH15:AH18) -> 3 | AJ18: =IF(AE18="","",INDEX(AE15:AE18,MATCH(4,AI15:AI18,0))) -> GATIGNOL | AK18: =IF(AE18="","",VLOOKUP(AJ18,AE15:AF18,2,FALSE)) -> 1 | AL18: =IF(AE18="","",VLOOKUP(AJ18,AE15:AG18,3,FALSE)) -> -11.989
F19: =CONCATENATE(A15,B17," / ",A15,B18) -> B12 / B13 | G19: =C17 -> GATIGNOL | H19: =C18 -> BOISSERPE | I19: Partagé | J19: 12 | K19: GATIGNOL / BOISSERPE | L19: B | M19: COULOMB / DOGUIN | N19: =IF(OR(G19="",H19=""),"",MIN(27,ROUND(0.75*(VLOOKUP(H19,Joueurs!$C$4:$F$19,4,FALSE)-VLOOKUP(G19,Joueurs!$C$4:$F$19,4,FALSE)),0))) -> 4 | O19: =IF(OR(G19="",H19=""),"",ROUND(MIN(27,0.75*(VLOOKUP(H19,Joueurs!$C$4:$F$19,4,FALSE)-VLOOKUP(G19,Joueurs!$C$4:$F$19,4,FALSE)))/2,0)) -> 2 | P19: 2018-06-12 | Q19: Cergy-Vauréal | R19: =IF(Q19="","",VLOOKUP(Q19,Parcours!$A$2:$B$130,2,FALSE)) -> 18 | S19: BOISSERPE | T19: 0 | U19: 1 | V19: 3&2 | W19: -5 | X19: 5 | Y19: =W19+0.006 -> -4.994 | Z19: =X19+0.006 -> 5.006 | AA19: 7&5 | AB19: 12 | AJ19: =4-COUNTBLANK(AJ15:AJ18) -> 4 | AK19: =IF(AJ19=2,1,IF(AJ19=3,3,6)) -> 6 | AL19: =SUM(AK15:AK18) -> 6
J20: 12 | M20: COULOMB / LEFRANC | AA20: 7&6 | AB20: 13
F21: =CONCATENATE(A22,B22," / ",A22,B23) -> C3 / C6 | G21: =C22 -> COULOMB | H21: =C23 -> DOGUIN | I21: Partagé | J21: 13 | K21: =IF(OR(G21="",H21=""),"",CONCATENATE(G21," / ",H21)) -> COULOMB / DOGUIN | L21: C | M21: DOGUIN / LEFRANC | N21: =IF(OR(G21="",H21=""),"",MIN(27,ROUND(0.75*(VLOOKUP(H21,Joueurs!$C$4:$F$19,4,FALSE)-VLOOKUP(G21,Joueurs!$C$4:$F$19,4,FALSE)),0))) -> 3 | O21: =IF(OR(G21="",H21=""),"",ROUND(MIN(27,0.75*(VLOOKUP(H21,Joueurs!$C$4:$F$19,4,FALSE)-VLOOKUP(G21,Joueurs!$C$4:$F$19,4,FALSE)))/2,0)) -> 2 | P21: 2018-06-01 | Q21: La Chouette | R21: =IF(Q21="","",VLOOKUP(Q21,Parcours!$A$2:$B$130,2,FALSE)) -> 18 | S21: COULOMB | T21: =IF(K21="",0,IF(S21=G21,1,IF(S21="Partagé",0.5,0))) -> 1 | U21: =IF(K21="",0,IF(S21=H21,1,IF(S21="Partagé",0.5,0))) -> 0 | V21: 6&4 | W21: =IF(V21="",0,IF(T21=0,-VLOOKUP(V21,$AA$7:$AB$25,2,FALSE),IF(T21=1,VLOOKUP(V21,$AA$7:$AB$25,2,FALSE),0))) -> 10 | X21: =-W21 -> -10 | Y21: =W21+0.001 -> 10.001 | Z21: =X21+0.001 -> -9.999 | AA21: 8&6 | AB21: 14
A22: C | B22: 3 | C22: =IF((VLOOKUP(B22,Joueurs!A$4:C$19,3,FALSE))=0,"",VLOOKUP(B22,Joueurs!A$4:C$19,3,FALSE)) -> COULOMB | D22: =IF((VLOOKUP(B22,Joueurs!A$4:F$19,3,FALSE))=0,"",VLOOKUP(B22,Joueurs!A$4:F$19,6,FALSE)) -> 20.2 | F22: =CONCATENATE(A22,B22," / ",A22,B24) -> C3 / C11 | G22: =C22 -> COULOMB | H22: =C24 -> LEFRANC | I22: Partagé | J22: 14 | K22: COULOMB / LEFRANC | L22: C | M22: COULOMB / TRAVERS | N22: =IF(OR(G22="",H22=""),"",MIN(27,ROUND(0.75*(VLOOKUP(H22,Joueurs!$C$4:$F$19,4,FALSE)-VLOOKUP(G22,Joueurs!$C$4:$F$19,4,FALSE)),0))) -> 9 | O22: =IF(OR(G22="",H22=""),"",ROUND(MIN(27,0.75*(VLOOKUP(H22,Joueurs!$C$4:$F$19,4,FALSE)-VLOOKUP(G22,Joueurs!$C$4:$F$19,4,FALSE)))/2,0)) -> 5 | P22: 2018-05-11 | Q22: Saint-Quentin - Rouge | R22: =IF(Q22="","",VLOOKUP(Q22,Parcours!$A$2:$B$130,2,FALSE)) -> 18 | S22: LEFRANC | T22: 0 | U22: 1 | V22: 2&1 | W22: =IF(V22="",0,IF(T22=0,-VLOOKUP(V22,$AA$7:$AB$25,2,FALSE),IF(T22=1,VLOOKUP(V22,$AA$7:$AB$25,2,FALSE),0))) -> -3 | X22: =-W22 -> 3 | Y22: =W22+0.002 -> -2.998 | Z22: =X22+0.002 -> 3.002 | AA22: 8&7 | AB22: 15 | AD22: 1C | AE22: =C22 -> COULOMB | AF22: =IF(AE22="",-1,SUMIF(G21:G26,AE22,T21:T26)+SUMIF(H21:H26,AE22,U21:U26)) -> 2 | AG22: =SUMIF(G21:G26,AE22,Y21:Y26)+SUMIF(H21:H26,AE22,Z21:Z26) -> 8.007 | AH22: =100*AF22+AG22 -> 208.007 | AI22: =RANK(AH22,AH22:AH25) -> 1 | AJ22: =IF(AE22="","",INDEX(AE22:AE25,MATCH(1,AI22:AI25,0))) -> COULOMB | AK22: =IF(AE22="","",VLOOKUP(AJ22,AE22:AF25,2,FALSE)) -> 2 | AL22: =IF(AE22="","",VLOOKUP(AJ22,AE22:AG25,3,FALSE)) -> 8.007
A23: B | B23: 6 | C23: =IF((VLOOKUP(B23,Joueurs!A$4:C$19,3,FALSE))=0,"",VLOOKUP(B23,Joueurs!A$4:C$19,3,FALSE)) -> DOGUIN | D23: =IF((VLOOKUP(B23,Joueurs!A$4:F$19,3,FALSE))=0,"",VLOOKUP(B23,Joueurs!A$4:F$19,6,FALSE)) -> 24.7 | F23: =CONCATENATE(A22,B23," / ",A22,B24) -> C6 / C11 | G23: =C23 -> DOGUIN | H23: =C24 -> LEFRANC | I23: Partagé | J23: 15 | K23: DOGUIN / LEFRANC | L23: C | M23: DOGUIN / TRAVERS | N23: =IF(OR(G23="",H23=""),"",MIN(27,ROUND(0.75*(VLOOKUP(H23,Joueurs!$C$4:$F$19,4,FALSE)-VLOOKUP(G23,Joueurs!$C$4:$F$19,4,FALSE)),0))) -> 6 | O23: =IF(OR(G23="",H23=""),"",ROUND(MIN(27,0.75*(VLOOKUP(H23,Joueurs!$C$4:$F$19,4,FALSE)-VLOOKUP(G23,Joueurs!$C$4:$F$19,4,FALSE)))/2,0)) -> 3 | P23: 2018-07-13 | Q23: Saint Aubin - Le Mesnil | R23: =IF(Q23="","",VLOOKUP(Q23,Parcours!$A$2:$B$130,2,FALSE)) -> 18 | S23: DOGUIN | T23: 1 | U23: 0 | V23: 1UP | W23: 1 | X23: -1 | Y23: =W23+0.003 -> 1.003 | Z23: =X23+0.003 -> -0.997 | AA23: 9&7 | AB23: 16 | AD23: 2C | AE23: =C23 -> DOGUIN | AF23: =IF(AE23="",-1,SUMIF(G21:G26,AE23,T21:T26)+SUMIF(H21:H26,AE23,U21:U26)) -> 2 | AG23: =SUMIF(G21:G26,AE23,Y21:Y26)+SUMIF(H21:H26,AE23,Z21:Z26) -> -6.991 | AH23: =100*AF23+AG23 -> 193.009 | AI23: =RANK(AH23,AH22:AH25) -> 3 | AJ23: =IF(AE23="","",INDEX(AE22:AE25,MATCH(2,AI22:AI25,0))) -> LEFRANC | AK23: =IF(AE23="","",VLOOKUP(AJ23,AE22:AF25,2,FALSE)) -> 2 | AL23: =IF(AE23="","",VLOOKUP(AJ23,AE22:AG25,3,FALSE)) -> 4.011
B24: 11 | C24: =IF((VLOOKUP(B24,Joueurs!A$4:C$19,3,FALSE))=0,"",VLOOKUP(B24,Joueurs!A$4:C$19,3,FALSE)) -> LEFRANC | D24: =IF((VLOOKUP(B24,Joueurs!A$4:F$19,3,FALSE))=0,"",VLOOKUP(B24,Joueurs!A$4:F$19,6,FALSE)) -> 32.2 | F24: =CONCATENATE(A22,B22," / ",A22,B25) -> C3 / C14 | G24: =C22 -> COULOMB | H24: =C25 -> TRAVERS | I24: Partagé | J24: 16 | K24: COULOMB / TRAVERS | L24: C | M24: LEFRANC / TRAVERS | N24: =IF(OR(G24="",H24=""),"",MIN(27,ROUND(0.75*(VLOOKUP(H24,Joueurs!$C$4:$F$19,4,FALSE)-VLOOKUP(G24,Joueurs!$C$4:$F$19,4,FALSE)),0))) -> 10 | O24: =IF(OR(G24="",H24=""),"",ROUND(MIN(27,0.75*(VLOOKUP(H24,Joueurs!$C$4:$F$19,4,FALSE)-VLOOKUP(G24,Joueurs!$C$4:$F$19,4,FALSE)))/2,0)) -> 5 | P24: 2018-06-18 | Q24: Villennes | R24: =IF(Q24="","",VLOOKUP(Q24,Parcours!$A$2:$B$130,2,FALSE)) -> 18 | S24: COULOMB | T24: =IF(K24="",0,IF(S24=G24,1,IF(S24="Partagé",0.5,0))) -> 1 | U24: =IF(K24="",0,IF(S24=H24,1,IF(S24="Partagé",0.5,0))) -> 0 | V24: 1UP | W24: 1 | X24: -1 | Y24: =W24+0.004 -> 1.004 | Z24: =X24+0.004 -> -0.996 | AA24: 9&8 | AB24: 17 | AD24: 3C | AE24: =C24 -> LEFRANC | AF24: =IF(AE24="",-1,SUMIF(G21:G26,AE24,T21:T26)+SUMIF(H21:H26,AE24,U21:U26)) -> 2 | AG24: =SUMIF(G21:G26,AE24,Y21:Y26)+SUMIF(H21:H26,AE24,Z21:Z26) -> 4.011 | AH24: 204.011 | AI24: =RANK(AH24,AH22:AH25) -> 2 | AJ24: =IF(AE24="","",INDEX(AE22:AE25,MATCH(3,AI22:AI25,0))) -> DOGUIN | AK24: =IF(AE24="","",VLOOKUP(AJ24,AE22:AF25,2,FALSE)) -> 2 | AL24: =IF(AE24="","",VLOOKUP(AJ24,AE22:AG25,3,FALSE)) -> -6.991
B25: 14 | C25: =IF((VLOOKUP(B25,Joueurs!A$4:C$19,3,FALSE))=0,"",VLOOKUP(B25,Joueurs!A$4:C$19,3,FALSE)) -> TRAVERS | D25: =IF((VLOOKUP(B25,Joueurs!A$4:F$19,3,FALSE))=0,"",VLOOKUP(B25,Joueurs!A$4:F$19,6,FALSE)) -> 34 | F25: =CONCATENATE(A22,B23," / ",A22,B25) -> C6 / C14 | G25: =C23 -> DOGUIN | H25: =C25 -> TRAVERS | I25: Partagé | J25: 17 | K25: DOGUIN / TRAVERS | L25: C | M25: SZAFIR / ROBERT | N25: =IF(OR(G25="",H25=""),"",MIN(27,ROUND(0.75*(VLOOKUP(H25,Joueurs!$C$4:$F$19,4,FALSE)-VLOOKUP(G25,Joueurs!$C$4:$F$19,4,FALSE)),0))) -> 7 | O25: =IF(OR(G25="",H25=""),"",ROUND(MIN(27,0.75*(VLOOKUP(H25,Joueurs!$C$4:$F$19,4,FALSE)-VLOOKUP(G25,Joueurs!$C$4:$F$19,4,FALSE)))/2,0)) -> 3 | P25: 2018-07-11 | Q25: Villennes | R25: =IF(Q25="","",VLOOKUP(Q25,Parcours!$A$2:$B$130,2,FALSE)) -> 18 | S25: DOGUIN | T25: =IF(K25="",0,IF(S25=G25,1,IF(S25="Partagé",0.5,0))) -> 1 | U25: =IF(K25="",0,IF(S25=H25,1,IF(S25="Partagé",0.5,0))) -> 0 | V25: 2UP | W25: 2 | X25: -2 | Y25: =W25+0.005 -> 2.005 | Z25: =X25+0.005 -> -1.995 | AA25: 10&8 | AB25: 18 | AD25: 4C | AE25: =C25 -> TRAVERS | AF25: =IF(AE25="",-1,SUMIF(G21:G26,AE25,T21:T26)+SUMIF(H21:H26,AE25,U21:U26)) -> 0 | AG25: =SUMIF(G21:G26,AE25,Y21:Y26)+SUMIF(H21:H26,AE25,Z21:Z26) -> -4.985 | AH25: -4.985 | AI25: =RANK(AH25,AH22:AH25) -> 4 | AJ25: =IF(AE25="","",INDEX(AE22:AE25,MATCH(4,AI22:AI25,0))) -> TRAVERS | AK25: =IF(AE25="","",VLOOKUP(AJ25,AE22:AF25,2,FALSE)) -> 0 | AL25: =IF(AE25="","",VLOOKUP(AJ25,AE22:AG25,3,FALSE)) -> -4.985
F26: =CONCATENATE(A22,B24," / ",A22,B25) -> C11 / C14 | G26: =C24 -> LEFRANC | H26: =C25 -> TRAVERS | I26: Partagé | J26: 18 | K26: LEFRANC / TRAVERS | L26: C | M26: SZAFIR / GERSON | N26: =IF(OR(G26="",H26=""),"",MIN(27,ROUND(0.75*(VLOOKUP(H26,Joueurs!$C$4:$F$19,4,FALSE)-VLOOKUP(G26,Joueurs!$C$4:$F$19,4,FALSE)),0))) -> 1 | O26: =IF(OR(G26="",H26=""),"",ROUND(MIN(27,0.75*(VLOOKUP(H26,Joueurs!$C$4:$F$19,4,FALSE)-VLOOKUP(G26,Joueurs!$C$4:$F$19,4,FALSE)))/2,0)) -> 1 | P26: 2018-06-29 | Q26: Vaucouleurs - Vallons | R26: =IF(Q26="","",VLOOKUP(Q26,Parcours!$A$2:$B$130,2,FALSE)) -> 18 | S26: LEFRANC | T26: 1 | U26: 0 | V26: 2UP | W26: 2 | X26: -2 | Y26: =W26+0.006 -> 2.006 | Z26: =X26+0.006 -> -1.994 | AJ26: =4-COUNTBLANK(AJ22:AJ25) -> 4 | AK26: =IF(AJ26=2,1,IF(AJ26=3,3,6)) -> 6 | AL26: =SUM(AK22:AK25) -> 6
J27: 18 | M27: ROBERT / GERSON
F28: =CONCATENATE(A29,B29," / ",A29,B30) -> D2 / D7 | G28: =C29 -> SZAFIR | H28: =C30 -> ROBERT | I28: Partagé | J28: 19 | K28: =IF(OR(G28="",H28=""),"",CONCATENATE(G28," / ",H28)) -> SZAFIR / ROBERT | L28: D | M28: SZAFIR / ROME | N28: =IF(OR(G28="",H28=""),"",MIN(27,ROUND(0.75*(VLOOKUP(H28,Joueurs!$C$4:$F$19,4,FALSE)-VLOOKUP(G28,Joueurs!$C$4:$F$19,4,FALSE)),0))) -> 4 | O28: =IF(OR(G28="",H28=""),"",ROUND(MIN(27,0.75*(VLOOKUP(H28,Joueurs!$C$4:$F$19,4,FALSE)-VLOOKUP(G28,Joueurs!$C$4:$F$19,4,FALSE)))/2,0)) -> 2 | P28: 2018-05-26 | Q28: Forges les Bains | R28: =IF(Q28="","",VLOOKUP(Q28,Parcours!$A$2:$B$130,2,FALSE)) -> 18 | S28: Partagé | T28: =IF(K28="",0,IF(S28=G28,1,IF(S28="Partagé",0.5,0))) -> 0.5 | U28: =IF(K28="",0,IF(S28=H28,1,IF(S28="Partagé",0.5,0))) -> 0.5 | V28: AS | W28: =IF(V28="",0,IF(T28=0,-VLOOKUP(V28,$AA$7:$AB$25,2,FALSE),IF(T28=1,VLOOKUP(V28,$AA$7:$AB$25,2,FALSE),0))) -> 0 | X28: =-W28 -> 0 | Y28: =W28+0.001 -> 0.001 | Z28: =X28+0.001 -> 0.001
A29: D | B29: 2 | C29: =IF((VLOOKUP(B29,Joueurs!A$4:C$19,3,FALSE))=0,"",VLOOKUP(B29,Joueurs!A$4:C$19,3,FALSE)) -> SZAFIR | D29: =IF((VLOOKUP(B29,Joueurs!A$4:F$19,3,FALSE))=0,"",VLOOKUP(B29,Joueurs!A$4:F$19,6,FALSE)) -> 20.1 | F29: =CONCATENATE(A29,B29," / ",A29,B31) -> D2 / D10 | G29: =C29 -> SZAFIR | H29: =C31 -> GERSON | I29: Partagé | J29: 20 | K29: SZAFIR / GERSON | L29: D | M29: ROBERT / ROME | N29: =IF(OR(G29="",H29=""),"",MIN(27,ROUND(0.75*(VLOOKUP(H29,Joueurs!$C$4:$F$19,4,FALSE)-VLOOKUP(G29,Joueurs!$C$4:$F$19,4,FALSE)),0))) -> 1 | O29: =IF(OR(G29="",H29=""),"",ROUND(MIN(27,0.75*(VLOOKUP(H29,Joueurs!$C$4:$F$19,4,FALSE)-VLOOKUP(G29,Joueurs!$C$4:$F$19,4,FALSE)))/2,0)) -> 1 | P29: 2018-05-18 | Q29: Gadancourt | R29: =IF(Q29="","",VLOOKUP(Q29,Parcours!$A$2:$B$130,2,FALSE)) -> 18 | S29: GERSON | T29: 0 | U29: 1 | V29: 6&5 | W29: =IF(V29="",0,IF(T29=0,-VLOOKUP(V29,$AA$7:$AB$25,2,FALSE),IF(T29=1,VLOOKUP(V29,$AA$7:$AB$25,2,FALSE),0))) -> -11 | X29: =-W29 -> 11 | Y29: =W29+0.002 -> -10.998 | Z29: =X29+0.002 -> 11.002 | AD29: 1D | AE29: =C29 -> SZAFIR | AF29: =IF(AE29="",-1,SUMIF(G28:G33,AE29,T28:T33)+SUMIF(H28:H33,AE29,U28:U33)) -> 0.5 | AG29: =SUMIF(G28:G33,AE29,Y28:Y33)+SUMIF(H28:H33,AE29,Z28:Z33) -> -11.993 | AH29: =100*AF29+AG29 -> 38.007 | AI29: =RANK(AH29,AH29:AH32) -> 4 | AJ29: =IF(AE29="","",INDEX(AE29:AE32,MATCH(1,AI29:AI32,0))) -> ROME | AK29: =IF(AE29="","",VLOOKUP(AJ29,AE29:AF32,2,FALSE)) -> 3 | AL29: =IF(AE29="","",VLOOKUP(AJ29,AE29:AG32,3,FALSE)) -> 4.015
A30: B | B30: 7 | C30: =IF((VLOOKUP(B30,Joueurs!A$4:C$19,3,FALSE))=0,"",VLOOKUP(B30,Joueurs!A$4:C$19,3,FALSE)) -> ROBERT | D30: =IF((VLOOKUP(B30,Joueurs!A$4:F$19,3,FALSE))=0,"",VLOOKUP(B30,Joueurs!A$4:F$19,6,FALSE)) -> 25 | F30: =CONCATENATE(A29,B30," / ",A29,B31) -> D7 / D10 | G30: =C30 -> ROBERT | H30: =C31 -> GERSON | I30: Partagé | J30: 21 | K30: ROBERT / GERSON | L30: D | M30: GERSON / ROME | N30: =IF(OR(G30="",H30=""),"",MIN(27,ROUND(0.75*(VLOOKUP(H30,Joueurs!$C$4:$F$19,4,FALSE)-VLOOKUP(G30,Joueurs!$C$4:$F$19,4,FALSE)),0))) -> -3 | O30: =IF(OR(G30="",H30=""),"",ROUND(MIN(27,0.75*(VLOOKUP(H30,Joueurs!$C$4:$F$19,4,FALSE)-VLOOKUP(G30,Joueurs!$C$4:$F$19,4,FALSE)))/2,0)) -> -1 | P30: 2018-07-30 | Q30: National - Albatros | R30: =IF(Q30="","",VLOOKUP(Q30,Parcours!$A$2:$B$130,2,FALSE)) -> 18 | S30: GERSON | T30: 0 | U30: 1 | V30: 6&4 | W30: -10 | X30: 10 | Y30: =W30+0.003 -> -9.997 | Z30: =X30+0.003 -> 10.003 | AD30: 2D | AE30: =C30 -> ROBERT | AF30: =IF(AE30="",-1,SUMIF(G28:G33,AE30,T28:T33)+SUMIF(H28:H33,AE30,U28:U33)) -> 0.5 | AG30: =SUMIF(G28:G33,AE30,Y28:Y33)+SUMIF(H28:H33,AE30,Z28:Z33) -> -10.991 | AH30: =100*AF30+AG30 -> 39.009 | AI30: =RANK(AH30,AH29:AH32) -> 3 | AJ30: =IF(AE30="","",INDEX(AE29:AE32,MATCH(2,AI29:AI32,0))) -> GERSON | AK30: =IF(AE30="","",VLOOKUP(AJ30,AE29:AF32,2,FALSE)) -> 2 | AL30: =IF(AE30="","",VLOOKUP(AJ30,AE29:AG32,3,FALSE)) -> 19.011
B31: 10 | C31: =IF((VLOOKUP(B31,Joueurs!A$4:C$19,3,FALSE))=0,"",VLOOKUP(B31,Joueurs!A$4:C$19,3,FALSE)) -> GERSON | D31: =IF((VLOOKUP(B31,Joueurs!A$4:F$19,3,FALSE))=0,"",VLOOKUP(B31,Joueurs!A$4:F$19,6,FALSE)) -> 21.6 | F31: =CONCATENATE(A29,B29," / ",A29,B32) -> D2 / D15 | G31: =C29 -> SZAFIR | H31: =C32 -> ROME | I31: Partagé | J31: 22 | K31: SZAFIR / ROME | L31: D | N31: =IF(OR(G31="",H31=""),"",MIN(27,ROUND(0.75*(VLOOKUP(H31,Joueurs!$C$4:$F$19,4,FALSE)-VLOOKUP(G31,Joueurs!$C$4:$F$19,4,FALSE)),0))) -> 12 | O31: =IF(OR(G31="",H31=""),"",ROUND(MIN(27,0.75*(VLOOKUP(H31,Joueurs!$C$4:$F$19,4,FALSE)-VLOOKUP(G31,Joueurs!$C$4:$F$19,4,FALSE)))/2,0)) -> 6 | P31: 2018-08-30 | Q31: Tirage au sort | R31: =IF(Q31="","",VLOOKUP(Q31,Parcours!$A$2:$B$130,2,FALSE)) -> 18 | S31: ROME | T31: =IF(K31="",0,IF(S31=G31,1,IF(S31="Partagé",0.5,0))) -> 0 | U31: =IF(K31="",0,IF(S31=H31,1,IF(S31="Partagé",0.5,0))) -> 1 | V31: 1UP | W31: -1 | X31: 1 | Y31: =W31+0.004 -> -0.996 | Z31: =X31+0.004 -> 1.004 | AD31: 3D | AE31: =C31 -> GERSON | AF31: =IF(AE31="",-1,SUMIF(G28:G33,AE31,T28:T33)+SUMIF(H28:H33,AE31,U28:U33)) -> 2 | AG31: =SUMIF(G28:G33,AE31,Y28:Y33)+SUMIF(H28:H33,AE31,Z28:Z33) -> 19.011 | AH31: 219.011 | AI31: =RANK(AH31,AH29:AH32) -> 2 | AJ31: =IF(AE31="","",INDEX(AE29:AE32,MATCH(3,AI29:AI32,0))) -> ROBERT | AK31: =IF(AE31="","",VLOOKUP(AJ31,AE29:AF32,2,FALSE)) -> 0.5 | AL31: =IF(AE31="","",VLOOKUP(AJ31,AE29:AG32,3,FALSE)) -> -10.991
B32: 15 | C32: =IF((VLOOKUP(B32,Joueurs!A$4:C$19,3,FALSE))=0,"",VLOOKUP(B32,Joueurs!A$4:C$19,3,FALSE)) -> ROME | D32: =IF((VLOOKUP(B32,Joueurs!A$4:F$19,3,FALSE))=0,"",VLOOKUP(B32,Joueurs!A$4:F$19,6,FALSE)) -> 36 | F32: =CONCATENATE(A29,B30," / ",A29,B32) -> D7 / D15 | G32: =C30 -> ROBERT | H32: =C32 -> ROME | I32: Partagé | J32: 23 | K32: ROBERT / ROME | L32: D | N32: =IF(OR(G32="",H32=""),"",MIN(27,ROUND(0.75*(VLOOKUP(H32,Joueurs!$C$4:$F$19,4,FALSE)-VLOOKUP(G32,Joueurs!$C$4:$F$19,4,FALSE)),0))) -> 8 | O32: =IF(OR(G32="",H32=""),"",ROUND(MIN(27,0.75*(VLOOKUP(H32,Joueurs!$C$4:$F$19,4,FALSE)-VLOOKUP(G32,Joueurs!$C$4:$F$19,4,FALSE)))/2,0)) -> 4 | P32: 2018-05-18 | Q32: Gadancourt | R32: =IF(Q32="","",VLOOKUP(Q32,Parcours!$A$2:$B$130,2,FALSE)) -> 18 | S32: ROME | T32: =IF(K32="",0,IF(S32=G32,1,IF(S32="Partagé",0.5,0))) -> 0 | U32: =IF(K32="",0,IF(S32=H32,1,IF(S32="Partagé",0.5,0))) -> 1 | V32: 1UP | W32: -1 | X32: 1 | Y32: =W32+0.005 -> -0.995 | Z32: =X32+0.005 -> 1.005 | AD32: 4D | AE32: =C32 -> ROME | AF32: =IF(AE32="",-1,SUMIF(G28:G33,AE32,T28:T33)+SUMIF(H28:H33,AE32,U28:U33)) -> 3 | AG32: =SUMIF(G28:G33,AE32,Y28:Y33)+SUMIF(H28:H33,AE32,Z28:Z33) -> 4.015 | AH32: 304.015 | AI32: =RANK(AH32,AH29:AH32) -> 1 | AJ32: =IF(AE32="","",INDEX(AE29:AE32,MATCH(4,AI29:AI32,0))) -> SZAFIR | AK32: =IF(AE32="","",VLOOKUP(AJ32,AE29:AF32,2,FALSE)) -> 0.5 | AL32: =IF(AE32="","",VLOOKUP(AJ32,AE29:AG32,3,FALSE)) -> -11.993
F33: =CONCATENATE(A29,B31," / ",A29,B32) -> D10 / D15 | G33: =C31 -> GERSON | H33: =C32 -> ROME | I33: Partagé | J33: 24 | K33: GERSON / ROME | L33: D | N33: =IF(OR(G33="",H33=""),"",MIN(27,ROUND(0.75*(VLOOKUP(H33,Joueurs!$C$4:$F$19,4,FALSE)-VLOOKUP(G33,Joueurs!$C$4:$F$19,4,FALSE)),0))) -> 11 | O33: =IF(OR(G33="",H33=""),"",ROUND(MIN(27,0.75*(VLOOKUP(H33,Joueurs!$C$4:$F$19,4,FALSE)-VLOOKUP(G33,Joueurs!$C$4:$F$19,4,FALSE)))/2,0)) -> 5 | P33: 2018-05-26 | Q33: Forges les Bains | R33: =IF(Q33="","",VLOOKUP(Q33,Parcours!$A$2:$B$130,2,FALSE)) -> 18 | S33: ROME | T33: 0 | U33: 1 | V33: 2UP | W33: -2 | X33: 2 | Y33: =W33+0.006 -> -1.994 | Z33: =X33+0.006 -> 2.006 | AJ33: =4-COUNTBLANK(AJ29:AJ32) -> 4 | AK33: =IF(AJ33=2,1,IF(AJ33=3,3,6)) -> 6 | AL33: =SUM(AK29:AK32) -> 6
A35: => Cliquer sur le nom d'une rencontre pour accéder à sa feuille de match
A36: Hcp18 : | C36: nombre de coups reçus par le joueur de plus faible index sur un 18 trous
A37: Hcp9 : | C37: nombre de coups reçus par le joueur de plus faible index sur un 9 trous
A38: Points : | C38: points notant la performance de la rencontre. AS=0, 1UP = 1, 2UP=2, 2&1=3, 3&1=4, 3&2=5, … Sert à départager les ex-aequos.

Sheet Tournoi
G2: =CONCATENATE("Challenge 35 cuvée ",Cuvée," : tableau final") -> Challenge 35 cuvée 2018 : tableau final
C5: 1/4 finale (avant 8 oct.)
E6: 1/2 finale (avant 29 oct.)
B7: 1A | C7: =IF(OR(Poules!AK8>=Poules!$AJ$12-1,Poules!$AK$12=Poules!$AL$12),Poules!AJ8,"") -> MABILE | E7: =IF(OR(C7="",C10=""),"",CONCATENATE(C7," / ",C10)) -> MABILE / LEFRANC
C8: =C7 -> MABILE | D8: Saint Marc | E8: MABILE | F8: 8&6
C9: =C10 -> LEFRANC | D9: 2018-09-26 | H9: Finale (10 nov.)
B10: 2C | C10: =IF(OR(Poules!AK23>=Poules!$AJ$26-1,Poules!$AK$26=Poules!$AL$26),Poules!AJ23,"") -> LEFRANC | H10: =IF(OR(E8="",E14=""),"",CONCATENATE(E8," / ",E14)) -> MABILE / ROME
E11: =E8 -> MABILE | G11: Villennes | H11: MABILE | I11: 3&2
E12: =E14 -> ROME | G12: 2018-11-02
B13: 1D | C13: =IF(OR(Poules!AK29>=Poules!$AJ$33-1,Poules!$AK$33=Poules!$AL$33),Poules!AJ29,"") -> ROME | E13: =IF(OR(C13="",C16=""),"",CONCATENATE(C13," / ",C16)) -> ROME / NGUYEN
C14: =C13 -> ROME | D14: Sologne | E14: ROME | F14: 4&2
C15: =C16 -> NGUYEN | D15: 2018-09-22 | K15: Vainqueur
B16: 2B | C16: =IF(OR(Poules!AK16>=Poules!$AJ$19-1,Poules!$AK$19=Poules!$AL$19),Poules!AJ16,"") -> NGUYEN | K16: =IF(OR(H11="",H23=""),"",CONCATENATE(H11," / ",H23)) -> MABILE / VINAY
H17: =H11 -> MABILE | J17: Fourqueux - Blanc Rouge | K17: VINAY | L17: 7&5
H18: =H23 -> VINAY | J18: 2018-11-10
B19: 1C | C19: =IF(OR(Poules!AK22>=Poules!$AJ$26-1,Poules!$AK$26=Poules!$AL$26),Poules!AJ22,"") -> COULOMB | E19: =IF(OR(C19="",C22=""),"",CONCATENATE(C19," / ",C22)) -> COULOMB / BORDET
C20: =C19 -> COULOMB | D20: Saint Marc | E20: COULOMB | F20: 2&1
C21: =C22 -> BORDET | D21: 2018-09-20
B22: 2A | C22: =IF(OR(Poules!AK9>=Poules!$AJ$12-1,Poules!$AK$12=Poules!$AL$12),Poules!AJ9,"") -> BORDET | H22: =IF(OR(E20="",E26=""),"",CONCATENATE(E20," / ",E26)) -> COULOMB / VINAY
E23: =E20 -> COULOMB | G23: La Chouette | H23: VINAY | I23: 6&5
E24: =E26 -> VINAY | G24: 2018-10-23
B25: 2D | C25: =IF(OR(Poules!AK30>=Poules!$AJ$33-1,Poules!$AK$33=Poules!$AL$33),Poules!AJ30,"") -> GERSON | E25: =IF(OR(C25="",C28=""),"",CONCATENATE(C25," / ",C28)) -> GERSON / VINAY
C26: =C25 -> GERSON | D26: Marivaux | E26: VINAY | F26: 4&2
C27: =C28 -> VINAY | D27: 2018-09-28
B28: 1B | C28: =IF(OR(Poules!AK15>=Poules!$AJ$19-1,Poules!$AK$19=Poules!$AL$19),Poules!AJ15,"") -> VINAY
D31: ----- Rencontre Tournoi ----- | E31: Match | F31: Date | G31: Lieu | L31: Index | N31: Score joueur 1 | AF31: Score joueur 2 | AX31: Commentaire
D32: =CONCATENATE(C7," / ",C10) -> MABILE / LEFRANC | E32: 1/4 de finale | F32: =IF(D9="","",D9) -> 2018-09-26 | G32: =IF(D8="","",D8) -> Saint Marc | L32: 17.3 | M32: 32.7 | N32: 4 | O32: 5 | P32: 6 | Q32: 5 | R32: 5 | S32: 4 | T32: 5 | U32: 7 | V32: 3 | W32: 4 | X32: 5 | Y32: 3 | Z32: 6 | AA32: 5 | AB32: 3 | AC32: 7 | AD32: 5 | AE32: 5 | AF32: 4 | AG32: 7 | AH32: 9 | AI32: 6 | AJ32: 6 | AK32: 5 | AL32: 8 | AM32: 9 | AN32: 4 | AO32: 7 | AP32: x | AQ32: 6 | AR32: x | AS32: 5 | AT32: 3 | AU32: 6 | AV32: 5 | AW32: 6
D33: =CONCATENATE(C13," / ",C16) -> ROME / NGUYEN | E33: 1/4 de finale | F33: =IF(D15="","",D15) -> 2018-09-22 | G33: =IF(D14="","",D14) -> Sologne | L33: 20.3 | M33: 36 | N33: 6 | O33: 8 | P33: 9 | Q33: 5 | R33: 6 | S33: 5 | T33: 8 | U33: 4 | V33: 6 | W33: 4 | X33: 5 | Y33: 6 | Z33: 6 | AA33: 9 | AB33: 5 | AC33: 6 | AD33: 5 | AE33: 7 | AF33: 6 | AG33: x | AH33: 5 | AI33: 6 | AJ33: 6 | AK33: 5 | AL33: 5 | AM33: 5 | AN33: 8 | AO33: 3 | AP33: 6 | AQ33: 5 | AR33: 5 | AS33: 12 | AT33: 5 | AU33: 9 | AV33: 7 | AW33: 6 | AX33: Départ en shotgun du 10. Résultat effectif : ROME 4&2
D34: =CONCATENATE(C19," / ",C22) -> COULOMB / BORDET | E34: 1/4 de finale | F34: =IF(D21="","",D21) -> 2018-09-20 | G34: =IF(D20="","",D20) -> Saint Marc | L34: 20.2 | M34: 28.4 | N34: 5 | O34: x | P34: 6 | Q34: 8 | R34: 7 | S34: 4 | T34: 7 | U34: 6 | V34: 6 | W34: 6 | X34: 6 | Y34: 4 | Z34: 8 | AA34: 6 | AB34: 4 | AC34: 8 | AD34: 4 | AE34: 5 | AF34: 5 | AG34: 6 | AH34: x | AI34: 9 | AJ34: 7 | AK34: 5 | AL34: 5 | AM34: x | AN34: 4 | AO34: 7 | AP34: 7 | AQ34: 6 | AR34: 7 | AS34: 6 | AT34: 5 | AU34: 8 | AV34: 6 | AW34: 5
D35: =CONCATENATE(C25," / ",C28) -> GERSON / VINAY | E35: 1/4 de finale | F35: =IF(D27="","",D27) -> 2018-09-28 | G35: =IF(D26="","",D26) -> Marivaux | L35: 20.5 | M35: 21.6 | N35: 5 | O35: 7 | P35: 4 | Q35: 5 | R35: 5 | S35: 5 | T35: 6 | U35: 3 | V35: 6 | W35: 5 | X35: 4 | Y35: 8 | Z35: 6 | AA35: 5 | AB35: 6 | AC35: 7 | AD35: 5 | AE35: 6 | AF35: 5 | AG35: 7 | AH35: 4 | AI35: 6 | AJ35: 8 | AK35: 4 | AL35: 6 | AM35: 3 | AN35: 7 | AO35: 5 | AP35: 5 | AQ35: 5 | AR35: 7 | AS35: 6 | AT35: 5 | AU35: 8 | AV35: 5 | AW35: 6
D36: =CONCATENATE(E8," / ",E14) -> MABILE / ROME | E36: 1/2 finale | F36: =IF(G12="","",G12) -> 2018-11-02 | G36: =IF(G11="","",G11) -> Villennes | L36: 17.4 | M36: 36 | N36: 4 | O36: 5 | P36: 4 | Q36: 7 | R36: 7 | S36: 4 | T36: 5 | U36: 5 | V36: 6 | W36: 5 | X36: 4 | Y36: 5 | Z36: 5 | AA36: 5 | AB36: 4 | AC36: 4 | AD36: 7 | AE36: 5 | AF36: 6 | AG36: 8 | AH36: 3 | AI36: 8 | AJ36: 6 | AK36: 5 | AL36: 6 | AM36: 9 | AN36: 7 | AO36: 3 | AP36: 5 | AQ36: 6 | AR36: 6 | AS36: 6 | AT36: 9 | AU36: 7 | AV36: 7 | AW36: 6
D37: =CONCATENATE(E20," / ",E26) -> COULOMB / VINAY | E37: 1/2 finale | F37: =IF(G24="","",G24) -> 2018-10-23 | G37: =IF(G23="","",G23) -> La Chouette | L37: 20.2 | M37: 20.5 | N37: 5 | O37: 6 | P37: 4 | Q37: 7 | R37: 6 | S37: 8 | T37: 4 | U37: 8 | V37: 6 | W37: 6 | X37: 8 | Y37: 8 | Z37: 8 | AF37: 4 | AG37: 6 | AH37: 4 | AI37: 8 | AJ37: 5 | AK37: 6 | AL37: 3 | AM37: 7 | AN37: 7 | AO37: 6 | AP37: 6 | AQ37: 5 | AR37: 6
D38: =CONCATENATE(H11," / ",H23) -> MABILE / VINAY | E38: Finale | F38: =IF(J18="","",J18) -> 2018-11-10 | G38: =IF(J17="","",J17) -> Fourqueux - Blanc Rouge | L38: 17.4 | M38: 20.5 | N38: 6 | O38: 9 | P38: 6 | Q38: 6 | R38: 6 | S38: 5 | T38: 6 | U38: 5 | V38: 5 | W38: x | X38: x | Y38: x | Z38: 4 | AA38: 5 | AB38: 5 | AC38: 6 | AD38: 6 | AE38: 3 | AF38: 3 | AG38: 7 | AH38: 6 | AI38: 5 | AJ38: 6 | AK38: 4 | AL38: 6 | AM38: 6 | AN38: 5 | AO38: 8 | AP38: 6 | AQ38: 6 | AR38: 2 | AS38: 6 | AT38: 5 | AU38: 6 | AV38: x | AW38: 3
D39: ----- Rencontre Poules -----
D40: =Poules!M7 -> MABILE / M'HAMDI | E40: =CONCATENATE("Poule ",VLOOKUP(D40,Poules!K7:Q33,2,FALSE)) -> Poule A | F40: =IF(VLOOKUP(D40,Poules!K7:Q33,6,FALSE)="","",VLOOKUP(D40,Poules!K7:Q33,6,FALSE)) -> 2018-06-24 | G40: =VLOOKUP(D40,Poules!K7:Q33,7,FALSE) -> Omaha Beach - Mer | L40: 17.1 | M40: 27.5 | N40: 7 | O40: 4 | P40: 5 | Q40: 6 | R40: 7 | S40: 6 | T40: 5 | U40: 3 | V40: 5 | W40: 5 | X40: 6 | Y40: 4 | Z40: 5 | AA40: 5 | AB40: 5 | AC40: x | AD40: 5 | AE40: 5 | AF40: 7 | AG40: 5 | AH40: x | AI40: 6 | AJ40: 8 | AK40: 8 | AL40: 4 | AM40: x | AN40: x | AO40: 5 | AP40: 9 | AQ40: x | AR40: 8 | AS40: 5 | AT40: 4 | AU40: 6 | AV40: 7 | AW40: 5
D41: =Poules!M8 -> MABILE / BORDET | E41: =CONCATENATE("Poule ",VLOOKUP(D41,Poules!K8:Q34,2,FALSE)) -> Poule A | F41: =IF(VLOOKUP(D41,Poules!K8:Q34,6,FALSE)="","",VLOOKUP(D41,Poules!K8:Q34,6,FALSE)) -> 2018-05-03 | G41: =VLOOKUP(D41,Poules!K8:Q34,7,FALSE) -> Saint Aubin - Le Mesnil | L41: 16.9 | M41: 29.4 | N41: 8 | O41: 5 | P41: 6 | Q41: 5 | R41: x | S41: 5 | T41: 5 | U41: 4 | V41: 6 | W41: 5 | X41: 5 | Y41: 5 | Z41: 6 | AA41: 6 | AB41: x | AC41: 6 | AD41: x | AE41: 5 | AF41: 10 | AG41: 6 | AH41: 9 | AI41: 6 | AJ41: 6 | AK41: x | AL41: 4 | AM41: x | AN41: 6 | AO41: 5 | AP41: 7 | AQ41: 6 | AR41: 6 | AS41: x | AT41: 4 | AU41: x | AV41: 4 | AW41: 6
D42: =Poules!M9 -> M'HAMDI / BORDET | E42: =CONCATENATE("Poule ",VLOOKUP(D42,Poules!K9:Q36,2,FALSE)) -> Poule A | F42: =IF(VLOOKUP(D42,Poules!K9:Q35,6,FALSE)="","",VLOOKUP(D42,Poules!K9:Q35,6,FALSE)) -> 2018-05-26 | G42: =VLOOKUP(D42,Poules!K9:Q36,7,FALSE) -> Forges les Bains | L42: 27.5 | M42: 29.4 | N42: 6 | O42: 3 | P42: 9 | Q42: 8 | R42: 9 | S42: 9 | T42: 7 | U42: 5 | V42: 10 | W42: 6 | X42: 6 | Y42: 5 | Z42: 10 | AA42: 9 | AB42: 6 | AC42: 6 | AD42: 6 | AE42: 8 | AF42: 5 | AG42: 6 | AH42: 7 | AI42: 8 | AJ42: 6 | AK42: 6 | AL42: 6 | AM42: 5 | AN42: 7 | AO42: 7 | AP42: 8 | AQ42: 4 | AR42: 7 | AS42: 6 | AT42: 5 | AU42: 8 | AV42: 7 | AW42: 7 | AX42: Shotgun avec départ du trou 12. Résultat effectif : BORDET 6&5
D43: =Poules!M10 -> MABILE / PICARD | E43: =CONCATENATE("Poule ",VLOOKUP(D43,Poules!K10:Q37,2,FALSE)) -> Poule A | F43: =IF(VLOOKUP(D43,Poules!K10:Q36,6,FALSE)="","",VLOOKUP(D43,Poules!K10:Q36,6,FALSE)) -> 2018-06-23 | G43: =VLOOKUP(D43,Poules!K10:Q37,7,FALSE) -> Caen - Plaine Vallon
D44: =Poules!M11 -> M'HAMDI / PICARD | E44: =CONCATENATE("Poule ",VLOOKUP(D44,Poules!K11:Q38,2,FALSE)) -> Poule A | F44: =IF(VLOOKUP(D44,Poules!K11:Q37,6,FALSE)="","",VLOOKUP(D44,Poules!K11:Q37,6,FALSE)) -> 2018-05-18 | G44: =VLOOKUP(D44,Poules!K11:Q38,7,FALSE) -> Gadancourt | L44: 27.5 | M44: 51 | N44: 7 | O44: 6 | P44: 5 | Q44: 5 | R44: 6 | S44: 8 | T44: 8 | U44: 5 | V44: 7 | W44: 6 | X44: 4 | Y44: 6 | Z44: 8 | AA44: 6 | AB44: 6 | AC44: 6 | AD44: 8 | AE44: 6 | AF44: 7 | AG44: 8 | AH44: 7 | AI44: 4 | AJ44: 6 | AK44: 8 | AL44: 6 | AM44: x | AN44: 4 | AO44: 7 | AP44: 7 | AQ44: 8 | AR44: 5 | AS44: x | AT44: 4 | AU44: x | AV44: 8 | AW44: 6
D45: =Poules!M12 -> BORDET / PICARD | E45: =CONCATENATE("Poule ",VLOOKUP(D45,Poules!K12:Q39,2,FALSE)) -> Poule A | F45: =IF(VLOOKUP(D45,Poules!K12:Q38,6,FALSE)="","",VLOOKUP(D45,Poules!K12:Q38,6,FALSE)) -> 2018-06-13 | G45: =VLOOKUP(D45,Poules!K12:Q39,7,FALSE) -> Rueil-Malmaison - 18T | L45: 29.4 | M45: 46 | N45: 4 | O45: x | P45: 9 | Q45: 4 | R45: 4 | S45: 5 | T45: 4 | U45: 5 | V45: 4 | W45: 4 | X45: 6 | Y45: 8 | Z45: 5 | AA45: 5 | AB45: 5 | AC45: x | AD45: 5 | AE45: 5 | AF45: 6 | AG45: 7 | AH45: 8 | AI45: 6 | AJ45: 7 | AK45: 4 | AL45: 5 | AM45: x | AN45: 3 | AO45: 4 | AP45: 6 | AQ45: x | AR45: 8 | AS45: 8 | AT45: 5 | AU45: 4 | AV45: x | AW45: x
D46: =Poules!M13 -> VINAY / NGUYEN | E46: =CONCATENATE("Poule ",VLOOKUP(D46,Poules!K13:Q40,2,FALSE)) -> Poule B | F46: =IF(VLOOKUP(D46,Poules!K13:Q39,6,FALSE)="","",VLOOKUP(D46,Poules!K13:Q39,6,FALSE)) -> 2018-07-26 | G46: =VLOOKUP(D46,Poules!K13:Q40,7,FALSE) -> National - Aigle | L46: 20.5 | M46: 23.1 | N46: 5 | O46: 5 | P46: 4 | Q46: 4 | R46: 4 | S46: 3 | T46: 7 | U46: 7 | V46: 4 | W46: 4 | X46: 5 | Y46: 5 | Z46: 6 | AA46: 5 | AB46: 5 | AC46: 4 | AD46: 5 | AE46: 4 | AF46: 6 | AG46: 6 | AH46: 6 | AI46: 4 | AJ46: 5 | AK46: 6 | AL46: 8 | AM46: 7 | AN46: 7 | AO46: 5 | AP46: 5 | AQ46: 6 | AR46: 5 | AS46: 6 | AT46: 7 | AU46: 6 | AV46: 6 | AW46: 4
D47: =Poules!M14 -> VINAY / GATIGNOL | E47: =CONCATENATE("Poule ",VLOOKUP(D47,Poules!K14:Q41,2,FALSE)) -> Poule B | F47: =IF(VLOOKUP(D47,Poules!K14:Q40,6,FALSE)="","",VLOOKUP(D47,Poules!K14:Q40,6,FALSE)) -> 2018-06-29 | G47: =VLOOKUP(D47,Poules!K14:Q41,7,FALSE) -> Vaucouleurs - Vallons | L47: 20.5 | M47: 33.5 | N47: 6 | O47: 4 | P47: x | Q47: 4 | R47: 6 | S47: 5 | T47: 3 | U47: 7 | V47: 6 | W47: 5 | X47: 5 | Y47: 5 | Z47: 6 | AA47: 4 | AB47: 4 | AC47: 5 | AD47: 5 | AE47: 5 | AF47: 5 | AG47: 4 | AH47: 8 | AI47: 5 | AJ47: 6 | AK47: 5 | AL47: 7 | AM47: x | AN47: 7 | AO47: x | AP47: 5 | AQ47: 4 | AR47: 7 | AS47: 6 | AT47: 7 | AU47: 6 | AV47: 5 | AW47: 5
D48: =Poules!M15 -> NGUYEN / GATIGNOL | E48: =CONCATENATE("Poule ",VLOOKUP(D48,Poules!K15:Q42,2,FALSE)) -> Poule B | F48: =IF(VLOOKUP(D48,Poules!K15:Q41,6,FALSE)="","",VLOOKUP(D48,Poules!K15:Q41,6,FALSE)) -> 2018-06-06 | G48: =VLOOKUP(D48,Poules!K15:Q42,7,FALSE) -> Villennes | L48: 23.1 | M48: 33.5 | N48: 5 | O48: 5 | P48: 5 | Q48: 5 | R48: 5 | S48: x | T48: 6 | U48: 5 | V48: 5 | W48: 5 | X48: 5 | Y48: 7 | Z48: 5 | AA48: 6 | AB48: 4 | AC48: 5 | AD48: 5 | AE48: 7 | AF48: 6 | AG48: 7 | AH48: 5 | AI48: x | AJ48: 6 | AK48: 4 | AL48: 8 | AM48: 5 | AN48: 7 | AO48: 4 | AP48: 7 | AQ48: 6 | AR48: 6 | AS48: 9 | AT48: 6 | AU48: 6 | AV48: 9 | AW48: x
D49: =Poules!M16 -> VINAY / BOISSERPE | E49: =CONCATENATE("Poule ",VLOOKUP(D49,Poules!K16:Q43,2,FALSE)) -> Poule B | F49: =IF(VLOOKUP(D49,Poules!K16:Q42,6,FALSE)="","",VLOOKUP(D49,Poules!K16:Q42,6,FALSE)) -> 2018-05-18 | G49: =VLOOKUP(D49,Poules!K16:Q43,7,FALSE) -> Gadancourt | L49: 20.5 | M49: 34.5 | N49: 5 | O49: 5 | P49: 4 | Q49: 4 | R49: 6 | S49: 7 | T49: 6 | U49: 5 | V49: 5 | W49: 6 | X49: 4 | Y49: 6 | Z49: 5 | AA49: 5 | AB49: 5 | AC49: x | AD49: 5 | AE49: 6 | AF49: 6 | AG49: 8 | AH49: 8 | AI49: 4 | AJ49: 5 | AK49: 9 | AL49: 6 | AM49: 5 | AN49: 4 | AO49: 9 | AP49: 6 | AQ49: 8 | AR49: 8 | AS49: 7 | AT49: 5 | AU49: 8 | AV49: 8 | AW49: 6
D50: =Poules!M17 -> NGUYEN / BOISSERPE | E50: =CONCATENATE("Poule ",VLOOKUP(D50,Poules!K17:Q44,2,FALSE)) -> Poule B | F50: =IF(VLOOKUP(D50,Poules!K17:Q43,6,FALSE)="","",VLOOKUP(D50,Poules!K17:Q43,6,FALSE)) -> 2018-05-10 | G50: =VLOOKUP(D50,Poules!K17:Q44,7,FALSE) -> Cergy-Vauréal
D51: =Poules!M18 -> GATIGNOL / BOISSERPE | E51: =CONCATENATE("Poule ",VLOOKUP(D51,Poules!K18:Q45,2,FALSE)) -> Poule B | F51: =IF(VLOOKUP(D51,Poules!K18:Q44,6,FALSE)="","",VLOOKUP(D51,Poules!K18:Q44,6,FALSE)) -> 2018-06-12 | G51: =VLOOKUP(D51,Poules!K18:Q45,7,FALSE) -> Cergy-Vauréal | L51: 33.5 | M51: 34.5 | N51: 5 | O51: 5 | P51: 4 | Q51: 5 | R51: 7 | S51: 5 | T51: 8 | U51: 6 | V51: x | W51: 8 | X51: 8 | Y51: 5 | Z51: 8 | AA51: 6 | AB51: 9 | AC51: 8 | AD51: 5 | AE51: 9 | AF51: 7 | AG51: 5 | AH51: 7 | AI51: 4 | AJ51: 6 | AK51: 5 | AL51: 6 | AM51: 6 | AN51: 7 | AO51: 7 | AP51: 9 | AQ51: 6 | AR51: 7 | AS51: x | AT51: 7 | AU51: 7 | AV51: 4 | AW51: 9
D52: =Poules!M19 -> COULOMB / DOGUIN | E52: =CONCATENATE("Poule ",VLOOKUP(D52,Poules!K19:Q46,2,FALSE)) -> Poule C | F52: =IF(VLOOKUP(D52,Poules!K19:Q45,6,FALSE)="","",VLOOKUP(D52,Poules!K19:Q45,6,FALSE)) -> 2018-06-01 | G52: =VLOOKUP(D52,Poules!K19:Q46,7,FALSE) -> La Chouette | L52: 20.2 | M52: 24.7 | N52: 6 | O52: 5 | P52: 4 | Q52: 5 | R52: 6 | S52: 6 | T52: 3 | U52: 7 | V52: 6 | W52: 5 | X52: 8 | Y52: 5 | Z52: 7 | AA52: 4 | AB52: 6 | AC52: 7 | AD52: 6 | AE52: 5 | AF52: 7 | AG52: 8 | AH52: 9 | AI52: 8 | AJ52: 7 | AK52: 7 | AL52: 6 | AM52: 5 | AN52: 5 | AO52: 4 | AP52: 9 | AQ52: 5 | AR52: 11 | AS52: 5 | AT52: 6 | AU52: 10 | AV52: 3 | AW52: 10
D53: =Poules!M20 -> COULOMB / LEFRANC | E53: =CONCATENATE("Poule ",VLOOKUP(D53,Poules!K20:Q47,2,FALSE)) -> Poule C | F53: =IF(VLOOKUP(D53,Poules!K20:Q46,6,FALSE)="","",VLOOKUP(D53,Poules!K20:Q46,6,FALSE)) -> 2018-05-11 | G53: =VLOOKUP(D53,Poules!K20:Q47,7,FALSE) -> Saint-Quentin - Rouge | L53: 20.2 | M53: 32.7 | N53: 5 | O53: 5 | P53: 5 | Q53: 7 | R53: 5 | S53: 5 | T53: 4 | U53: 6 | V53: 6 | W53: 4 | X53: 5 | Y53: 6 | Z53: 7 | AA53: 8 | AB53: 5 | AC53: 4 | AD53: 5 | AE53: 6 | AF53: 9 | AG53: 6 | AH53: 4 | AI53: 8 | AJ53: 8 | AK53: 6 | AL53: 4 | AM53: 6 | AN53: 5 | AO53: 3 | AP53: 4 | AQ53: 6 | AR53: 9 | AS53: 9 | AT53: 7 | AU53: 4 | AV53: 5 | AW53: 6 | AX53: A
D54: =Poules!M21 -> DOGUIN / LEFRANC | E54: =CONCATENATE("Poule ",VLOOKUP(D54,Poules!K21:Q48,2,FALSE)) -> Poule C | F54: =IF(VLOOKUP(D54,Poules!K21:Q47,6,FALSE)="","",VLOOKUP(D54,Poules!K21:Q47,6,FALSE)) -> 2018-07-13 | G54: =VLOOKUP(D54,Poules!K21:Q48,7,FALSE) -> Saint Aubin - Le Mesnil | L54: 24.7 | M54: 32.7 | N54: 6 | O54: 6 | P54: 8 | Q54: 6 | R54: 4 | S54: 3 | T54: 8 | U54: 5 | V54: 6 | W54: 6 | X54: 6 | Y54: 5 | Z54: 8 | AA54: 6 | AB54: 4 | AC54: 9 | AD54: 9 | AE54: 5 | AF54: 8 | AG54: 6 | AH54: 6 | AI54: 9 | AJ54: 5 | AK54: 7 | AL54: 7 | AM54: 6 | AN54: 6 | AO54: 5 | AP54: 6 | AQ54: 9 | AR54: 5 | AS54: 8 | AT54: 5 | AU54: 7 | AV54: 4 | AW54: 7
D55: =Poules!M22 -> COULOMB / TRAVERS | E55: =CONCATENATE("Poule ",VLOOKUP(D55,Poules!K22:Q49,2,FALSE)) -> Poule C | F55: =IF(VLOOKUP(D55,Poules!K22:Q48,6,FALSE)="","",VLOOKUP(D55,Poules!K22:Q48,6,FALSE)) -> 2018-06-18 | G55: =VLOOKUP(D55,Poules!K22:Q49,7,FALSE) -> Villennes | L55: 20.2 | M55: 34.5 | N55: 5 | O55: 4 | P55: 5 | Q55: 7 | R55: 5 | S55: 4 | T55: 5 | U55: 8 | V55: 6 | W55: 3 | X55: 6 | Y55: 4 | Z55: 7 | AA55: 7 | AB55: 4 | AC55: 4 | AD55: 6 | AE55: 4 | AF55: 6 | AG55: 4 | AH55: 5 | AI55: 8 | AJ55: 8 | AK55: 4 | AL55: 7 | AM55: 4 | AN55: 5 | AO55: 4 | AP55: 5 | AQ55: 7 | AR55: 6 | AS55: 6 | AT55: 5 | AU55: 4 | AV55: 8 | AW55: 6
D56: =Poules!M23 -> DOGUIN / TRAVERS | E56: =CONCATENATE("Poule ",VLOOKUP(D56,Poules!K23:Q50,2,FALSE)) -> Poule C | F56: =IF(VLOOKUP(D56,Poules!K23:Q49,6,FALSE)="","",VLOOKUP(D56,Poules!K23:Q49,6,FALSE)) -> 2018-07-11 | G56: =VLOOKUP(D56,Poules!K23:Q50,7,FALSE) -> Villennes | L56: 24.7 | M56: 34.5 | N56: 6 | O56: 4 | P56: 4 | Q56: 5 | R56: 7 | S56: 3 | T56: 8 | U56: 4 | V56: 4 | W56: 6 | X56: 4 | Y56: 6 | Z56: 6 | AA56: 5 | AB56: 5 | AC56: 7 | AD56: 6 | AE56: 4
D57: =Poules!M24 -> LEFRANC / TRAVERS | E57: =CONCATENATE("Poule ",VLOOKUP(D57,Poules!K24:Q51,2,FALSE)) -> Poule C | F57: =IF(VLOOKUP(D57,Poules!K24:Q50,6,FALSE)="","",VLOOKUP(D57,Poules!K24:Q50,6,FALSE)) -> 2018-06-29 | G57: =VLOOKUP(D57,Poules!K24:Q51,7,FALSE) -> Vaucouleurs - Vallons | L57: 32.7 | M57: 34.5 | N57: 6 | O57: 6 | P57: 7 | Q57: 4 | R57: 6 | S57: 5 | T57: 3 | U57: 6 | V57: 8 | W57: 7 | X57: 5 | Y57: 3 | Z57: 6 | AA57: 8 | AB57: 4 | AC57: 8 | AD57: 9 | AE57: 4 | AF57: 3 | AG57: 6 | AH57: 7 | AI57: 3 | AJ57: 7 | AK57: 6 | AL57: 7 | AM57: 7 | AN57: 7 | AO57: 7 | AP57: 9 | AQ57: 4 | AR57: 8 | AS57: 5 | AT57: 7 | AU57: 3 | AV57: 6 | AW57: 6
D58: =Poules!M25 -> SZAFIR / ROBERT | E58: =CONCATENATE("Poule ",VLOOKUP(D58,Poules!K25:Q52,2,FALSE)) -> Poule D | F58: =IF(VLOOKUP(D58,Poules!K25:Q51,6,FALSE)="","",VLOOKUP(D58,Poules!K25:Q51,6,FALSE)) -> 2018-05-26 | G58: =VLOOKUP(D58,Poules!K25:Q52,7,FALSE) -> Forges les Bains | L58: 20.1 | M58: 25 | N58: 5 | O58: 3 | P58: 6 | Q58: 5 | R58: 7 | S58: 6 | T58: 5 | U58: 4 | V58: 5 | W58: 5 | X58: 6 | Y58: 4 | Z58: 10 | AA58: 5 | AB58: 5 | AC58: 5 | AD58: 6 | AE58: 6 | AF58: 6 | AG58: 3 | AH58: 6 | AI58: 5 | AJ58: 6 | AK58: 6 | AL58: 7 | AM58: 4 | AN58: 7 | AO58: 6 | AP58: 8 | AQ58: 3 | AR58: 6 | AS58: 5 | AT58: 3 | AU58: 6 | AV58: 6 | AW58: 7 | AX58: Shotgun avec départ du trou 11. Résultat effectif : Partagé AS
D59: =Poules!M26 -> SZAFIR / GERSON | E59: =CONCATENATE("Poule ",VLOOKUP(D59,Poules!K26:Q53,2,FALSE)) -> Poule D | F59: =IF(VLOOKUP(D59,Poules!K26:Q52,6,FALSE)="","",VLOOKUP(D59,Poules!K26:Q52,6,FALSE)) -> 2018-05-18 | G59: =VLOOKUP(D59,Poules!K26:Q53,7,FALSE) -> Gadancourt | L59: 20.1 | M59: 31 | N59: 8 | O59: 4 | P59: 7 | Q59: 5 | R59: 4 | S59: 6 | T59: 5 | U59: 3 | V59: 5 | W59: 8 | X59: 5 | Y59: 5 | Z59: 6 | AA59: 7 | AB59: 6 | AC59: 7 | AD59: 6 | AE59: 5 | AF59: 5 | AG59: 4 | AH59: 6 | AI59: 4 | AJ59: 6 | AK59: 7 | AL59: 4 | AM59: 5 | AN59: 3 | AO59: 5 | AP59: 4 | AQ59: 6 | AR59: 5 | AS59: 5 | AT59: 5 | AU59: 4 | AV59: 4 | AW59: 6
D60: =Poules!M27 -> ROBERT / GERSON | E60: =CONCATENATE("Poule ",VLOOKUP(D60,Poules!K27:Q54,2,FALSE)) -> Poule D | F60: =IF(VLOOKUP(D60,Poules!K27:Q53,6,FALSE)="","",VLOOKUP(D60,Poules!K27:Q53,6,FALSE)) -> 2018-07-30 | G60: =VLOOKUP(D60,Poules!K27:Q54,7,FALSE) -> National - Albatros | L60: 22.8 | M60: 25 | N60: 7 | O60: 6 | P60: 7 | Q60: 6 | R60: 9 | S60: 6 | T60: x | U60: 3 | V60: 10 | W60: 10 | X60: 3 | Y60: 5 | Z60: 6 | AA60: 5 | AB60: 7 | AC60: 4 | AD60: 9 | AE60: 10 | AF60: 7 | AG60: x | AH60: 8 | AI60: 6 | AJ60: 7 | AK60: 7 | AL60: 8 | AM60: 4 | AN60: 7 | AO60: x | AP60: 6 | AQ60: 7 | AR60: x | AS60: 7 | AT60: 9 | AU60: x | AV60: 9 | AW60: 12
D61: =Poules!M28 -> SZAFIR / ROME | E61: =CONCATENATE("Poule ",VLOOKUP(D61,Poules!K28:Q55,2,FALSE)) -> Poule D | F61: =IF(VLOOKUP(D61,Poules!K28:Q54,6,FALSE)="","",VLOOKUP(D61,Poules!K28:Q54,6,FALSE)) -> 2018-08-30 | G61: =VLOOKUP(D61,Poules!K28:Q55,7,FALSE) -> Tirage au sort
D62: =Poules!M29 -> ROBERT / ROME | E62: =CONCATENATE("Poule ",VLOOKUP(D62,Poules!K29:Q56,2,FALSE)) -> Poule D | F62: =IF(VLOOKUP(D62,Poules!K29:Q55,6,FALSE)="","",VLOOKUP(D62,Poules!K29:Q55,6,FALSE)) -> 2018-05-18 | G62: =VLOOKUP(D62,Poules!K29:Q56,7,FALSE) -> Gadancourt | L62: 25 | M62: 45 | N62: 6 | O62: 6 | P62: 6 | Q62: 6 | R62: 6 | S62: 7 | T62: 6 | U62: 6 | V62: 4 | W62: 6 | X62: 4 | Y62: 6 | Z62: 6 | AA62: 5 | AB62: 4 | AC62: 7 | AD62: 6 | AE62: 6 | AF62: 8 | AG62: 5 | AH62: 6 | AI62: 6 | AJ62: 5 | AK62: 8 | AL62: 7 | AM62: 4 | AN62: 8 | AO62: x | AP62: 7 | AQ62: 6 | AR62: 9 | AS62: 4 | AT62: 8 | AU62: 8 | AV62: 7 | AW62: 6
D63: =Poules!M30 -> GERSON / ROME | E63: =CONCATENATE("Poule ",VLOOKUP(D63,Poules!K30:Q57,2,FALSE)) -> Poule D | F63: =IF(VLOOKUP(D63,Poules!K30:Q56,6,FALSE)="","",VLOOKUP(D63,Poules!K30:Q56,6,FALSE)) -> 2018-05-26 | G63: =VLOOKUP(D63,Poules!K30:Q57,7,FALSE) -> Forges les Bains | L63: 22.8 | M63: 45 | N63: 6 | O63: 4 | P63: 4 | Q63: 6 | R63: 6 | S63: 5 | T63: 6 | U63: 6 | V63: 9 | W63: 5 | X63: 6 | Y63: 6 | Z63: 9 | AA63: 4 | AB63: 4 | AC63: 6 | AD63: 5 | AE63: 8 | AF63: 6 | AG63: 5 | AH63: 6 | AI63: 9 | AJ63: 8 | AK63: 6 | AL63: 7 | AM63: 6 | AN63: 8 | AO63: 7 | AP63: 7 | AQ63: 3 | AR63: 6 | AS63: 6 | AT63: 5 | AU63: 5 | AV63: 9 | AW63: 6 | AX63: Shotgun avec départ du trou 15. Résultat effectif : ROME 2 UP

Sheet Feuille de match
A1: ASIP | Z1: Scores
M2: Challenge 35 - Rencontre : | N2: MABILE / VINAY | Z2: x
M3: =IF(OR(C7="",C9=""),"",CONCATENATE(C7," / ",C9)) ->  | O3: =VLOOKUP(LEFT(Rencontre_Tournoi,SEARCH("/",Rencontre_Tournoi)-2),Joueurs!C$4:F$19,4,FALSE) -> 17.4 | Q3: =VLOOKUP(RIGHT(Rencontre_Tournoi,LEN(Rencontre_Tournoi)-SEARCH("/",Rencontre_Tournoi)-1),Joueurs!C$4:F$19,4,FALSE) -> 20.5 | Z3: -
Z4: 1
E5: Parcours : | F5: =IF(Rencontre_Tournoi="","",IF(VLOOKUP(Rencontre_Tournoi,Tournoi!$D$32:$G$63,4,FALSE)="","",VLOOKUP(Rencontre_Tournoi,Tournoi!$D$32:$G$63,4,FALSE))) -> Fourqueux - Blanc Rouge | N5: Trous : | O5: =IF(Rencontre_Tournoi="","",IF(Parcours="","",VLOOKUP(Parcours,Parcours!$A$2:$B$130,2,FALSE))) -> 18 | R5: Date : | S5: =IF(Rencontre_Tournoi="","",IF(VLOOKUP(Rencontre_Tournoi,Tournoi!$D$32:$F$63,3,FALSE)="","",VLOOKUP(Rencontre_Tournoi,Tournoi!$D$32:$F$63,3,FALSE))) -> 2018-11-10 | Z5: 2
Z6: 3
Z7: 4
C8: =IF(O3<Q3,LEFT(Rencontre_Tournoi,SEARCH("/",Rencontre_Tournoi)-2),RIGHT(Rencontre_Tournoi,LEN(Rencontre_Tournoi)-SEARCH("/",Rencontre_Tournoi)-1)) -> MABILE | D8: =IF((VLOOKUP(C8,Joueurs!C$4:F$19,1,FALSE))=0,"",CONCATENATE(VLOOKUP(C8,Joueurs!C$4:F$19,2,FALSE)," ",VLOOKUP(C8,Joueurs!C$4:F$19,1,FALSE))) -> Claude MABILE | I8: Index : | J8: =IF(VLOOKUP(Rencontre_Tournoi,Tournoi!$D$32:$M$63,9,FALSE)="",IF((VLOOKUP(C8,Joueurs!C$4:F$19,1,FALSE))=0,"",VLOOKUP(C8,Joueurs!C$4:F$19,4,FALSE)),VLOOKUP(Rencontre_Tournoi,Tournoi!$D$32:$M$63,9,FALSE)) -> 17.4 | Z8: 5
A9: =IF(Rencontre_Tournoi="","",IF(VLOOKUP(Rencontre_Tournoi,Tournoi!$D$32:$G$63,2,FALSE)="","",VLOOKUP(Rencontre_Tournoi,Tournoi!$D$32:$G$63,2,FALSE))) -> Finale | R9: =CONCATENATE("Coups reçus par ",$C$10," :") -> Coups reçus par VINAY : | S9: =IF(OR(Trous="",J8="",J10=""),"",ROUND(MIN(27,T9*(J10-J8))/(18/Trous),0)) -> 2 | T9: 0.75 | Z9: 6
C10: =IF(O3>=Q3,LEFT(Rencontre_Tournoi,SEARCH("/",Rencontre_Tournoi)-2),RIGHT(Rencontre_Tournoi,LEN(Rencontre_Tournoi)-SEARCH("/",Rencontre_Tournoi)-1)) -> VINAY | D10: =IF((VLOOKUP(C10,Joueurs!C$4:F$19,1,FALSE))=0,"",CONCATENATE(VLOOKUP(C10,Joueurs!C$4:F$19,2,FALSE)," ",VLOOKUP(C10,Joueurs!C$4:F$19,1,FALSE))) -> Guillaume VINAY | I10: Index : | J10: =IF(VLOOKUP(Rencontre_Tournoi,Tournoi!$D$32:$M$63,10,FALSE)="",IF((VLOOKUP(C10,Joueurs!C$4:F$19,1,FALSE))=0,"",VLOOKUP(C10,Joueurs!C$4:F$19,4,FALSE)),VLOOKUP(Rencontre_Tournoi,Tournoi!$D$32:$M$63,10,FALSE)) -> 20.5 | Z10: 7
Z11: 8
Z12: 9
A13: Trou | B13: 1 | C13: =B13+1 -> 2 | D13: 3 | E13: 4 | F13: 5 | G13: 6 | H13: 7 | I13: 8 | J13: 9 | K13: Aller | M13: 10 | N13: =M13+1 -> 11 | O13: 12 | P13: 13 | Q13: 14 | R13: 15 | S13: 16 | T13: 17 | U13: 18 | V13: Retour | X13: Total | Z13: 10
A14: Par | B14: =IF(Parcours="","",VLOOKUP(Parcours,Parcours!$A$2:$AN$130,B13+3,FALSE)) -> 4 | C14: =IF(Parcours="","",VLOOKUP(Parcours,Parcours!$A$2:$AN$130,C13+3,FALSE)) -> 5 | D14: =IF(Parcours="","",VLOOKUP(Parcours,Parcours!$A$2:$AN$130,D13+3,FALSE)) -> 4 | E14: =IF(Parcours="","",VLOOKUP(Parcours,Parcours!$A$2:$AN$130,E13+3,FALSE)) -> 4 | F14: =IF(Parcours="","",VLOOKUP(Parcours,Parcours!$A$2:$AN$130,F13+3,FALSE)) -> 4 | G14: =IF(Parcours="","",VLOOKUP(Parcours,Parcours!$A$2:$AN$130,G13+3,FALSE)) -> 3 | H14: =IF(Parcours="","",VLOOKUP(Parcours,Parcours!$A$2:$AN$130,H13+3,FALSE)) -> 5 | I14: =IF(Parcours="","",VLOOKUP(Parcours,Parcours!$A$2:$AN$130,I13+3,FALSE)) -> 4 | J14: =IF(Parcours="","",VLOOKUP(Parcours,Parcours!$A$2:$AN$130,J13+3,FALSE)) -> 3 | K14: =SUM(B14:J14) -> 36 | M14: =IF(Parcours="","",IF(Trous=9,"",VLOOKUP(Parcours,Parcours!$A$2:$AN$130,M13+3,FALSE))) -> 4 | N14: =IF(Parcours="","",IF(Trous=9,"",VLOOKUP(Parcours,Parcours!$A$2:$AN$130,N13+3,FALSE))) -> 4 | O14: =IF(Parcours="","",IF(Trous=9,"",VLOOKUP(Parcours,Parcours!$A$2:$AN$130,O13+3,FALSE))) -> 4 | P14: =IF(Parcours="","",IF(Trous=9,"",VLOOKUP(Parcours,Parcours!$A$2:$AN$130,P13+3,FALSE))) -> 3 | Q14: =IF(Parcours="","",IF(Trous=9,"",VLOOKUP(Parcours,Parcours!$A$2:$AN$130,Q13+3,FALSE))) -> 4 | R14: =IF(Parcours="","",IF(Trous=9,"",VLOOKUP(Parcours,Parcours!$A$2:$AN$130,R13+3,FALSE))) -> 4 | S14: =IF(Parcours="","",IF(Trous=9,"",VLOOKUP(Parcours,Parcours!$A$2:$AN$130,S13+3,FALSE))) -> 4 | T14: =IF(Parcours="","",IF(Trous=9,"",VLOOKUP(Parcours,Parcours!$A$2:$AN$130,T13+3,FALSE))) -> 5 | U14: =IF(Parcours="","",IF(Trous=9,"",VLOOKUP(Parcours,Parcours!$A$2:$AN$130,U13+3,FALSE))) -> 3 | V14: =SUM(M14:U14) -> 35 | X14: =K14+V14 -> 71 | Z14: 11
A15: Handicap | B15: =IF(Parcours="","",VLOOKUP(Parcours,Parcours!$A$2:$AN$130,B13+22,FALSE)) -> 15 | C15: =IF(Parcours="","",VLOOKUP(Parcours,Parcours!$A$2:$AN$130,C13+22,FALSE)) -> 7 | D15: =IF(Parcours="","",VLOOKUP(Parcours,Parcours!$A$2:$AN$130,D13+22,FALSE)) -> 13 | E15: =IF(Parcours="","",VLOOKUP(Parcours,Parcours!$A$2:$AN$130,E13+22,FALSE)) -> 1 | F15: =IF(Parcours="","",VLOOKUP(Parcours,Parcours!$A$2:$AN$130,F13+22,FALSE)) -> 11 | G15: =IF(Parcours="","",VLOOKUP(Parcours,Parcours!$A$2:$AN$130,G13+22,FALSE)) -> 3 | H15: =IF(Parcours="","",VLOOKUP(Parcours,Parcours!$A$2:$AN$130,H13+22,FALSE)) -> 17 | I15: =IF(Parcours="","",VLOOKUP(Parcours,Parcours!$A$2:$AN$130,I13+22,FALSE)) -> 9 | J15: =IF(Parcours="","",VLOOKUP(Parcours,Parcours!$A$2:$AN$130,J13+22,FALSE)) -> 5 | M15: =IF(Parcours="","",IF(Trous=9,"",VLOOKUP(Parcours,Parcours!$A$2:$AN$130,M13+22,FALSE))) -> 4 | N15: =IF(Parcours="","",IF(Trous=9,"",VLOOKUP(Parcours,Parcours!$A$2:$AN$130,N13+22,FALSE))) -> 8 | O15: =IF(Parcours="","",IF(Trous=9,"",VLOOKUP(Parcours,Parcours!$A$2:$AN$130,O13+22,FALSE))) -> 10 | P15: =IF(Parcours="","",IF(Trous=9,"",VLOOKUP(Parcours,Parcours!$A$2:$AN$130,P13+22,FALSE))) -> 6 | Q15: =IF(Parcours="","",IF(Trous=9,"",VLOOKUP(Parcours,Parcours!$A$2:$AN$130,Q13+22,FALSE))) -> 14 | R15: =IF(Parcours="","",IF(Trous=9,"",VLOOKUP(Parcours,Parcours!$A$2:$AN$130,R13+22,FALSE))) -> 18 | S15: =IF(Parcours="","",IF(Trous=9,"",VLOOKUP(Parcours,Parcours!$A$2:$AN$130,S13+22,FALSE))) -> 2 | T15: =IF(Parcours="","",IF(Trous=9,"",VLOOKUP(Parcours,Parcours!$A$2:$AN$130,T13+22,FALSE))) -> 12 | U15: =IF(Parcours="","",IF(Trous=9,"",VLOOKUP(Parcours,Parcours!$A$2:$AN$130,U13+22,FALSE))) -> 16 | Z15: 12
A18: =C8 -> MABILE
A19: Coups | B19: 6 | C19: 9 | D19: 6 | E19: 6 | F19: 6 | G19: 5 | H19: 6 | I19: 5 | J19: 5 | K19: =IF(OR(COUNTIF(B19:J19,"x"),COUNTIF(B19:J19,"")),"",SUM(B19:J19)) -> 54 | M19: x | N19: x | O19: x | P19: 4 | Q19: 5 | R19: 5 | S19: 6 | T19: 6 | U19: 3 | V19: =IF(OR(COUNTIF(M19:U19,"x"),COUNTIF(M19:U19,"")),"",SUM(M19:U19)) ->  | X19: =IF(OR(COUNTIF(B19:J19,"x"),COUNTIF(B19:J19,""),COUNTIF(M19:U19,"x"),COUNTIF(M19:U19,"")),"",SUM(B19:J19,M19:U19)) -> 
A20: Position | B20: =IF(OR(B19="",B24="",Trous=""),"",IF(B28<>"",B28,IF(B27=0,"AS",IF(B27<0,CONCATENATE(ABS(B27)," UP"),"")))) ->  | C20: =IF(OR(C19="",C24="",Trous=""),"",IF(C28<>"",IF(B28<>"","",IF(C27<0,C28,"")),IF(C27=0,"AS",IF(C27<0,CONCATENATE(ABS(C27)," UP"),"")))) ->  | M20: =IF(OR(M19="",M24="",Trous=""),"",IF(M28<>"",IF(J28<>"","",IF(M27<0,M28,"")),IF(M27=0,"AS",IF(M27<0,CONCATENATE(ABS(M27)," UP"),"")))) ->  | N20: =IF(OR(N19="",N24="",Trous=""),"",IF(N28<>"",IF(M28<>"","",IF(N27<0,N28,"")),IF(N27=0,"AS",IF(N27<0,CONCATENATE(ABS(N27)," UP"),"")))) ->  | U20: =IF(OR(U19="",U24="",Trous=""),"",IF(U28<>"",IF(T28<>"","",IF(U27<=0,U28,"")))) -> 
B21: =IF(OR(B19="",B24="",Trous<>'Feuille de match'!Trous,AND(B19="-",B24="-")),0,IF(AND(B19="x",B24="x"),0,IF(B19="x",1,IF(B24="x",-1,IF(B19+B25-B24>0,1,IF(B19+B25-B24<0,-1,0)))))) -> 1 | C21: =IF(OR(C19="",C24="",Trous<>'Feuille de match'!Trous,AND(C19="-",C24="-")),0,IF(AND(C19="x",C24="x"),0,IF(C19="x",1,IF(C24="x",-1,IF(C19+C25-C24>0,1,IF(C19+C25-C24<0,-1,0)))))) -> 1 | D21: =IF(OR(D19="",D24="",Trous<>'Feuille de match'!Trous,AND(D19="-",D24="-")),0,IF(AND(D19="x",D24="x"),0,IF(D19="x",1,IF(D24="x",-1,IF(D19+D25-D24>0,1,IF(D19+D25-D24<0,-1,0)))))) -> 0 | E21: =IF(OR(E19="",E24="",Trous<>'Feuille de match'!Trous,AND(E19="-",E24="-")),0,IF(AND(E19="x",E24="x"),0,IF(E19="x",1,IF(E24="x",-1,IF(E19+E25-E24>0,1,IF(E19+E25-E24<0,-1,0)))))) -> 1 | F21: =IF(OR(F19="",F24="",Trous<>'Feuille de match'!Trous,AND(F19="-",F24="-")),0,IF(AND(F19="x",F24="x"),0,IF(F19="x",1,IF(F24="x",-1,IF(F19+F25-F24>0,1,IF(F19+F25-F24<0,-1,0)))))) -> 0 | G21: =IF(OR(G19="",G24="",Trous<>'Feuille de match'!Trous,AND(G19="-",G24="-")),0,IF(AND(G19="x",G24="x"),0,IF(G19="x",1,IF(G24="x",-1,IF(G19+G25-G24>0,1,IF(G19+G25-G24<0,-1,0)))))) -> 1 | H21: =IF(OR(H19="",H24="",Trous<>'Feuille de match'!Trous,AND(H19="-",H24="-")),0,IF(AND(H19="x",H24="x"),0,IF(H19="x",1,IF(H24="x",-1,IF(H19+H25-H24>0,1,IF(H19+H25-H24<0,-1,0)))))) -> 0 | I21: =IF(OR(I19="",I24="",Trous<>'Feuille de match'!Trous,AND(I19="-",I24="-")),0,IF(AND(I19="x",I24="x"),0,IF(I19="x",1,IF(I24="x",-1,IF(I19+I25-I24>0,1,IF(I19+I25-I24<0,-1,0)))))) -> -1 | J21: =IF(OR(J19="",J24="",Trous<>'Feuille de match'!Trous,AND(J19="-",J24="-")),0,IF(AND(J19="x",J24="x"),0,IF(J19="x",1,IF(J24="x",-1,IF(J19+J25-J24>0,1,IF(J19+J25-J24<0,-1,0)))))) -> 0 | M21: =IF(OR(M19="",M24="",Trous<>'Feuille de match'!Trous,AND(M19="-",M24="-")),0,IF(AND(M19="x",M24="x"),0,IF(M19="x",1,IF(M24="x",-1,IF(M19+M25-M24>0,1,IF(M19+M25-M24<0,-1,0)))))) -> 1 | N21: =IF(OR(N19="",N24="",Trous<>'Feuille de match'!Trous,AND(N19="-",N24="-")),0,IF(AND(N19="x",N24="x"),0,IF(N19="x",1,IF(N24="x",-1,IF(N19+N25-N24>0,1,IF(N19+N25-N24<0,-1,0)))))) -> 1 | O21: =IF(OR(O19="",O24="",Trous<>'Feuille de match'!Trous,AND(O19="-",O24="-")),0,IF(AND(O19="x",O24="x"),0,IF(O19="x",1,IF(O24="x",-1,IF(O19+O25-O24>0,1,IF(O19+O25-O24<0,-1,0)))))) -> 1 | P21: =IF(OR(P19="",P24="",Trous<>'Feuille de match'!Trous,AND(P19="-",P24="-")),0,IF(AND(P19="x",P24="x"),0,IF(P19="x",1,IF(P24="x",-1,IF(P19+P25-P24>0,1,IF(P19+P25-P24<0,-1,0)))))) -> 1 | Q21: =IF(OR(Q19="",Q24="",Trous<>'Feuille de match'!Trous,AND(Q19="-",Q24="-")),0,IF(AND(Q19="x",Q24="x"),0,IF(Q19="x",1,IF(Q24="x",-1,IF(Q19+Q25-Q24>0,1,IF(Q19+Q25-Q24<0,-1,0)))))) -> -1 | R21: =IF(OR(R19="",R24="",Trous<>'Feuille de match'!Trous,AND(R19="-",R24="-")),0,IF(AND(R19="x",R24="x"),0,IF(R19="x",1,IF(R24="x",-1,IF(R19+R25-R24>0,1,IF(R19+R25-R24<0,-1,0)))))) -> 0 | S21: =IF(OR(S19="",S24="",Trous<>'Feuille de match'!Trous,AND(S19="-",S24="-")),0,IF(AND(S19="x",S24="x"),0,IF(S19="x",1,IF(S24="x",-1,IF(S19+S25-S24>0,1,IF(S19+S25-S24<0,-1,0)))))) -> 1 | T21: =IF(OR(T19="",T24="",Trous<>'Feuille de match'!Trous,AND(T19="-",T24="-")),0,IF(AND(T19="x",T24="x"),0,IF(T19="x",1,IF(T24="x",-1,IF(T19+T25-T24>0,1,IF(T19+T25-T24<0,-1,0)))))) -> -1 | U21: =IF(OR(U19="",U24="",Trous<>'Feuille de match'!Trous,AND(U19="-",U24="-")),0,IF(AND(U19="x",U24="x"),0,IF(U19="x",1,IF(U24="x",-1,IF(U19+U25-U24>0,1,IF(U19+U25-U24<0,-1,0)))))) -> 0
A23: =C10 -> VINAY
A24: Coups | B24: 3 | C24: 7 | D24: 6 | E24: 5 | F24: 6 | G24: 4 | H24: 6 | I24: 6 | J24: 5 | K24: =IF(OR(COUNTIF(B24:J24,"x"),COUNTIF(B24:J24,"")),"",SUM(B24:J24)) -> 48 | M24: 8 | N24: 6 | O24: 6 | P24: 2 | Q24: 6 | R24: 5 | S24: 6 | T24: x | U24: 3 | V24: =IF(OR(COUNTIF(M24:U24,"x"),COUNTIF(M24:U24,"")),"",SUM(M24:U24)) ->  | X24: =IF(OR(COUNTIF(B24:J24,"x"),COUNTIF(B24:J24,""),COUNTIF(M24:U24,"x"),COUNTIF(M24:U24,"")),"",SUM(B24:J24,M24:U24)) -> 
A25: Coups reçus | B25: =IF(Parcours="","",IF(Coups_reçus-TRUNC(Coups_reçus/Trous)*Trous<B15,TRUNC(Coups_reçus/Trous),TRUNC(Coups_reçus/Trous)+1)) -> 0 | C25: 0 | D25: 0 | E25: 1 | F25: 0 | G25: 0 | H25: 0 | I25: 0 | J25: 0 | K25: =SUM(B25:J25) -> 1 | M25: =IF(OR(Parcours="",Trous=9),"",IF(Coups_reçus-TRUNC(Coups_reçus/Trous)*Trous<M15,TRUNC(Coups_reçus/Trous),TRUNC(Coups_reçus/Trous)+1)) -> 0 | N25: 0 | O25: 0 | P25: 0 | Q25: 0 | R25: 0 | S25: 1 | T25: 0 | U25: 0 | V25: =SUM(M25:U25) -> 1 | X25: =K25+V25 -> 2
A26: Position | B26: =IF(OR(B19="",B24="",Trous=""),"",IF(B27=0,"AS",IF(B27>0,CONCATENATE(ABS(B27)," UP"),""))) -> 1 UP | C26: =IF(OR(C19="",C24="",Trous=""),"",IF(C28<>"",IF(B28<>"","",IF(C27>0,C28,"")),IF(C27=0,"AS",IF(C27>0,CONCATENATE(ABS(C27)," UP"),"")))) -> 2 UP | D26: 2 UP | E26: 3 UP | F26: 3 UP | G26: 4 UP | H26: 4 UP | I26: 3 UP | J26: 3 UP | M26: =IF(OR(M19="",M24="",Trous=""),"",IF(M28<>"",IF(J28<>"","",IF(M27>0,M28,"")),IF(M27=0,"AS",IF(M27>0,CONCATENATE(ABS(M27)," UP"),"")))) -> 4 UP | N26: =IF(OR(N19="",N24="",Trous=""),"",IF(N28<>"",IF(M28<>"","",IF(N27>0,N28,"")),IF(N27=0,"AS",IF(N27>0,CONCATENATE(ABS(N27)," UP"),"")))) -> 5 UP | O26: 6 UP | P26: 7&5 | U26: =IF(OR(U19="",U24="",Trous=""),"",IF(U28<>"",IF(T28<>"","",IF(U27>=0,U28,"")))) -> 
B27: =B21 -> 1 | C27: =B27+C21 -> 2 | D27: =C27+D21 -> 2 | E27: 3 | F27: 3 | G27: 4 | H27: 4 | I27: 3 | J27: 3 | M27: =J27+M21 -> 4 | N27: =M27+N21 -> 5 | O27: 6 | P27: 7 | Q27: 6 | R27: 6 | S27: 7 | T27: 6 | U27: 6
C28: =IF(B28<>"",B28,IF(AND(C19<>"",C24<>"",ABS(C27)>(Trous-C13)),CONCATENATE(ABS(C27),"&",Trous-C13),"")) ->  | J28: =IF(I28<>"",I28,IF(AND(J19<>"",J24<>""),IF(ABS(J27)>(Trous-J13),CONCATENATE(ABS(J27)," UP"),IF(AND(J27=0,Trous=9),"AS","")),"")) ->  | M28: =IF(J28<>"",J28,IF(AND(M19<>"",M24<>"",ABS(M27)>(Trous-M13)),CONCATENATE(ABS(M27),"&",Trous-M13),"")) ->  | N28: =IF(M28<>"",M28,IF(AND(N19<>"",N24<>"",ABS(N27)>(Trous-N13)),CONCATENATE(ABS(N27),"&",Trous-N13),"")) ->  | P28: 7&5 | Q28: 7&5 | R28: 7&5 | S28: 7&5 | T28: 7&5 | U28: =IF(T28<>"",T28,IF(AND(U19<>"",U24<>""),IF(ABS(U27)>(Trous-U13),CONCATENATE(ABS(U27)," UP"),IF(U27=0,"AS","")),"")) -> 7&5
B29: =IF(B27>0,Joueur2,IF(B27<0,Joueur1,"Partagé")) -> VINAY | C29: VINAY | D29: VINAY | E29: VINAY | F29: VINAY | G29: VINAY | H29: VINAY | I29: VINAY | J29: VINAY | M29: =IF(M27>0,Joueur2,IF(M27<0,Joueur1,"Partagé")) -> VINAY | N29: VINAY | O29: VINAY | P29: VINAY | Q29: VINAY | R29: VINAY | S29: VINAY | T29: VINAY | U29: VINAY
K31: Résultat : | L31: =IF(U28="","",CONCATENATE(U29," ",U28)) -> VINAY 7&5
A33: Commentaires

Sheet Joueur 1 (hidden)
A1: ASIP | Z1: Scores
K2: Joueur 1 : | M2: ='Feuille de match'!D8 -> Claude MABILE | Z2: x
Z3: 1
Z4: 2
E5: Parcours : | F5: ='Feuille de match'!Parcours -> Fourqueux - Blanc Rouge | N5: Trous : | O5: ='Feuille de match'!Trous -> 18 | R5: Date : | S5: ='Feuille de match'!S5:X5 -> 2018-11-10 | Z5: 3
Z6: 4
Z7: 5
A8: Index : | B8: =IF(VLOOKUP([0]!Rencontre_Tournoi,Tournoi!$D$32:$M$63,9,FALSE)="",IF((VLOOKUP('Feuille de match'!Joueur1,Joueurs!C$4:F$19,1,FALSE))=0,"",VLOOKUP('Feuille de match'!Joueur1,Joueurs!C$4:F$19,4,FALSE)),VLOOKUP([0]!Rencontre_Tournoi,Tournoi!$D$32:$M$63,9,FALSE)) -> 17.4 | E8: Repère : | F8: =IF((VLOOKUP('Feuille de match'!Joueur1,Joueurs!C$4:C$19,1,FALSE))=0,"",VLOOKUP('Feuille de match'!Joueur1,Joueurs!C$4:I$19,7,FALSE)) -> Jaune | I8: Slope : | J8: =VLOOKUP(Parcours,Parcours!$A$2:$AV$130,MATCH(CONCATENATE("Slope ",F8),Parcours!A1:AV1,0),FALSE) -> 131 | L8: SSS : | M8: =VLOOKUP(Parcours,Parcours!$A$2:$AV$130,MATCH(CONCATENATE("SSS ",F8),Parcours!A1:AV1,0),FALSE) -> 69.9 | R8: Coups reçus : | S8: =MIN(TRUNC(B8*J8/113+M8-X12+0.5),54) -> 19 | Z8: 8
Z9: 9
Z10: 10
A11: Trou | B11: 1 | C11: =B11+1 -> 2 | D11: 3 | E11: 4 | F11: 5 | G11: 6 | H11: 7 | I11: 8 | J11: 9 | K11: Aller | M11: 10 | N11: =M11+1 -> 11 | O11: 12 | P11: 13 | Q11: 14 | R11: 15 | S11: 16 | T11: 17 | U11: 18 | V11: Retour | X11: Total | Z11: 11
A12: Par | B12: =IF(Parcours="","",VLOOKUP(Parcours,Parcours!$A$2:$AN$130,B11+3,FALSE)) -> 4 | C12: =IF(Parcours="","",VLOOKUP(Parcours,Parcours!$A$2:$AN$130,C11+3,FALSE)) -> 5 | D12: =IF(Parcours="","",VLOOKUP(Parcours,Parcours!$A$2:$AN$130,D11+3,FALSE)) -> 4 | E12: =IF(Parcours="","",VLOOKUP(Parcours,Parcours!$A$2:$AN$130,E11+3,FALSE)) -> 4 | F12: =IF(Parcours="","",VLOOKUP(Parcours,Parcours!$A$2:$AN$130,F11+3,FALSE)) -> 4 | G12: =IF(Parcours="","",VLOOKUP(Parcours,Parcours!$A$2:$AN$130,G11+3,FALSE)) -> 3 | H12: =IF(Parcours="","",VLOOKUP(Parcours,Parcours!$A$2:$AN$130,H11+3,FALSE)) -> 5 | I12: =IF(Parcours="","",VLOOKUP(Parcours,Parcours!$A$2:$AN$130,I11+3,FALSE)) -> 4 | J12: =IF(Parcours="","",VLOOKUP(Parcours,Parcours!$A$2:$AN$130,J11+3,FALSE)) -> 3 | K12: =SUM(B12:J12) -> 36 | M12: =IF(Parcours="","",IF(Trous=9,"",VLOOKUP(Parcours,Parcours!$A$2:$AN$130,M11+3,FALSE))) -> 4 | N12: =IF(Parcours="","",IF(Trous=9,"",VLOOKUP(Parcours,Parcours!$A$2:$AN$130,N11+3,FALSE))) -> 4 | O12: =IF(Parcours="","",IF(Trous=9,"",VLOOKUP(Parcours,Parcours!$A$2:$AN$130,O11+3,FALSE))) -> 4 | P12: =IF(Parcours="","",IF(Trous=9,"",VLOOKUP(Parcours,Parcours!$A$2:$AN$130,P11+3,FALSE))) -> 3 | Q12: =IF(Parcours="","",IF(Trous=9,"",VLOOKUP(Parcours,Parcours!$A$2:$AN$130,Q11+3,FALSE))) -> 4 | R12: =IF(Parcours="","",IF(Trous=9,"",VLOOKUP(Parcours,Parcours!$A$2:$AN$130,R11+3,FALSE))) -> 4 | S12: =IF(Parcours="","",IF(Trous=9,"",VLOOKUP(Parcours,Parcours!$A$2:$AN$130,S11+3,FALSE))) -> 4 | T12: =IF(Parcours="","",IF(Trous=9,"",VLOOKUP(Parcours,Parcours!$A$2:$AN$130,T11+3,FALSE))) -> 5 | U12: =IF(Parcours="","",IF(Trous=9,"",VLOOKUP(Parcours,Parcours!$A$2:$AN$130,U11+3,FALSE))) -> 3 | V12: =SUM(M12:U12) -> 35 | X12: =K12+V12 -> 71 | Z12: 12
A13: Handicap | B13: =IF(Parcours="","",VLOOKUP(Parcours,Parcours!$A$2:$AN$130,B11+22,FALSE)) -> 15 | C13: =IF(Parcours="","",VLOOKUP(Parcours,Parcours!$A$2:$AN$130,C11+22,FALSE)) -> 7 | D13: =IF(Parcours="","",VLOOKUP(Parcours,Parcours!$A$2:$AN$130,D11+22,FALSE)) -> 13 | E13: =IF(Parcours="","",VLOOKUP(Parcours,Parcours!$A$2:$AN$130,E11+22,FALSE)) -> 1 | F13: =IF(Parcours="","",VLOOKUP(Parcours,Parcours!$A$2:$AN$130,F11+22,FALSE)) -> 11 | G13: =IF(Parcours="","",VLOOKUP(Parcours,Parcours!$A$2:$AN$130,G11+22,FALSE)) -> 3 | H13: =IF(Parcours="","",VLOOKUP(Parcours,Parcours!$A$2:$AN$130,H11+22,FALSE)) -> 17 | I13: =IF(Parcours="","",VLOOKUP(Parcours,Parcours!$A$2:$AN$130,I11+22,FALSE)) -> 9 | J13: =IF(Parcours="","",VLOOKUP(Parcours,Parcours!$A$2:$AN$130,J11+22,FALSE)) -> 5 | M13: =IF(Parcours="","",IF(Trous=9,"",VLOOKUP(Parcours,Parcours!$A$2:$AN$130,M11+22,FALSE))) -> 4 | N13: =IF(Parcours="","",IF(Trous=9,"",VLOOKUP(Parcours,Parcours!$A$2:$AN$130,N11+22,FALSE))) -> 8 | O13: =IF(Parcours="","",IF(Trous=9,"",VLOOKUP(Parcours,Parcours!$A$2:$AN$130,O11+22,FALSE))) -> 10 | P13: =IF(Parcours="","",IF(Trous=9,"",VLOOKUP(Parcours,Parcours!$A$2:$AN$130,P11+22,FALSE))) -> 6 | Q13: =IF(Parcours="","",IF(Trous=9,"",VLOOKUP(Parcours,Parcours!$A$2:$AN$130,Q11+22,FALSE))) -> 14 | R13: =IF(Parcours="","",IF(Trous=9,"",VLOOKUP(Parcours,Parcours!$A$2:$AN$130,R11+22,FALSE))) -> 18 | S13: =IF(Parcours="","",IF(Trous=9,"",VLOOKUP(Parcours,Parcours!$A$2:$AN$130,S11+22,FALSE))) -> 2 | T13: =IF(Parcours="","",IF(Trous=9,"",VLOOKUP(Parcours,Parcours!$A$2:$AN$130,T11+22,FALSE))) -> 12 | U13: =IF(Parcours="","",IF(Trous=9,"",VLOOKUP(Parcours,Parcours!$A$2:$AN$130,U11+22,FALSE))) -> 16
A14: Coups reçus | B14: =IF($S$8-TRUNC($S$8/18)*18<B13,TRUNC($S$8/18),TRUNC($S$8/18)+1) -> 1 | C14: =IF($S$8-TRUNC($S$8/18)*18<C13,TRUNC($S$8/18),TRUNC($S$8/18)+1) -> 1 | D14: 1 | E14: 2 | F14: 1 | G14: 1 | H14: 1 | I14: 1 | J14: 1 | K14: =SUM(B14:J14) -> 10 | M14: =IF($S$8-TRUNC($S$8/18)*18<M13,TRUNC($S$8/18),TRUNC($S$8/18)+1) -> 1 | N14: =IF($S$8-TRUNC($S$8/18)*18<N13,TRUNC($S$8/18),TRUNC($S$8/18)+1) -> 1 | O14: =IF($S$8-TRUNC($S$8/18)*18<O13,TRUNC($S$8/18),TRUNC($S$8/18)+1) -> 1 | P14: =IF($S$8-TRUNC($S$8/18)*18<P13,TRUNC($S$8/18),TRUNC($S$8/18)+1) -> 1 | Q14: =IF($S$8-TRUNC($S$8/18)*18<Q13,TRUNC($S$8/18),TRUNC($S$8/18)+1) -> 1 | R14: =IF($S$8-TRUNC($S$8/18)*18<R13,TRUNC($S$8/18),TRUNC($S$8/18)+1) -> 1 | S14: =IF($S$8-TRUNC($S$8/18)*18<S13,TRUNC($S$8/18),TRUNC($S$8/18)+1) -> 1 | T14: =IF($S$8-TRUNC($S$8/18)*18<T13,TRUNC($S$8/18),TRUNC($S$8/18)+1) -> 1 | U14: =IF($S$8-TRUNC($S$8/18)*18<U13,TRUNC($S$8/18),TRUNC($S$8/18)+1) -> 1 | V14: =SUM(M14:U14) -> 9 | X14: =K14+V14 -> 19
A16: Score brut | B16: =IF('Feuille de match'!B19="","",'Feuille de match'!B19) -> 6 | C16: =IF('Feuille de match'!C19="","",'Feuille de match'!C19) -> 9 | D16: =IF('Feuille de match'!D19="","",'Feuille de match'!D19) -> 6 | E16: =IF('Feuille de match'!E19="","",'Feuille de match'!E19) -> 6 | F16: =IF('Feuille de match'!F19="","",'Feuille de match'!F19) -> 6 | G16: =IF('Feuille de match'!G19="","",'Feuille de match'!G19) -> 5 | H16: =IF('Feuille de match'!H19="","",'Feuille de match'!H19) -> 6 | I16: =IF('Feuille de match'!I19="","",'Feuille de match'!I19) -> 5 | J16: =IF('Feuille de match'!J19="","",'Feuille de match'!J19) -> 5 | K16: =IF(OR(COUNTIF(B16:J16,"x"),COUNTIF(B16:J16,"")),"",SUM(B16:J16)) -> 54 | M16: =IF('Feuille de match'!M19="","",'Feuille de match'!M19) -> x | N16: =IF('Feuille de match'!N19="","",'Feuille de match'!N19) -> x | O16: =IF('Feuille de match'!O19="","",'Feuille de match'!O19) -> x | P16: =IF('Feuille de match'!P19="","",'Feuille de match'!P19) -> 4 | Q16: =IF('Feuille de match'!Q19="","",'Feuille de match'!Q19) -> 5 | R16: =IF('Feuille de match'!R19="","",'Feuille de match'!R19) -> 5 | S16: =IF('Feuille de match'!S19="","",'Feuille de match'!S19) -> 6 | T16: =IF('Feuille de match'!T19="","",'Feuille de match'!T19) -> 6 | U16: =IF('Feuille de match'!U19="","",'Feuille de match'!U19) -> 3 | V16: =IF(OR(COUNTIF(M16:U16,"x"),COUNTIF(M16:U16,"")),"",SUM(M16:U16)) ->  | X16: =IF(OR(COUNTIF(B16:J16,"x"),COUNTIF(B16:J16,""),COUNTIF(M16:U16,"x"),COUNTIF(M16:U16,"")),"",SUM(B16:J16,M16:U16)) -> 
A18: Stableford brut | B18: =IF(B16="","",IF(B16="x",0,MAX(0,B12-B16+2))) -> 0 | C18: =IF(C16="","",IF(C16="x",0,MAX(0,C12-C16+2))) -> 0 | D18: 0 | E18: 0 | F18: 0 | G18: 0 | H18: 1 | I18: 1 | J18: 0 | K18: =SUM(B18:J18) -> 2 | M18: =IF(M16="","",IF(M16="x",0,MAX(0,M12-M16+2))) -> 0 | N18: 0 | O18: 0 | P18: 1 | Q18: 1 | R18: 1 | S18: 0 | T18: 1 | U18: 2 | V18: =SUM(M18:U18) -> 6 | X18: =K18+V18 -> 8
A19: Stableford net | B19: =IF(B16="","",IF(B16="x",0,MAX(0,B12-B16+2+B14))) -> 1 | C19: =IF(C16="","",IF(C16="x",0,MAX(0,C12-C16+2+C14))) -> 0 | D19: 1 | E19: 2 | F19: 1 | G19: 1 | H19: 2 | I19: 2 | J19: 1 | K19: 11 | M19: =IF(M16="","",IF(M16="x",0,MAX(0,M12-M16+2+M14))) -> 0 | N19: 0 | O19: 0 | P19: 2 | Q19: 2 | R19: 2 | S19: 1 | T19: 2 | U19: 3 | V19: 12 | X19: =K19+V19 -> 23
A21: Nb de putts
A22: Bunker de green
A23: Sortie & putt
A24: Fairway touché
A25: Manqué à gauche
A26: Manqué à droite
A27: Longueur drive
A30: Commentaires

Sheet Joueur 2 (hidden)
A1: ASIP | Z1: Scores
K2: Joueur 2 : | M2: ='Feuille de match'!D10 -> Guillaume VINAY | Z2: x
Z3: 1
Z4: 2
E5: Parcours : | F5: ='Feuille de match'!Parcours -> Fourqueux - Blanc Rouge | N5: Trous : | O5: ='Feuille de match'!Trous -> 18 | R5: Date : | S5: ='Feuille de match'!S5:X5 -> 2018-11-10 | Z5: 3
Z6: 4
Z7: 5
A8: Index : | B8: =IF(VLOOKUP([0]!Rencontre_Tournoi,Tournoi!$D$32:$M$63,10,FALSE)="",IF((VLOOKUP('Feuille de match'!Joueur2,Joueurs!C$4:F$19,1,FALSE))=0,"",VLOOKUP('Feuille de match'!Joueur2,Joueurs!C$4:F$19,4,FALSE)),VLOOKUP([0]!Rencontre_Tournoi,Tournoi!$D$32:$M$63,10,FALSE)) -> 20.5 | E8: Repère : | F8: =IF((VLOOKUP('Feuille de match'!Joueur2,Joueurs!C$4:C$19,1,FALSE))=0,"",VLOOKUP('Feuille de match'!Joueur2,Joueurs!C$4:I$19,7,FALSE)) -> Jaune | I8: Slope : | J8: =VLOOKUP(Parcours,Parcours!$A$2:$AV$130,MATCH(CONCATENATE("Slope ",F8),Parcours!A1:AV1,0),FALSE) -> 131 | L8: SSS : | M8: =VLOOKUP(Parcours,Parcours!$A$2:$AV$130,MATCH(CONCATENATE("SSS ",F8),Parcours!A1:AV1,0),FALSE) -> 69.9 | R8: Coups reçus : | S8: =MIN(TRUNC(B8*J8/113+M8-X12+0.5),54) -> 23 | Z8: 8
Z9: 9
Z10: 10
A11: Trou | B11: 1 | C11: =B11+1 -> 2 | D11: 3 | E11: 4 | F11: 5 | G11: 6 | H11: 7 | I11: 8 | J11: 9 | K11: Aller | M11: 10 | N11: =M11+1 -> 11 | O11: 12 | P11: 13 | Q11: 14 | R11: 15 | S11: 16 | T11: 17 | U11: 18 | V11: Retour | X11: Total | Z11: 11
A12: Par | B12: =IF(Parcours="","",VLOOKUP(Parcours,Parcours!$A$2:$AN$130,B11+3,FALSE)) -> 4 | C12: =IF(Parcours="","",VLOOKUP(Parcours,Parcours!$A$2:$AN$130,C11+3,FALSE)) -> 5 | D12: =IF(Parcours="","",VLOOKUP(Parcours,Parcours!$A$2:$AN$130,D11+3,FALSE)) -> 4 | E12: =IF(Parcours="","",VLOOKUP(Parcours,Parcours!$A$2:$AN$130,E11+3,FALSE)) -> 4 | F12: =IF(Parcours="","",VLOOKUP(Parcours,Parcours!$A$2:$AN$130,F11+3,FALSE)) -> 4 | G12: =IF(Parcours="","",VLOOKUP(Parcours,Parcours!$A$2:$AN$130,G11+3,FALSE)) -> 3 | H12: =IF(Parcours="","",VLOOKUP(Parcours,Parcours!$A$2:$AN$130,H11+3,FALSE)) -> 5 | I12: =IF(Parcours="","",VLOOKUP(Parcours,Parcours!$A$2:$AN$130,I11+3,FALSE)) -> 4 | J12: =IF(Parcours="","",VLOOKUP(Parcours,Parcours!$A$2:$AN$130,J11+3,FALSE)) -> 3 | K12: =SUM(B12:J12) -> 36 | M12: =IF(Parcours="","",IF(Trous=9,"",VLOOKUP(Parcours,Parcours!$A$2:$AN$130,M11+3,FALSE))) -> 4 | N12: =IF(Parcours="","",IF(Trous=9,"",VLOOKUP(Parcours,Parcours!$A$2:$AN$130,N11+3,FALSE))) -> 4 | O12: =IF(Parcours="","",IF(Trous=9,"",VLOOKUP(Parcours,Parcours!$A$2:$AN$130,O11+3,FALSE))) -> 4 | P12: =IF(Parcours="","",IF(Trous=9,"",VLOOKUP(Parcours,Parcours!$A$2:$AN$130,P11+3,FALSE))) -> 3 | Q12: =IF(Parcours="","",IF(Trous=9,"",VLOOKUP(Parcours,Parcours!$A$2:$AN$130,Q11+3,FALSE))) -> 4 | R12: =IF(Parcours="","",IF(Trous=9,"",VLOOKUP(Parcours,Parcours!$A$2:$AN$130,R11+3,FALSE))) -> 4 | S12: =IF(Parcours="","",IF(Trous=9,"",VLOOKUP(Parcours,Parcours!$A$2:$AN$130,S11+3,FALSE))) -> 4 | T12: =IF(Parcours="","",IF(Trous=9,"",VLOOKUP(Parcours,Parcours!$A$2:$AN$130,T11+3,FALSE))) -> 5 | U12: =IF(Parcours="","",IF(Trous=9,"",VLOOKUP(Parcours,Parcours!$A$2:$AN$130,U11+3,FALSE))) -> 3 | V12: =SUM(M12:U12) -> 35 | X12: =K12+V12 -> 71 | Z12: 12
A13: Handicap | B13: =IF(Parcours="","",VLOOKUP(Parcours,Parcours!$A$2:$AN$130,B11+22,FALSE)) -> 15 | C13: =IF(Parcours="","",VLOOKUP(Parcours,Parcours!$A$2:$AN$130,C11+22,FALSE)) -> 7 | D13: =IF(Parcours="","",VLOOKUP(Parcours,Parcours!$A$2:$AN$130,D11+22,FALSE)) -> 13 | E13: =IF(Parcours="","",VLOOKUP(Parcours,Parcours!$A$2:$AN$130,E11+22,FALSE)) -> 1 | F13: =IF(Parcours="","",VLOOKUP(Parcours,Parcours!$A$2:$AN$130,F11+22,FALSE)) -> 11 | G13: =IF(Parcours="","",VLOOKUP(Parcours,Parcours!$A$2:$AN$130,G11+22,FALSE)) -> 3 | H13: =IF(Parcours="","",VLOOKUP(Parcours,Parcours!$A$2:$AN$130,H11+22,FALSE)) -> 17 | I13: =IF(Parcours="","",VLOOKUP(Parcours,Parcours!$A$2:$AN$130,I11+22,FALSE)) -> 9 | J13: =IF(Parcours="","",VLOOKUP(Parcours,Parcours!$A$2:$AN$130,J11+22,FALSE)) -> 5 | M13: =IF(Parcours="","",IF(Trous=9,"",VLOOKUP(Parcours,Parcours!$A$2:$AN$130,M11+22,FALSE))) -> 4 | N13: =IF(Parcours="","",IF(Trous=9,"",VLOOKUP(Parcours,Parcours!$A$2:$AN$130,N11+22,FALSE))) -> 8 | O13: =IF(Parcours="","",IF(Trous=9,"",VLOOKUP(Parcours,Parcours!$A$2:$AN$130,O11+22,FALSE))) -> 10 | P13: =IF(Parcours="","",IF(Trous=9,"",VLOOKUP(Parcours,Parcours!$A$2:$AN$130,P11+22,FALSE))) -> 6 | Q13: =IF(Parcours="","",IF(Trous=9,"",VLOOKUP(Parcours,Parcours!$A$2:$AN$130,Q11+22,FALSE))) -> 14 | R13: =IF(Parcours="","",IF(Trous=9,"",VLOOKUP(Parcours,Parcours!$A$2:$AN$130,R11+22,FALSE))) -> 18 | S13: =IF(Parcours="","",IF(Trous=9,"",VLOOKUP(Parcours,Parcours!$A$2:$AN$130,S11+22,FALSE))) -> 2 | T13: =IF(Parcours="","",IF(Trous=9,"",VLOOKUP(Parcours,Parcours!$A$2:$AN$130,T11+22,FALSE))) -> 12 | U13: =IF(Parcours="","",IF(Trous=9,"",VLOOKUP(Parcours,Parcours!$A$2:$AN$130,U11+22,FALSE))) -> 16
A14: Coups reçus | B14: =IF($S$8-TRUNC($S$8/18)*18<B13,TRUNC($S$8/18),TRUNC($S$8/18)+1) -> 1 | C14: =IF($S$8-TRUNC($S$8/18)*18<C13,TRUNC($S$8/18),TRUNC($S$8/18)+1) -> 1 | D14: 1 | E14: 2 | F14: 1 | G14: 2 | H14: 1 | I14: 1 | J14: 2 | K14: =SUM(B14:J14) -> 12 | M14: =IF($S$8-TRUNC($S$8/18)*18<M13,TRUNC($S$8/18),TRUNC($S$8/18)+1) -> 2 | N14: 1 | O14: 1 | P14: 1 | Q14: 1 | R14: 1 | S14: 2 | T14: 1 | U14: 1 | V14: =SUM(M14:U14) -> 11 | X14: =K14+V14 -> 23
A16: Score brut | B16: =IF('Feuille de match'!B24="","",'Feuille de match'!B24) -> 3 | C16: =IF('Feuille de match'!C24="","",'Feuille de match'!C24) -> 7 | D16: =IF('Feuille de match'!D24="","",'Feuille de match'!D24) -> 6 | E16: =IF('Feuille de match'!E24="","",'Feuille de match'!E24) -> 5 | F16: =IF('Feuille de match'!F24="","",'Feuille de match'!F24) -> 6 | G16: =IF('Feuille de match'!G24="","",'Feuille de match'!G24) -> 4 | H16: =IF('Feuille de match'!H24="","",'Feuille de match'!H24) -> 6 | I16: =IF('Feuille de match'!I24="","",'Feuille de match'!I24) -> 6 | J16: =IF('Feuille de match'!J24="","",'Feuille de match'!J24) -> 5 | K16: =IF(OR(COUNTIF(B16:J16,"x"),COUNTIF(B16:J16,"")),"",SUM(B16:J16)) -> 48 | M16: =IF('Feuille de match'!M24="","",'Feuille de match'!M24) -> 8 | N16: =IF('Feuille de match'!N24="","",'Feuille de match'!N24) -> 6 | O16: =IF('Feuille de match'!O24="","",'Feuille de match'!O24) -> 6 | P16: =IF('Feuille de match'!P24="","",'Feuille de match'!P24) -> 2 | Q16: =IF('Feuille de match'!Q24="","",'Feuille de match'!Q24) -> 6 | R16: =IF('Feuille de match'!R24="","",'Feuille de match'!R24) -> 5 | S16: =IF('Feuille de match'!S24="","",'Feuille de match'!S24) -> 6 | T16: =IF('Feuille de match'!T24="","",'Feuille de match'!T24) -> x | U16: =IF('Feuille de match'!U24="","",'Feuille de match'!U24) -> 3 | V16: =IF(OR(COUNTIF(M16:U16,"x"),COUNTIF(M16:U16,"")),"",SUM(M16:U16)) ->  | X16: =IF(OR(COUNTIF(B16:J16,"x"),COUNTIF(B16:J16,""),COUNTIF(M16:U16,"x"),COUNTIF(M16:U16,"")),"",SUM(B16:J16,M16:U16)) -> 
A18: Stableford brut | B18: =IF(B16="","",IF(B16="x",0,MAX(0,B12-B16+2))) -> 3 | C18: 0 | D18: 0 | E18: 1 | F18: 0 | G18: 1 | H18: 1 | I18: 0 | J18: =IF(J16="","",IF(J16="x",0,MAX(0,J12-J16+2))) -> 0 | K18: =SUM(B18:J18) -> 6 | M18: =IF(M16="","",IF(M16="x",0,MAX(0,M12-M16+2))) -> 0 | N18: 0 | O18: 0 | P18: 3 | Q18: 0 | R18: 1 | S18: 0 | T18: 0 | U18: 2 | V18: =SUM(M18:U18) -> 6 | X18: =K18+V18 -> 12
A19: Stableford net | B19: =IF(B16="","",IF(B16="x",0,MAX(0,B12-B16+2+B14))) -> 4 | C19: 1 | D19: 1 | E19: 3 | F19: 1 | G19: 3 | H19: 2 | I19: 1 | J19: =IF(J16="","",IF(J16="x",0,MAX(0,J12-J16+2+J14))) -> 2 | K19: 18 | M19: =IF(M16="","",IF(M16="x",0,MAX(0,M12-M16+2+M14))) -> 0 | N19: 1 | O19: 1 | P19: 4 | Q19: 1 | R19: 2 | S19: 2 | T19: 0 | U19: 3 | V19: 14 | X19: =K19+V19 -> 32
A21: Nb de putts
A22: Bunker de green
A23: Sortie & putt
A24: Fairway touché
A25: Manqué à gauche
A26: Manqué à droite
A27: Longueur drive
A30: Commentaires

Sheet Indiv (hidden)
A1: ASIP | Z1: Scores
K2: Joueur : | M2: Alex NOREN | Z2: x
Z3: 1
Z4: 2
E5: Parcours : | F5: National - Albatros | N5: Trous : | O5: =IF(F5="","",VLOOKUP(F5,Parcours!$A$2:$B$130,2,FALSE)) -> 18 | R5: Date : | S5: 2018-07-01 | Z5: 3
Z6: 4
Z7: 5
A8: Index : | B8: 0 | E8: Repère : | F8: Blanc | I8: Slope : | J8: =VLOOKUP(Parcours,Parcours!$A$2:$AV$130,MATCH(CONCATENATE("Slope ",F8),Parcours!A1:AV1,0),FALSE) -> 155 | L8: SSS : | M8: =VLOOKUP(Parcours,Parcours!$A$2:$AV$130,MATCH(CONCATENATE("SSS ",F8),Parcours!A1:AV1,0),FALSE) -> 73.8 | R8: Coups reçus : | S8: =MIN(TRUNC(B8*J8/113+M8-X12+0.5),54) -> 2 | Z8: 8
Z9: 9
Z10: 10
A11: Trou | B11: 1 | C11: =B11+1 -> 2 | D11: 3 | E11: 4 | F11: 5 | G11: 6 | H11: 7 | I11: 8 | J11: 9 | K11: Aller | M11: 10 | N11: =M11+1 -> 11 | O11: 12 | P11: 13 | Q11: 14 | R11: 15 | S11: 16 | T11: 17 | U11: 18 | V11: Retour | X11: Total | Z11: 11
A12: Par | B12: =IF(Parcours="","",VLOOKUP(Parcours,Parcours!$A$2:$AN$130,B11+3,FALSE)) -> 4 | C12: =IF(Parcours="","",VLOOKUP(Parcours,Parcours!$A$2:$AN$130,C11+3,FALSE)) -> 3 | D12: =IF(Parcours="","",VLOOKUP(Parcours,Parcours!$A$2:$AN$130,D11+3,FALSE)) -> 5 | E12: =IF(Parcours="","",VLOOKUP(Parcours,Parcours!$A$2:$AN$130,E11+3,FALSE)) -> 4 | F12: =IF(Parcours="","",VLOOKUP(Parcours,Parcours!$A$2:$AN$130,F11+3,FALSE)) -> 4 | G12: =IF(Parcours="","",VLOOKUP(Parcours,Parcours!$A$2:$AN$130,G11+3,FALSE)) -> 4 | H12: =IF(Parcours="","",VLOOKUP(Parcours,Parcours!$A$2:$AN$130,H11+3,FALSE)) -> 4 | I12: =IF(Parcours="","",VLOOKUP(Parcours,Parcours!$A$2:$AN$130,I11+3,FALSE)) -> 3 | J12: =IF(Parcours="","",VLOOKUP(Parcours,Parcours!$A$2:$AN$130,J11+3,FALSE)) -> 5 | K12: =SUM(B12:J12) -> 36 | M12: =IF(Parcours="","",IF(Trous=9,"",VLOOKUP(Parcours,Parcours!$A$2:$AN$130,M11+3,FALSE))) -> 4 | N12: =IF(Parcours="","",IF(Trous=9,"",VLOOKUP(Parcours,Parcours!$A$2:$AN$130,N11+3,FALSE))) -> 3 | O12: =IF(Parcours="","",IF(Trous=9,"",VLOOKUP(Parcours,Parcours!$A$2:$AN$130,O11+3,FALSE))) -> 4 | P12: =IF(Parcours="","",IF(Trous=9,"",VLOOKUP(Parcours,Parcours!$A$2:$AN$130,P11+3,FALSE))) -> 4 | Q12: =IF(Parcours="","",IF(Trous=9,"",VLOOKUP(Parcours,Parcours!$A$2:$AN$130,Q11+3,FALSE))) -> 5 | R12: =IF(Parcours="","",IF(Trous=9,"",VLOOKUP(Parcours,Parcours!$A$2:$AN$130,R11+3,FALSE))) -> 4 | S12: =IF(Parcours="","",IF(Trous=9,"",VLOOKUP(Parcours,Parcours!$A$2:$AN$130,S11+3,FALSE))) -> 3 | T12: =IF(Parcours="","",IF(Trous=9,"",VLOOKUP(Parcours,Parcours!$A$2:$AN$130,T11+3,FALSE))) -> 4 | U12: =IF(Parcours="","",IF(Trous=9,"",VLOOKUP(Parcours,Parcours!$A$2:$AN$130,U11+3,FALSE))) -> 5 | V12: =SUM(M12:U12) -> 36 | X12: =K12+V12 -> 72 | Z12: 12
A13: Handicap | B13: =IF(Parcours="","",VLOOKUP(Parcours,Parcours!$A$2:$AN$130,B11+22,FALSE)) -> 4 | C13: =IF(Parcours="","",VLOOKUP(Parcours,Parcours!$A$2:$AN$130,C11+22,FALSE)) -> 6 | D13: =IF(Parcours="","",VLOOKUP(Parcours,Parcours!$A$2:$AN$130,D11+22,FALSE)) -> 12 | E13: =IF(Parcours="","",VLOOKUP(Parcours,Parcours!$A$2:$AN$130,E11+22,FALSE)) -> 8 | F13: =IF(Parcours="","",VLOOKUP(Parcours,Parcours!$A$2:$AN$130,F11+22,FALSE)) -> 16 | G13: =IF(Parcours="","",VLOOKUP(Parcours,Parcours!$A$2:$AN$130,G11+22,FALSE)) -> 18 | H13: =IF(Parcours="","",VLOOKUP(Parcours,Parcours!$A$2:$AN$130,H11+22,FALSE)) -> 2 | I13: =IF(Parcours="","",VLOOKUP(Parcours,Parcours!$A$2:$AN$130,I11+22,FALSE)) -> 14 | J13: =IF(Parcours="","",VLOOKUP(Parcours,Parcours!$A$2:$AN$130,J11+22,FALSE)) -> 10 | M13: =IF(Parcours="","",IF(Trous=9,"",VLOOKUP(Parcours,Parcours!$A$2:$AN$130,M11+22,FALSE))) -> 9 | N13: =IF(Parcours="","",IF(Trous=9,"",VLOOKUP(Parcours,Parcours!$A$2:$AN$130,N11+22,FALSE))) -> 17 | O13: =IF(Parcours="","",IF(Trous=9,"",VLOOKUP(Parcours,Parcours!$A$2:$AN$130,O11+22,FALSE))) -> 7 | P13: =IF(Parcours="","",IF(Trous=9,"",VLOOKUP(Parcours,Parcours!$A$2:$AN$130,P11+22,FALSE))) -> 3 | Q13: =IF(Parcours="","",IF(Trous=9,"",VLOOKUP(Parcours,Parcours!$A$2:$AN$130,Q11+22,FALSE))) -> 11 | R13: =IF(Parcours="","",IF(Trous=9,"",VLOOKUP(Parcours,Parcours!$A$2:$AN$130,R11+22,FALSE))) -> 1 | S13: =IF(Parcours="","",IF(Trous=9,"",VLOOKUP(Parcours,Parcours!$A$2:$AN$130,S11+22,FALSE))) -> 13 | T13: =IF(Parcours="","",IF(Trous=9,"",VLOOKUP(Parcours,Parcours!$A$2:$AN$130,T11+22,FALSE))) -> 5 | U13: =IF(Parcours="","",IF(Trous=9,"",VLOOKUP(Parcours,Parcours!$A$2:$AN$130,U11+22,FALSE))) -> 15
A14: Coups reçus | B14: =IF($S$8-TRUNC($S$8/18)*18<B13,TRUNC($S$8/18),TRUNC($S$8/18)+1) -> 0 | C14: =IF($S$8-TRUNC($S$8/18)*18<C13,TRUNC($S$8/18),TRUNC($S$8/18)+1) -> 0 | D14: 0 | E14: 0 | F14: 0 | G14: 0 | H14: 1 | I14: 0 | J14: 0 | K14: =SUM(B14:J14) -> 1 | M14: =IF($S$8-TRUNC($S$8/18)*18<M13,TRUNC($S$8/18),TRUNC($S$8/18)+1) -> 0 | N14: 0 | O14: 0 | P14: 0 | Q14: 0 | R14: 1 | S14: 0 | T14: 0 | U14: 0 | V14: =SUM(M14:U14) -> 1 | X14: =K14+V14 -> 2
A16: Score brut | B16: 4 | C16: 2 | D16: 5 | E16: 5 | F16: 3 | G16: 4 | H16: 4 | I16: 3 | J16: 5 | K16: =IF(OR(COUNTIF(B16:J16,"x"),COUNTIF(B16:J16,"")),"",SUM(B16:J16)) -> 35 | M16: 4 | N16: 3 | O16: 3 | P16: 4 | Q16: 5 | R16: 4 | S16: 2 | T16: 3 | U16: 4 | V16: =IF(OR(COUNTIF(M16:U16,"x"),COUNTIF(M16:U16,"")),"",SUM(M16:U16)) -> 32 | X16: =IF(OR(COUNTIF(B16:J16,"x"),COUNTIF(B16:J16,""),COUNTIF(M16:U16,"x"),COUNTIF(M16:U16,"")),"",SUM(B16:J16,M16:U16)) -> 67
A18: Stableford brut | B18: =IF(B16="","",IF(B16="x",0,MAX(0,B12-B16+2))) -> 2 | C18: 3 | D18: 2 | E18: 1 | F18: 3 | G18: 2 | H18: 2 | I18: 2 | J18: =IF(J16="","",IF(J16="x",0,MAX(0,J12-J16+2))) -> 2 | K18: =SUM(B18:J18) -> 19 | M18: =IF(M16="","",IF(M16="x",0,MAX(0,M12-M16+2))) -> 2 | N18: 2 | O18: 3 | P18: 2 | Q18: 2 | R18: 2 | S18: 3 | T18: 3 | U18: 3 | V18: =SUM(M18:U18) -> 22 | X18: =K18+V18 -> 41
A19: Stableford net | B19: =IF(B16="","",IF(B16="x",0,MAX(0,B12-B16+2+B14))) -> 2 | C19: 3 | D19: 2 | E19: 1 | F19: 3 | G19: 2 | H19: 3 | I19: 2 | J19: =IF(J16="","",IF(J16="x",0,MAX(0,J12-J16+2+J14))) -> 2 | K19: 20 | M19: =IF(M16="","",IF(M16="x",0,MAX(0,M12-M16+2+M14))) -> 2 | N19: 2 | O19: 3 | P19: 2 | Q19: 2 | R19: 3 | S19: 3 | T19: 3 | U19: 3 | V19: 23 | X19: =K19+V19 -> 43
A21: Nb de putts
A22: Bunker de green
A23: Sortie & putt
A24: Fairway touché
A25: Manqué à gauche
A26: Manqué à droite
A27: Longueur drive
B29: Vainqueur de l'Open de France
A30: Commentaires
